Workbook

Sheet Cover
A1: =RIGHT(CELL("filename", $A$1), LEN(CELL("filename", $A$1)) - SEARCH("]", CELL("filename", $A$1))) -> 
B3: Water Framework Directive
B5: Model code: | C5: PR24CA35
B6: Version number: | C6: 2
B7: File name: | C7: =MID(CELL("filename"), FIND("[", CELL("filename"), 1) + 1, FIND("]", CELL("filename"), 1) - FIND("[", CELL("filename"), 1) - 1) -> 
B8: Date: | C8: 2024-12-01
B10: For enquiries please contact: | C10: PR24@ofwat.gov.uk
B24: Contents:
B26: Tab name | C26: Description
B27: Water_totex | C27: Input data - PR24 BP Net totex - Total inc. accelerated & transition costs
B28: F_Inputs BP | C28: Input data - EA/NRW environmental programme (WINEP/NEP) - Water Framework Directive; (WINEP/NEP) water totex - Total
B29: F_Inputs SDEff | C29: Input data - Shallow dive company efficiency factor - enhancement - water
B30: Inputs_Queries | C30: Input data - Number of WINEP WFD actions per company
B31: Inputs_SEW Query | C31: Input data - List of WINEP WFD actions for South East Water
B32: Inputs_Interconnector Queries | C32: Input data - Interconnector queries (length and costs)
B33: Consolidated Input | C33: Consolidated input data from business plans tables
B34: Consolidated Input Override | C34: Overrides for "Consolidated Input"
B35: Final Input | C35: Input data from "Consolidated Input" plus any data overrides
B36: Unit costs | C36: Calculates unit cost per WINEP WFD action
B37: Interconnector Efficiency | C37: Interconnector efficiency calculations
B38: Materiality & shallow dive | C38: Computes the materiality of the proposed investment compared to the total totex, then applies shallow dive efficiency factor or indicates if a deep dive has taken place.
B39: Deep dives (ANH, SVE, TMS, AFW SR, AFW CNBS, SEW) | C39: Deep dive analysis for the companies where a shallow dive efficiency factor has not been applied
B40: Allowance | C40: Summarises allowed costs on Water Framework Directive (WFD) per company
B41: Outputs to aggregator | C41: Sets out requested costs and allowances on WFD
B42: F_Outputs | C42: Outputs for aggregator
B43: Post Adj & FS Allowances | C43: Summarises water enhancement allowances
B44: PCD | C44: Sets out PCD outputs
B47: Error log
B49: Company | C49: Description of change to be made | D49: Sheet(s) in current model

Sheet Flow chart
A1: =RIGHT(CELL("filename", A1), LEN(CELL("filename", A1)) - SEARCH("]", CELL("filename", A1))) -> 
A3: Conceptual model
A36: End of sheet

Sheet Inputs >>

Sheet Water_totex
A1: =RIGHT(CELL("filename", $A$1), LEN(CELL("filename", $A$1)) - SEARCH("]", CELL("filename", $A$1))) -> 
C2: PR24 WATER TOTEX FD V2 | E2: Run on 03 Sep 2024 16:48
F5: Price Review 2024
F6: Run 11 - PR24 FD Data
A7: Company Acronym | B7: Item Code | C7: Item Description | D7: Item Unit | E7: Item Table Suite | F7: Latest
A8: ANH | B8: PR24_NETTOTEX_WATER | C8: PR24 BP Net totex - Total inc. accelerated & transition costs | D8: £m | E8: Price Review 2024 | F8: 4187.353839
A9: WSH | B9: PR24_NETTOTEX_WATER | C9: PR24 BP Net totex - Total inc. accelerated & transition costs | D9: £m | E9: Price Review 2024 | F9: 2365.636
A10: HDD | B10: PR24_NETTOTEX_WATER | C10: PR24 BP Net totex - Total inc. accelerated & transition costs | D10: £m | E10: Price Review 2024 | F10: 202.9929059
A11: NES | B11: PR24_NETTOTEX_WATER | C11: PR24 BP Net totex - Total inc. accelerated & transition costs | D11: £m | E11: Price Review 2024 | F11: 3081.858466
A12: SVE | B12: PR24_NETTOTEX_WATER | C12: PR24 BP Net totex - Total inc. accelerated & transition costs | D12: £m | E12: Price Review 2024 | F12: 5623.042444
A13: SWB | B13: PR24_NETTOTEX_WATER | C13: PR24 BP Net totex - Total inc. accelerated & transition costs | D13: £m | E13: Price Review 2024 | F13: 1570.211528
A14: SRN | B14: PR24_NETTOTEX_WATER | C14: PR24 BP Net totex - Total inc. accelerated & transition costs | D14: £m | E14: Price Review 2024 | F14: 3614.763
A15: TMS | B15: PR24_NETTOTEX_WATER | C15: PR24 BP Net totex - Total inc. accelerated & transition costs | D15: £m | E15: Price Review 2024 | F15: 10162.16273
A16: NWT | B16: PR24_NETTOTEX_WATER | C16: PR24 BP Net totex - Total inc. accelerated & transition costs | D16: £m | E16: Price Review 2024 | F16: 4204.144554
A17: WSX | B17: PR24_NETTOTEX_WATER | C17: PR24 BP Net totex - Total inc. accelerated & transition costs | D17: £m | E17: Price Review 2024 | F17: 1136.356395
A18: YKY | B18: PR24_NETTOTEX_WATER | C18: PR24 BP Net totex - Total inc. accelerated & transition costs | D18: £m | E18: Price Review 2024 | F18: 3120.05052
A19: AFW | B19: PR24_NETTOTEX_WATER | C19: PR24 BP Net totex - Total inc. accelerated & transition costs | D19: £m | E19: Price Review 2024 | F19: 2157.018576
A20: BRL | B20: PR24_NETTOTEX_WATER | C20: PR24 BP Net totex - Total inc. accelerated & transition costs | D20: £m | E20: Price Review 2024 | F20: 688.9547248
A21: PRT | B21: PR24_NETTOTEX_WATER | C21: PR24 BP Net totex - Total inc. accelerated & transition costs | D21: £m | E21: Price Review 2024 | F21: 341.6692826
A22: SEW | B22: PR24_NETTOTEX_WATER | C22: PR24 BP Net totex - Total inc. accelerated & transition costs | D22: £m | E22: Price Review 2024 | F22: 1862.837225
A23: SSC | B23: PR24_NETTOTEX_WATER | C23: PR24 BP Net totex - Total inc. accelerated & transition costs | D23: £m | E23: Price Review 2024 | F23: 737.9594339
A24: SES | B24: PR24_NETTOTEX_WATER | C24: PR24 BP Net totex - Total inc. accelerated & transition costs | D24: £m | E24: Price Review 2024 | F24: 377.6353912

Sheet F_Inputs BP
A1: =RIGHT(CELL("filename", $A$1), LEN(CELL("filename", $A$1)) - SEARCH("]", CELL("filename", $A$1))) -> 
C2: FD WINEP WFD Water | E2: Run on 03 Sep 2024 17:26
A3: Acronym | B3: Reference | C3: Item description | D3: Unit | E3: Model | F3: 2023-24 | G3: 2024-25 | H3: 2025-26 | I3: 2026-27 | J3: 2027-28 | K3: 2028-29 | L3: 2029-30
F5: Price Review 2024 | G5: Price Review 2024 | H5: Price Review 2024 | I5: Price Review 2024 | J5: Price Review 2024 | K5: Price Review 2024 | L5: Price Review 2024
F6: Run 11 - PR24 FD Data | G6: Run 11 - PR24 FD Data | H6: Run 11 - PR24 FD Data | I6: Run 11 - PR24 FD Data | J6: Run 11 - PR24 FD Data | K6: Run 11 - PR24 FD Data | L6: Run 11 - PR24 FD Data
F7: Latest | G7: Latest | H7: Latest | I7: Latest | J7: Latest | K7: Latest | L7: Latest
A8: ANH | B8: CW3_018TOT_PR24 | C8: EA/NRW environmental programme (WINEP/NEP) - Water Framework Directive; (WINEP/NEP) water totex - Total | D8: £m | E8: Price Review 2024 | F8: 4.700292829 | G8: 4.895 | H8: 3.406 | I8: 5.574 | J8: 6.609 | K8: 5.871 | L8: 4.23
A9: ANH | B9: CW12_018TOT_PR24 | C9: EA/NRW environmental programme (WINEP/NEP) - Water Framework Directive; (WINEP/NEP) water totex - Total | D9: £m | E9: Price Review 2024 | F9: 0 | G9: 0.657
A10: ANH | B10: CW17_018TOT_PR24 | C10: EA/NRW environmental programme (WINEP/NEP) - Water Framework Directive; (WINEP/NEP) water totex - Total | D10: £m | E10: Price Review 2024 | F10: 0 | G10: 0 | H10: 0 | I10: 0 | J10: 0 | K10: 0 | L10: 0
A11: WSH | B11: CW3_018TOT_PR24 | C11: EA/NRW environmental programme (WINEP/NEP) - Water Framework Directive; (WINEP/NEP) water totex - Total | D11: £m | E11: Price Review 2024 | F11: 0.2169631581 | G11: 0.239 | H11: 0.454 | I11: 0.446 | J11: 0.447 | K11: 0.448 | L11: 0.456
A12: WSH | B12: CW12_018TOT_PR24 | C12: EA/NRW environmental programme (WINEP/NEP) - Water Framework Directive; (WINEP/NEP) water totex - Total | D12: £m | E12: Price Review 2024 | F12: 0 | G12: 0
A13: WSH | B13: CW17_018TOT_PR24 | C13: EA/NRW environmental programme (WINEP/NEP) - Water Framework Directive; (WINEP/NEP) water totex - Total | D13: £m | E13: Price Review 2024 | F13: 0 | G13: 0 | H13: 0 | I13: 0 | J13: 0 | K13: 0 | L13: 0
A14: HDD | B14: CW3_018TOT_PR24 | C14: EA/NRW environmental programme (WINEP/NEP) - Water Framework Directive; (WINEP/NEP) water totex - Total | D14: £m | E14: Price Review 2024 | F14: 0 | G14: 0 | H14: 0 | I14: 0 | J14: 0.028 | K14: 0.028 | L14: 0.029
A15: HDD | B15: CW12_018TOT_PR24 | C15: EA/NRW environmental programme (WINEP/NEP) - Water Framework Directive; (WINEP/NEP) water totex - Total | D15: £m | E15: Price Review 2024 | F15: 0 | G15: 0
A16: HDD | B16: CW17_018TOT_PR24 | C16: EA/NRW environmental programme (WINEP/NEP) - Water Framework Directive; (WINEP/NEP) water totex - Total | D16: £m | E16: Price Review 2024 | F16: 0 | G16: 0 | H16: 0 | I16: 0 | J16: 0 | K16: 0 | L16: 0
A17: NES | B17: CW3_018TOT_PR24 | C17: EA/NRW environmental programme (WINEP/NEP) - Water Framework Directive; (WINEP/NEP) water totex - Total | D17: £m | E17: Price Review 2024 | F17: 1.305 | G17: 0.141 | H17: 1.688 | I17: 1.571 | J17: 1.433 | K17: 1.476 | L17: 1.433
A18: NES | B18: CW12_018TOT_PR24 | C18: EA/NRW environmental programme (WINEP/NEP) - Water Framework Directive; (WINEP/NEP) water totex - Total | D18: £m | E18: Price Review 2024 | F18: 0 | G18: 0.052
A19: NES | B19: CW17_018TOT_PR24 | C19: EA/NRW environmental programme (WINEP/NEP) - Water Framework Directive; (WINEP/NEP) water totex - Total | D19: £m | E19: Price Review 2024 | F19: 0 | G19: 0 | H19: 0 | I19: 0 | J19: 0 | K19: 0 | L19: 0
A20: SVE | B20: CW3_018TOT_PR24 | C20: EA/NRW environmental programme (WINEP/NEP) - Water Framework Directive; (WINEP/NEP) water totex - Total | D20: £m | E20: Price Review 2024 | F20: 0.922 | G20: 2.602984647 | H20: 52.472 | I20: 67.937 | J20: 83.747 | K20: 83.227 | L20: 30.639
A21: SVE | B21: CW12_018TOT_PR24 | C21: EA/NRW environmental programme (WINEP/NEP) - Water Framework Directive; (WINEP/NEP) water totex - Total | D21: £m | E21: Price Review 2024 | F21: 0 | G21: 11.13518816
A22: SVE | B22: CW17_018TOT_PR24 | C22: EA/NRW environmental programme (WINEP/NEP) - Water Framework Directive; (WINEP/NEP) water totex - Total | D22: £m | E22: Price Review 2024 | F22: 0 | G22: 0 | H22: 0 | I22: 0 | J22: 0 | K22: 0 | L22: 0
A23: SWB | B23: CW3_018TOT_PR24 | C23: EA/NRW environmental programme (WINEP/NEP) - Water Framework Directive; (WINEP/NEP) water totex - Total | D23: £m | E23: Price Review 2024 | F23: 0.218 | G23: 0.686519959 | H23: 1.250202 | I23: 1.250202 | J23: 1.318874 | K23: 1.318874 | L23: 1.318874
A24: SWB | B24: CW12_018TOT_PR24 | C24: EA/NRW environmental programme (WINEP/NEP) - Water Framework Directive; (WINEP/NEP) water totex - Total | D24: £m | E24: Price Review 2024 | F24: 0 | G24: 0
A25: SWB | B25: CW17_018TOT_PR24 | C25: EA/NRW environmental programme (WINEP/NEP) - Water Framework Directive; (WINEP/NEP) water totex - Total | D25: £m | E25: Price Review 2024 | F25: 0 | G25: 0 | H25: 0 | I25: 0 | J25: 0 | K25: 0 | L25: 0
A26: SRN | B26: CW3_018TOT_PR24 | C26: EA/NRW environmental programme (WINEP/NEP) - Water Framework Directive; (WINEP/NEP) water totex - Total | D26: £m | E26: Price Review 2024 | F26: 0 | G26: 0 | H26: 1.645 | I26: 1.645 | J26: 1.645 | K26: 1.645 | L26: 1.645
A27: SRN | B27: CW12_018TOT_PR24 | C27: EA/NRW environmental programme (WINEP/NEP) - Water Framework Directive; (WINEP/NEP) water totex - Total | D27: £m | E27: Price Review 2024 | F27: 0 | G27: 0
A28: SRN | B28: CW17_018TOT_PR24 | C28: EA/NRW environmental programme (WINEP/NEP) - Water Framework Directive; (WINEP/NEP) water totex - Total | D28: £m | E28: Price Review 2024 | F28: 0 | G28: 0 | H28: 0 | I28: 0 | J28: 0 | K28: 0 | L28: 0
A29: TMS | B29: CW3_018TOT_PR24 | C29: EA/NRW environmental programme (WINEP/NEP) - Water Framework Directive; (WINEP/NEP) water totex - Total | D29: £m | E29: Price Review 2024 | F29: 5.626 | G29: 7.49 | H29: 1.142 | I29: 2.718 | J29: 5.324 | K29: 9.408 | L29: 31.408
A30: TMS | B30: CW12_018TOT_PR24 | C30: EA/NRW environmental programme (WINEP/NEP) - Water Framework Directive; (WINEP/NEP) water totex - Total | D30: £m | E30: Price Review 2024 | F30: 0 | G30: 0
A31: TMS | B31: CW17_018TOT_PR24 | C31: EA/NRW environmental programme (WINEP/NEP) - Water Framework Directive; (WINEP/NEP) water totex - Total | D31: £m | E31: Price Review 2024 | F31: 0 | G31: 0 | H31: 0 | I31: 0 | J31: 0 | K31: 0 | L31: 0
A32: NWT | B32: CW3_018TOT_PR24 | C32: EA/NRW environmental programme (WINEP/NEP) - Water Framework Directive; (WINEP/NEP) water totex - Total | D32: £m | E32: Price Review 2024 | F32: 0.000378275606 | G32: 0.3596989704 | H32: 6.6422425 | I32: 1.710822173 | J32: 8.014635686 | K32: 3.1244044 | L32: 0.9113212558
A33: NWT | B33: CW12_018TOT_PR24 | C33: EA/NRW environmental programme (WINEP/NEP) - Water Framework Directive; (WINEP/NEP) water totex - Total | D33: £m | E33: Price Review 2024 | F33: 0.000378275606 | G33: 0.3596989704
A34: NWT | B34: CW17_018TOT_PR24 | C34: EA/NRW environmental programme (WINEP/NEP) - Water Framework Directive; (WINEP/NEP) water totex - Total | D34: £m | E34: Price Review 2024 | F34: 0 | G34: 0 | H34: 0 | I34: 0 | J34: 0 | K34: 0 | L34: 0
A35: WSX | B35: CW3_018TOT_PR24 | C35: EA/NRW environmental programme (WINEP/NEP) - Water Framework Directive; (WINEP/NEP) water totex - Total | D35: £m | E35: Price Review 2024 | F35: 0.1271052209 | G35: 0.09825554714 | H35: 0.681927 | I35: 0.131899 | J35: 0.247294 | K35: 0.74959 | L35: 1.751668
A36: WSX | B36: CW12_018TOT_PR24 | C36: EA/NRW environmental programme (WINEP/NEP) - Water Framework Directive; (WINEP/NEP) water totex - Total | D36: £m | E36: Price Review 2024 | F36: 0 | G36: 0
A37: WSX | B37: CW17_018TOT_PR24 | C37: EA/NRW environmental programme (WINEP/NEP) - Water Framework Directive; (WINEP/NEP) water totex - Total | D37: £m | E37: Price Review 2024 | F37: 0 | G37: 0 | H37: 0 | I37: 0 | J37: 0 | K37: 0 | L37: 0
A38: YKY | B38: CW3_018TOT_PR24 | C38: EA/NRW environmental programme (WINEP/NEP) - Water Framework Directive; (WINEP/NEP) water totex - Total | D38: £m | E38: Price Review 2024 | F38: 0.2207462847 | G38: 0.454 | H38: 1.036 | I38: 1.116 | J38: 2.178 | K38: 2.4511664 | L38: 1.7831424
A39: YKY | B39: CW12_018TOT_PR24 | C39: EA/NRW environmental programme (WINEP/NEP) - Water Framework Directive; (WINEP/NEP) water totex - Total | D39: £m | E39: Price Review 2024 | F39: 0 | G39: 0
A40: YKY | B40: CW17_018TOT_PR24 | C40: EA/NRW environmental programme (WINEP/NEP) - Water Framework Directive; (WINEP/NEP) water totex - Total | D40: £m | E40: Price Review 2024 | F40: 0 | G40: 0 | H40: 0 | I40: 0 | J40: 0 | K40: 0 | L40: 0
A41: AFW | B41: CW3_018TOT_PR24 | C41: EA/NRW environmental programme (WINEP/NEP) - Water Framework Directive; (WINEP/NEP) water totex - Total | D41: £m | E41: Price Review 2024 | F41: 17.35 | G41: 20.172 | H41: 19.023 | I41: 27.929 | J41: 35.194 | K41: 28.92 | L41: 28.653
A42: AFW | B42: CW12_018TOT_PR24 | C42: EA/NRW environmental programme (WINEP/NEP) - Water Framework Directive; (WINEP/NEP) water totex - Total | D42: £m | E42: Price Review 2024 | F42: 0.224 | G42: 1.044
A43: AFW | B43: CW17_018TOT_PR24 | C43: EA/NRW environmental programme (WINEP/NEP) - Water Framework Directive; (WINEP/NEP) water totex - Total | D43: £m | E43: Price Review 2024 | F43: 0 | G43: 0 | H43: 0 | I43: 0 | J43: 0 | K43: 0 | L43: 0
A44: BRL | B44: CW3_018TOT_PR24 | C44: EA/NRW environmental programme (WINEP/NEP) - Water Framework Directive; (WINEP/NEP) water totex - Total | D44: £m | E44: Price Review 2024 | F44: 0 | G44: 0 | H44: 0.5270598158 | I44: 0.5270598158 | J44: 0.527058 | K44: 0.527058 | L44: 0.527058
A45: BRL | B45: CW12_018TOT_PR24 | C45: EA/NRW environmental programme (WINEP/NEP) - Water Framework Directive; (WINEP/NEP) water totex - Total | D45: £m | E45: Price Review 2024 | F45: 0 | G45: 0
A46: BRL | B46: CW17_018TOT_PR24 | C46: EA/NRW environmental programme (WINEP/NEP) - Water Framework Directive; (WINEP/NEP) water totex - Total | D46: £m | E46: Price Review 2024 | F46: 0 | G46: 0 | H46: 0 | I46: 0 | J46: 0 | K46: 0 | L46: 0
A47: PRT | B47: CW3_018TOT_PR24 | C47: EA/NRW environmental programme (WINEP/NEP) - Water Framework Directive; (WINEP/NEP) water totex - Total | D47: £m | E47: Price Review 2024 | F47: 0 | G47: 0 | H47: 0 | I47: 0 | J47: 0 | K47: 0 | L47: 0.04545
A48: PRT | B48: CW12_018TOT_PR24 | C48: EA/NRW environmental programme (WINEP/NEP) - Water Framework Directive; (WINEP/NEP) water totex - Total | D48: £m | E48: Price Review 2024 | F48: 0 | G48: 0
A49: PRT | B49: CW17_018TOT_PR24 | C49: EA/NRW environmental programme (WINEP/NEP) - Water Framework Directive; (WINEP/NEP) water totex - Total | D49: £m | E49: Price Review 2024 | F49: 0 | G49: 0 | H49: 0 | I49: 0 | J49: 0 | K49: 0 | L49: 0
A50: SEW | B50: CW3_018TOT_PR24 | C50: EA/NRW environmental programme (WINEP/NEP) - Water Framework Directive; (WINEP/NEP) water totex - Total | D50: £m | E50: Price Review 2024 | F50: 4.259117977 | G50: 5.026536966 | H50: 1.591858307 | I50: 2.181960174 | J50: 3.71146983 | K50: 1.914394867 | L50: 1.202032058
A51: SEW | B51: CW12_018TOT_PR24 | C51: EA/NRW environmental programme (WINEP/NEP) - Water Framework Directive; (WINEP/NEP) water totex - Total | D51: £m | E51: Price Review 2024 | F51: 0 | G51: 0
A52: SEW | B52: CW17_018TOT_PR24 | C52: EA/NRW environmental programme (WINEP/NEP) - Water Framework Directive; (WINEP/NEP) water totex - Total | D52: £m | E52: Price Review 2024 | F52: 0 | G52: 0 | H52: 0 | I52: 0 | J52: 0 | K52: 0 | L52: 0
A53: SSC | B53: CW3_018TOT_PR24 | C53: EA/NRW environmental programme (WINEP/NEP) - Water Framework Directive; (WINEP/NEP) water totex - Total | D53: £m | E53: Price Review 2024 | F53: 0.1 | G53: 0 | H53: 0.0375152384 | I53: 0.19192771 | J53: 0.6294580174 | K53: 0 | L53: 0
A54: SSC | B54: CW12_018TOT_PR24 | C54: EA/NRW environmental programme (WINEP/NEP) - Water Framework Directive; (WINEP/NEP) water totex - Total | D54: £m | E54: Price Review 2024 | F54: 0 | G54: 0
A55: SSC | B55: CW17_018TOT_PR24 | C55: EA/NRW environmental programme (WINEP/NEP) - Water Framework Directive; (WINEP/NEP) water totex - Total | D55: £m | E55: Price Review 2024 | F55: 0 | G55: 0 | H55: 0 | I55: 0 | J55: 0 | K55: 0 | L55: 0
A56: SES | B56: CW3_018TOT_PR24 | C56: EA/NRW environmental programme (WINEP/NEP) - Water Framework Directive; (WINEP/NEP) water totex - Total | D56: £m | E56: Price Review 2024 | F56: 0 | G56: 0 | H56: 0 | I56: 0 | J56: 0.037 | K56: 0.08 | L56: 0.1
A57: SES | B57: CW12_018TOT_PR24 | C57: EA/NRW environmental programme (WINEP/NEP) - Water Framework Directive; (WINEP/NEP) water totex - Total | D57: £m | E57: Price Review 2024 | F57: 0 | G57: 0
A58: SES | B58: CW17_018TOT_PR24 | C58: EA/NRW environmental programme (WINEP/NEP) - Water Framework Directive; (WINEP/NEP) water totex - Total | D58: £m | E58: Price Review 2024 | F58: 0 | G58: 0 | H58: 0 | I58: 0 | J58: 0 | K58: 0 | L58: 0

Sheet F_Inputs SDEff
A1: =RIGHT(CELL("filename", $A$1), LEN(CELL("filename", $A$1)) - SEARCH("]", CELL("filename", $A$1))) -> 
C2: Shallow dive efficiency - Run 11 | E2: Run on 14 Nov 2024 8:13
F4: 2025-26 | G4: 2026-27 | H4: 2027-28 | I4: 2028-29 | J4: 2029-30
F5: Price Review 2024 | G5: Price Review 2024 | H5: Price Review 2024 | I5: Price Review 2024 | J5: Price Review 2024
F6: Run 11 - PR24 FD Data | G6: Run 11 - PR24 FD Data | H6: Run 11 - PR24 FD Data | I6: Run 11 - PR24 FD Data | J6: Run 11 - PR24 FD Data
A7: Company Acronym | B7: Item Code | C7: Item Description | D7: Item Unit | E7: Item Table Suite | F7: Latest | G7: Latest | H7: Latest | I7: Latest | J7: Latest | K7: Total
A8: ANH | B8: C_PR24ENHW_SHALLOW_EFF | C8: Shallow dive company efficiency factor - enhancement - water | D8: % | E8: Price Review 2024 | F8: 0.02 | G8: 0.02 | H8: 0.02 | I8: 0.02 | J8: 0.02 | K8: =AVERAGE(F8:J8) -> 0.02
A9: WSH | B9: C_PR24ENHW_SHALLOW_EFF | C9: Shallow dive company efficiency factor - enhancement - water | D9: % | E9: Price Review 2024 | F9: 0.01 | G9: 0.01 | H9: 0.01 | I9: 0.01 | J9: 0.01 | K9: =AVERAGE(F9:J9) -> 0.01
A10: HDD | B10: C_PR24ENHW_SHALLOW_EFF | C10: Shallow dive company efficiency factor - enhancement - water | D10: % | E10: Price Review 2024 | F10: 0 | G10: 0 | H10: 0 | I10: 0 | J10: 0 | K10: 0
A11: NES | B11: C_PR24ENHW_SHALLOW_EFF | C11: Shallow dive company efficiency factor - enhancement - water | D11: % | E11: Price Review 2024 | F11: 0 | G11: 0 | H11: 0 | I11: 0 | J11: 0 | K11: 0
A12: SVE | B12: C_PR24ENHW_SHALLOW_EFF | C12: Shallow dive company efficiency factor - enhancement - water | D12: % | E12: Price Review 2024 | F12: 0 | G12: 0 | H12: 0 | I12: 0 | J12: 0 | K12: 0
A13: SWB | B13: C_PR24ENHW_SHALLOW_EFF | C13: Shallow dive company efficiency factor - enhancement - water | D13: % | E13: Price Review 2024 | F13: 0.1 | G13: 0.1 | H13: 0.1 | I13: 0.1 | J13: 0.1 | K13: 0.1
A14: SRN | B14: C_PR24ENHW_SHALLOW_EFF | C14: Shallow dive company efficiency factor - enhancement - water | D14: % | E14: Price Review 2024 | F14: 0.1 | G14: 0.1 | H14: 0.1 | I14: 0.1 | J14: 0.1 | K14: 0.1
A15: TMS | B15: C_PR24ENHW_SHALLOW_EFF | C15: Shallow dive company efficiency factor - enhancement - water | D15: % | E15: Price Review 2024 | F15: 0 | G15: 0 | H15: 0 | I15: 0 | J15: 0 | K15: 0
A16: NWT | B16: C_PR24ENHW_SHALLOW_EFF | C16: Shallow dive company efficiency factor - enhancement - water | D16: % | E16: Price Review 2024 | F16: 0 | G16: 0 | H16: 0 | I16: 0 | J16: 0 | K16: 0
A17: WSX | B17: C_PR24ENHW_SHALLOW_EFF | C17: Shallow dive company efficiency factor - enhancement - water | D17: % | E17: Price Review 2024 | F17: 0.07 | G17: 0.07 | H17: 0.07 | I17: 0.07 | J17: 0.07 | K17: 0.07
A18: YKY | B18: C_PR24ENHW_SHALLOW_EFF | C18: Shallow dive company efficiency factor - enhancement - water | D18: % | E18: Price Review 2024 | F18: 0 | G18: 0 | H18: 0 | I18: 0 | J18: 0 | K18: 0
A19: AFW | B19: C_PR24ENHW_SHALLOW_EFF | C19: Shallow dive company efficiency factor - enhancement - water | D19: % | E19: Price Review 2024 | F19: 0.03 | G19: 0.03 | H19: 0.03 | I19: 0.03 | J19: 0.03 | K19: 0.03
A20: BRL | B20: C_PR24ENHW_SHALLOW_EFF | C20: Shallow dive company efficiency factor - enhancement - water | D20: % | E20: Price Review 2024 | F20: 0.06 | G20: 0.06 | H20: 0.06 | I20: 0.06 | J20: 0.06 | K20: 0.06
A21: PRT | B21: C_PR24ENHW_SHALLOW_EFF | C21: Shallow dive company efficiency factor - enhancement - water | D21: % | E21: Price Review 2024 | F21: 0.07 | G21: 0.07 | H21: 0.07 | I21: 0.07 | J21: 0.07 | K21: 0.07
A22: SEW | B22: C_PR24ENHW_SHALLOW_EFF | C22: Shallow dive company efficiency factor - enhancement - water | D22: % | E22: Price Review 2024 | F22: 0.1 | G22: 0.1 | H22: 0.1 | I22: 0.1 | J22: 0.1 | K22: 0.1
A23: SSC | B23: C_PR24ENHW_SHALLOW_EFF | C23: Shallow dive company efficiency factor - enhancement - water | D23: % | E23: Price Review 2024 | F23: 0 | G23: 0 | H23: 0 | I23: 0 | J23: 0 | K23: 0
A24: SES | B24: C_PR24ENHW_SHALLOW_EFF | C24: Shallow dive company efficiency factor - enhancement - water | D24: % | E24: Price Review 2024 | F24: 0.1 | G24: 0.1 | H24: 0.1 | I24: 0.1 | J24: 0.1 | K24: 0.1

Sheet Inputs_Queries
A1: =RIGHT(CELL("filename", $A$1), LEN(CELL("filename", $A$1)) - SEARCH("]", CELL("filename", $A$1))) -> 
A4: Company | B4: Number of WINEP WFD Actions | C4: Query Reference(s)
A5: ANH | B5: 10 | C5: OFW-OBQ-ANH-015
A6: WSH | B6: 4 | C6: OFW-OBQ-WSH-011, OFW-OBQ-WSH-112
A7: HDD | B7: 2 | C7: OFW-OBQ-HDD-008
A8: NES | B8: 21 | C8: OFW-OBQ-NES-040
A9: SVE | B9: 92 | C9: OFW-OBQ-SVE-013, OFW-OBQ-SVE-091, OFW-REP-SVE-146
A10: SWB | B10: 8 | C10: OFW-OBQ-SBB-029, OFW-OBQ-SBB-117
A11: SRN | B11: 4 | C11: OFW-OBQ-SRN-065
A12: TMS | B12: 20 | C12: OFW-OBQ-TMS-056, OFW-REP-TMS-075.
A13: NWT | B13: 32 | C13: OFW-OBQ-UUW-031
A14: WSX | B14: 6 | C14: OFW-OBQ-WSX-018, OFW-OBQ-WSX-088
A15: YKY | B15: 14 | C15: OFW-OBQ-YKY-011, OFW-OBQ-YKY-110
A16: AFW | B16: 75 | C16: OFW-OBQ-AFW-007, OFW-OBQ-AFW-090, OFW-REP-AFW-056
A17: AFW_Sustainability Reductions | B17: 34 | C17: OFW-REP-AFW-056
A18: AFW_C&NBS | B18: 41 | C18: OFW-REP-AFW-056
A19: BRL | B19: 2 | C19: OFW-OBQ-SBB-029, OFW-OBQ-SBB-117
A20: PRT | B20: 1 | C20: OFW-OBQ-PRT-011
A21: SEW | B21: 8 | C21: OFW-REP-SEW-019 and one scheme reallocated to DrWPA line CW3.15
A22: SSC | B22: 1 | C22: OFW-OBQ-SSC-010
A23: SES | B23: 1 | C23: N/A
A61: SRN | B61: BN1765 | C61: Number of household meters renewed | D61: 000s | E61: Cyclical Foundation | F61: 3.018 | G61: 3.659 | H61: 3.611
A62: SRN | B62: BN1767 | C62: Number of business meters renewed - Properties and population | D62: 000s | E62: Cyclical Foundation | F62: 0.246 | G62: 0.637 | H62: 1.378
A63: TMS | B63: W3028OPTCAW | C63: Metering (excluding cost of providing metering to new service connections) - meters requested by optants - Total | D63: £m | E63: Cyclical Foundation | F63: 7.382119865 | G63: 10.68451332 | H63: 6.056869021
A64: TMS | B64: W3028COMCAW | C64: Metering (excluding cost of providing metering to new service connections)- meters introduced by companies - Total | D64: £m | E64: Cyclical Foundation | F64: 45.6137968 | G64: 33.84294129 | H64: 18.38136922
A65: TMS | B65: W3028NHOCAW | C65: Metering (excluding cost of providing metering to new service connections) - other - Total | D65: £m | E65: Cyclical Foundation | F65: 0 | G65: 0 | H65: 0.3665651581
A66: TMS | B66: W3026TECAW | C66: Total expenditure - Total | D66: £m | E66: Cyclical Foundation | F66: 895.282 | G66: 988.4014761 | H66: 1051.809
A67: TMS | B67: BN1715 | C67: Meter optants installed | D67: 000s | E67: Cyclical Foundation | F67: 16.559 | G67: 19.283 | H67: 18.681
A68: TMS | B68: BN1711 | C68: Selective meters - installed | D68: 000s | E68: Cyclical Foundation | F68: 98.053 | G68: 56.453 | H68: 31.11
A69: TMS | B69: BN1765 | C69: Number of household meters renewed | D69: 000s | E69: Cyclical Foundation | F69: 19.11 | G69: 25.825 | H69: 52.976
A70: TMS | B70: BN1767 | C70: Number of business meters renewed - Properties and population | D70: 000s | E70: Cyclical Foundation | F70: 0.553 | G70: 2.154 | H70: 8.938
A71: NWT | B71: W3028OPTCAW | C71: Metering (excluding cost of providing metering to new service connections) - meters requested by optants - Total | D71: £m | E71: Cyclical Foundation | F71: 10.44345879 | G71: 11.0796344 | H71: 9.80625517
A72: NWT | B72: W3028COMCAW | C72: Metering (excluding cost of providing metering to new service connections)- meters introduced by companies - Total | D72: £m | E72: Cyclical Foundation | F72: 0 | G72: 0 | H72: 0
A73: NWT | B73: W3028NHOCAW | C73: Metering (excluding cost of providing metering to new service connections) - other - Total | D73: £m | E73: Cyclical Foundation | F73: 0 | G73: 0 | H73: 0
A74: NWT | B74: W3026TECAW | C74: Total expenditure - Total | D74: £m | E74: Cyclical Foundation | F74: 601.4975726 | G74: 663.9194973 | H74: 680.3622136
A75: NWT | B75: BN1715 | C75: Meter optants installed | D75: 000s | E75: Cyclical Foundation | F75: 36.615 | G75: 32.069 | H75: 25.817
A76: NWT | B76: BN1711 | C76: Selective meters - installed | D76: 000s | E76: Cyclical Foundation | F76: 0 | G76: 0 | H76: 0
A77: NWT | B77: BN1765 | C77: Number of household meters renewed | D77: 000s | E77: Cyclical Foundation | F77: 8.409 | G77: 8.45 | H77: 9.579
A78: NWT | B78: BN1767 | C78: Number of business meters renewed - Properties and population | D78: 000s | E78: Cyclical Foundation | F78: 1.177 | G78: 1.039 | H78: 1.585
A79: WSX | B79: W3028OPTCAW | C79: Metering (excluding cost of providing metering to new service connections) - meters requested by optants - Total | D79: £m | E79: Cyclical Foundation | F79: 2.94005074 | G79: 1.338966538 | H79: 1.794477565
A80: WSX | B80: W3028COMCAW | C80: Metering (excluding cost of providing metering to new service connections)- meters introduced by companies - Total | D80: £m | E80: Cyclical Foundation | F80: 0 | G80: 0.4735686816 | H80: 1.182324605
A81: WSX | B81: W3028NHOCAW | C81: Metering (excluding cost of providing metering to new service connections) - other - Total | D81: £m | E81: Cyclical Foundation | F81: 0 | G81: 0 | H81: 0
A82: WSX | B82: W3026TECAW | C82: Total expenditure - Total | D82: £m | E82: Cyclical Foundation | F82: 135.1820296 | G82: 157.7500258 | H82: 152.9909885
A83: WSX | B83: BN1715 | C83: Meter optants installed | D83: 000s | E83: Cyclical Foundation | F83: 5.672 | G83: 5.215 | H83: 5.621
A84: WSX | B84: BN1711 | C84: Selective meters - installed | D84: 000s | E84: Cyclical Foundation | F84: 7.079 | G84: 1.711 | H84: 3.713
A85: WSX | B85: BN1765 | C85: Number of household meters renewed | D85: 000s | E85: Cyclical Foundation | F85: 8.284 | G85: 6.073 | H85: 5.67
A86: WSX | B86: BN1767 | C86: Number of business meters renewed - Properties and population | D86: 000s | E86: Cyclical Foundation | F86: 0.354 | G86: 0.909 | H86: 0.98
A87: YKY | B87: W3028OPTCAW | C87: Metering (excluding cost of providing metering to new service connections) - meters requested by optants - Total | D87: £m | E87: Cyclical Foundation | F87: 6.167 | G87: 7.001 | H87: 8.39
A88: YKY | B88: W3028COMCAW | C88: Metering (excluding cost of providing metering to new service connections)- meters introduced by companies - Total | D88: £m | E88: Cyclical Foundation | F88: 0 | G88: 0 | H88: 0
A89: YKY | B89: W3028NHOCAW | C89: Metering (excluding cost of providing metering to new service connections) - other - Total | D89: £m | E89: Cyclical Foundation | F89: 0 | G89: 0 | H89: 0
A90: YKY | B90: W3026TECAW | C90: Total expenditure - Total | D90: £m | E90: Cyclical Foundation | F90: 369.596 | G90: 439.1536152 | H90: 436.031
A91: YKY | B91: BN1715 | C91: Meter optants installed | D91: 000s | E91: Cyclical Foundation | F91: 27.969 | G91: 28.179 | H91: 33.812
A92: YKY | B92: BN1711 | C92: Selective meters - installed | D92: 000s | E92: Cyclical Foundation | F92: 0 | G92: 0 | H92: 0
A93: YKY | B93: BN1765 | C93: Number of household meters renewed | D93: 000s | E93: Cyclical Foundation | F93: 24.957 | G93: 3.716 | H93: 11.49
A94: YKY | B94: BN1767 | C94: Number of business meters renewed - Properties and population | D94: 000s | E94: Cyclical Foundation | F94: 1.866 | G94: 1.625 | H94: 1.647
A95: AFW | B95: W3028OPTCAW | C95: Metering (excluding cost of providing metering to new service connections) - meters requested by optants - Total | D95: £m | E95: Cyclical Foundation | F95: 0.259 | G95: 0 | H95: 0
A96: AFW | B96: W3028COMCAW | C96: Metering (excluding cost of providing metering to new service connections)- meters introduced by companies - Total | D96: £m | E96: Cyclical Foundation | F96: 11.67 | G96: 8.413 | H96: 11.24
A97: AFW | B97: W3028NHOCAW | C97: Metering (excluding cost of providing metering to new service connections) - other - Total | D97: £m | E97: Cyclical Foundation | F97: 0 | G97: 0 | H97: 0
A98: AFW | B98: W3026TECAW | C98: Total expenditure - Total | D98: £m | E98: Cyclical Foundation | F98: 255.578 | G98: 244.644 | H98: 242.052
A99: AFW | B99: BN1715 | C99: Meter optants installed | D99: 000s | E99: Cyclical Foundation | F99: 3.689 | G99: 2.375 | H99: 4.253
A100: AFW | B100: BN1711 | C100: Selective meters - installed | D100: 000s | E100: Cyclical Foundation | F100: 55.214 | G100: 17.209 | H100: 21.266
A101: AFW | B101: BN1765 | C101: Number of household meters renewed | D101: 000s | E101: Cyclical Foundation | F101: 12.938 | G101: 14.682 | H101: 11.173
A102: AFW | B102: BN1767 | C102: Number of business meters renewed - Properties and population | D102: 000s | E102: Cyclical Foundation | F102: 0.714 | G102: 0.999 | H102: 1.19
A103: BRL | B103: W3028OPTCAW | C103: Metering (excluding cost of providing metering to new service connections) - meters requested by optants - Total | D103: £m | E103: Cyclical Foundation | F103: 1.436 | G103: 2.355 | H103: 2.018
A104: BRL | B104: W3028COMCAW | C104: Metering (excluding cost of providing metering to new service connections)- meters introduced by companies - Total | D104: £m | E104: Cyclical Foundation | F104: 1.664 | G104: 4.203 | H104: 2.527
A105: BRL | B105: W3028NHOCAW | C105: Metering (excluding cost of providing metering to new service connections) - other - Total | D105: £m | E105: Cyclical Foundation | F105: 0.038 | G105: 0.014 | H105: 0.041
A106: BRL | B106: W3026TECAW | C106: Total expenditure - Total | D106: £m | E106: Cyclical Foundation | F106: 104.043 | G106: 109.07 | H106: 128.0829518
A107: BRL | B107: BN1715 | C107: Meter optants installed | D107: 000s | E107: Cyclical Foundation | F107: 4.551 | G107: 5.701 | H107: 3.972
A108: BRL | B108: BN1711 | C108: Selective meters - installed | D108: 000s | E108: Cyclical Foundation | F108: 10.202 | G108: 9.315 | H108: 7.443
A109: BRL | B109: BN1765 | C109: Number of household meters renewed | D109: 000s | E109: Cyclical Foundation | F109: 1.509 | G109: 2.013 | H109: 2.362
A110: BRL | B110: BN1767 | C110: Number of business meters renewed - Properties and population | D110: 000s | E110: Cyclical Foundation | F110: 0.467 | G110: 0.505 | H110: 0.509
A111: PRT | B111: W3028OPTCAW | C111: Metering (excluding cost of providing metering to new service connections) - meters requested by optants - Total | D111: £m | E111: Cyclical Foundation | F111: 0.749 | G111: 0.814 | H111: 0.685
A112: PRT | B112: W3028COMCAW | C112: Metering (excluding cost of providing metering to new service connections)- meters introduced by companies - Total | D112: £m | E112: Cyclical Foundation | F112: 0 | G112: 0 | H112: 0
A113: PRT | B113: W3028NHOCAW | C113: Metering (excluding cost of providing metering to new service connections) - other - Total | D113: £m | E113: Cyclical Foundation | F113: 0.418 | G113: 0 | H113: 0
A114: PRT | B114: W3026TECAW | C114: Total expenditure - Total | D114: £m | E114: Cyclical Foundation | F114: 27.996 | G114: 37.442 | H114: 42.603
A115: PRT | B115: BN1715 | C115: Meter optants installed | D115: 000s | E115: Cyclical Foundation | F115: 2.47 | G115: 2.58 | H115: 2.322
A116: PRT | B116: BN1711 | C116: Selective meters - installed | D116: 000s | E116: Cyclical Foundation | F116: 0 | G116: 0 | H116: 0
A117: PRT | B117: BN1765 | C117: Number of household meters renewed | D117: 000s | E117: Cyclical Foundation | F117: 2.291 | G117: 11.47 | H117: 4.461
A118: PRT | B118: BN1767 | C118: Number of business meters renewed - Properties and population | D118: 000s | E118: Cyclical Foundation | F118: 0.164 | G118: 0.209 | H118: 0.352
A119: SEW | B119: W3028OPTCAW | C119: Metering (excluding cost of providing metering to new service connections) - meters requested by optants - Total | D119: £m | E119: Cyclical Foundation | F119: 0.482 | G119: 0.299 | H119: 0.987
A120: SEW | B120: W3028COMCAW | C120: Metering (excluding cost of providing metering to new service connections)- meters introduced by companies - Total | D120: £m | E120: Cyclical Foundation | F120: 9.377 | G120: 7.617 | H120: 0.476
A121: SEW | B121: W3028NHOCAW | C121: Metering (excluding cost of providing metering to new service connections) - other - Total | D121: £m | E121: Cyclical Foundation | F121: 0 | G121: 0 | H121: 0
A122: SEW | B122: W3026TECAW | C122: Total expenditure - Total | D122: £m | E122: Cyclical Foundation | F122: 172.141 | G122: 183.242 | H122: 186.514
A123: SEW | B123: BN1715 | C123: Meter optants installed | D123: 000s | E123: Cyclical Foundation | F123: 2.193 | G123: 1.272 | H123: 0.963
A124: SEW | B124: BN1711 | C124: Selective meters - installed | D124: 000s | E124: Cyclical Foundation | F124: 38.26 | G124: 30.108 | H124: 0
A125: SEW | B125: BN1765 | C125: Number of household meters renewed | D125: 000s | E125: Cyclical Foundation | F125: 6.22 | G125: 7.278 | H125: 8.188
A126: SEW | B126: BN1767 | C126: Number of business meters renewed - Properties and population | D126: 000s | E126: Cyclical Foundation | F126: 1.377 | G126: 1.212 | H126: 0.859
A127: SSC | B127: W3028OPTCAW | C127: Metering (excluding cost of providing metering to new service connections) - meters requested by optants - Total | D127: £m | E127: Cyclical Foundation | F127: 1.75527659 | G127: 2.673 | H127: 2.57370252
A128: SSC | B128: W3028COMCAW | C128: Metering (excluding cost of providing metering to new service connections)- meters introduced by companies - Total | D128: £m | E128: Cyclical Foundation | F128: 0.00103987 | G128: 0.002 | H128: 0.0003611678775
A129: SSC | B129: W3028NHOCAW | C129: Metering (excluding cost of providing metering to new service connections) - other - Total | D129: £m | E129: Cyclical Foundation | F129: 0 | G129: 0 | H129: 0
A130: SSC | B130: W3026TECAW | C130: Total expenditure - Total | D130: £m | E130: Cyclical Foundation | F130: 95.27077801 | G130: 96.807 | H130: 96.64436167
A131: SSC | B131: BN1715 | C131: Meter optants installed | D131: 000s | E131: Cyclical Foundation | F131: 6.163 | G131: 8 | H131: 7.647
A132: SSC | B132: BN1711 | C132: Selective meters - installed | D132: 000s | E132: Cyclical Foundation | F132: 0 | G132: 0 | H132: 0
A133: SSC | B133: BN1765 | C133: Number of household meters renewed | D133: 000s | E133: Cyclical Foundation | F133: 5.628 | G133: 6.199 | H133: 4.217
A134: SSC | B134: BN1767 | C134: Number of business meters renewed - Properties and population | D134: 000s | E134: Cyclical Foundation | F134: 0.853 | G134: 0.608 | H134: 0.57
A135: SST | B135: W3028OPTCAW | C135: Metering (excluding cost of providing metering to new service connections) - meters requested by optants - Total | D135: £m | E135: Cyclical Foundation
A136: SST | B136: W3028COMCAW | C136: Metering (excluding cost of providing metering to new service connections)- meters introduced by companies - Total | D136: £m | E136: Cyclical Foundation
A137: SST | B137: W3028NHOCAW | C137: Metering (excluding cost of providing metering to new service connections) - other - Total | D137: £m | E137: Cyclical Foundation
A138: SST | B138: W3026TECAW | C138: Total expenditure - Total | D138: £m | E138: Cyclical Foundation
A139: SST | B139: BN1715 | C139: Meter optants installed | D139: 000s | E139: Cyclical Foundation
A140: SST | B140: BN1711 | C140: Selective meters - installed | D140: 000s | E140: Cyclical Foundation
A141: SST | B141: BN1765 | C141: Number of household meters renewed | D141: 000s | E141: Cyclical Foundation
A142: SST | B142: BN1767 | C142: Number of business meters renewed - Properties and population | D142: 000s | E142: Cyclical Foundation
A143: SES | B143: W3028OPTCAW | C143: Metering (excluding cost of providing metering to new service connections) - meters requested by optants - Total | D143: £m | E143: Cyclical Foundation | F143: 0.858 | G143: 1.654 | H143: 0
A144: SES | B144: W3028COMCAW | C144: Metering (excluding cost of providing metering to new service connections)- meters introduced by companies - Total | D144: £m | E144: Cyclical Foundation | F144: 0.519 | G144: 0.763 | H144: 1.977
A145: SES | B145: W3028NHOCAW | C145: Metering (excluding cost of providing metering to new service connections) - other - Total | D145: £m | E145: Cyclical Foundation | F145: 0 | G145: 0 | H145: 0.104
A146: SES | B146: W3026TECAW | C146: Total expenditure - Total | D146: £m | E146: Cyclical Foundation | F146: 51.205 | G146: 53.579 | H146: 62.6
A147: SES | B147: BN1715 | C147: Meter optants installed | D147: 000s | E147: Cyclical Foundation | F147: 2.524 | G147: 3.262 | H147: 1.91
A148: SES | B148: BN1711 | C148: Selective meters - installed | D148: 000s | E148: Cyclical Foundation | F148: 2.494 | G148: 2.773 | H148: 2.989
A149: SES | B149: BN1765 | C149: Number of household meters renewed | D149: 000s | E149: Cyclical Foundation | F149: 5.34 | G149: 4.647 | H149: 8.355
A150: SES | B150: BN1767 | C150: Number of business meters renewed - Properties and population | D150: 000s | E150: Cyclical Foundation | F150: 0.545 | G150: 0.964 | H150: 0.973

Sheet Inputs_SEW Query
A1: =RIGHT(CELL("filename", $A$1), LEN(CELL("filename", $A$1)) - SEARCH("]", CELL("filename", $A$1))) -> 
A3: Query Reference: | B3: OFW-REP-SEW-019
A5: WINEP Action ID | B5: WINEP driver code | C5: Scheme Title | D5: Totex (£m) | E5: Comments
A6: 08SE100048a | B6: WFD_IMP_WRHMWB | C6: River Cuckmere fish habitat improvement | D6: 0.06
A7: 08SE100004a | B7: WFDGW_ND | C7: Cow Wish (Seaford) Catchment Measures | D7: 0.8
A8: 08SE100016a | B8: DrWPA_ND | C8: Stockbury Catchment Measures | E8: Scheme reallocated to line CW3.15 Drinking Water Protected Areas
A9: 08SE100031a | B9: WFD_ND_WRFlow | C9: Darent - Cramptons Road (Kemsing and Oak Lane) ***Holding line awaiting outcome from AMP7*** | D9: 1.15
A10: 08SE100046a | B10: WFD_ND_WRFlow | C10: Crowhurst Bridge ***Holding line awaiting outcome from AMP7*** | E10: Scheme confirmed as now removed following sign off from the Environment Agency
A11: 08SE100034a | B11: WFD_ND_WRFlow | C11: Hart - Itchel ***Holding line awaiting outcome from AMP7*** | D11: 1.1
A12: 08SE100035a | B12: WFD_IMP_WRFlow | C12: Maidenhead Ditch - College Avenue (Cookham) ***Holding line awaiting outcome from AMP7*** | D12: 1.16
A13: 08SE100041a | B13: WFD_IMP_WRFlow | C13: Wey ***Holding line awaiting outcome from AMP7*** | D13: 1.23
A14: 08SE100044a | B14: WFD_ND_WRFlow | C14: Bisham Brook - Hurley and Cookham ***Holding line awaiting outcome from AMP7*** | D14: 1.39
A15: 08SE100043a | B15: WFD_ND_WRFlow | C15: North Kent (Groundwater Modelling) ***Holding line awaiting outcome from AMP7*** | D15: 1.2

Sheet Inputs_Interconnector Queries
A1: Inputs: Interconnector Queries
A3: Company | B3: Pipeline Name | C3: Length (km) | D3: Cost Request (£m) | E3: Query Reference(s)
A4: SVE | B4: New Infra Connection: Stourbridge to Goldthorne | C4: 8.2 | D4: 8.715986 | E4: OFW-OBQ-SVE-149
A5: SVE | B5: New Infra Connection: Miskhill to Papplewick | C5: 5.81 | D5: 6.993718 | E5: OFW-OBQ-SVE-149
A6: SVE | B6: New Infra Connection: Whitchurch & Wem to Shelton | C6: 12.25 | D6: 7.071782 | E6: OFW-OBQ-SVE-149
A7: SVE | B7: New Infra Connection: Boughton to Redhill | C7: 0.2 | D7: 0.307156 | E7: OFW-OBQ-SVE-149
A8: SVE | B8: New Infra Connection: Ogston Old Works to Whiteborough | C8: 0.01 | D8: 0.285621 | E8: OFW-OBQ-SVE-149
A9: SVE | B9: Coventry South Pipeline | C9: 17.63 | D9: 25.309 | E9: OFW-OBQ-SVE-149
A10: SVE | B10: New Infra Connection: Whitchurch & Wem to Shelton (Resilience) | C10: - | D10: 7.252 | E10: OFW-REP-SVE-031. Cost of scheme included in the WFD PCD.
A11: SVE | B11: Coventry South Pipeline (Resilience) | C11: - | D11: =7.355+4.553 -> 11.908 | E11: OFW-REP-SVE-031. Cost of scheme included in the WFD PCD.
A12: AFW | B12: Harefield to Harrow interconnector | C12: 10.7 | D12: 28.628 | E12: OFW-OBQ-AFW-090, OFW-OBQ-AFW-105
A13: AFW | B13: Heronsgate to Bovingdon pipeline | C13: 12.8 | D13: 35.511 | E13: OFW-OBQ-AFW-090, OFW-OBQ-AFW-105
A14: AFW | B14: Local Replacement schemes WRZ3 | C14: 13.76 | D14: 23.534 | E14: OFW-OBQ-AFW-090, OFW-OBQ-AFW-105
A15: TMS | B15: Netley WTW sustainability reduction (PR24, WFD) | C15: 9.5 | D15: 28.435 | E15: OFW-OBQ-TMS-208, OFW-OBQ-TMS-244, OFW-REP-TMS-075.
A16: TMS | B16: Shalford to Netley Mill transfer scheme (Guildford WRZ), (PR19, Supply-Interconectors) | C16: 9.5 | D16: 16.951 | E16: OFW-OBQ-TMS-208, OFW-OBQ-TMS-244. Cost of scheme uplifted from £14.365m to 22-23 prices.

Sheet Consolidated Input
A1: =RIGHT(CELL("filename", $A$1), LEN(CELL("filename", $A$1)) - SEARCH("]", CELL("filename", $A$1))) -> 
A4: Acronym | B4: Item Description | C4: Unit | D4: 2023-24 | E4: 2024-25 | F4: 2025-26 | G4: 2026-27 | H4: 2027-28 | I4: 2028-29 | J4: 2029-30 | K4: Total 2023-30
A5: ANH | B5: EA/NRW environmental programme (WINEP/NEP) - Water Framework Directive; (WINEP/NEP) water totex - Total | C5: £m | D5: =SUMIFS('F_Inputs BP'!F$8:F$58,'F_Inputs BP'!$A$8:$A$58,A5,'F_Inputs BP'!$B$8:$B$58,"CW12_018TOT_PR24")+SUMIFS('F_Inputs BP'!F$8:F$58,'F_Inputs BP'!$A$8:$A$58,A5,'F_Inputs BP'!$B$8:$B$58,"CW17_018TOT_PR24") -> 0 | E5: =SUMIFS('F_Inputs BP'!G$8:G$58,'F_Inputs BP'!$A$8:$A$58,A5,'F_Inputs BP'!$B$8:$B$58,"CW12_018TOT_PR24")+SUMIFS('F_Inputs BP'!G$8:G$58,'F_Inputs BP'!$A$8:$A$58,A5,'F_Inputs BP'!$B$8:$B$58,"CW17_018TOT_PR24") -> 0.657 | F5: =SUMIFS('F_Inputs BP'!H$8:H$58,'F_Inputs BP'!$A$8:$A$58,$A5,'F_Inputs BP'!$B$8:$B$58,"CW3_018TOT_PR24") -> 3.406 | G5: =SUMIFS('F_Inputs BP'!I$8:I$58,'F_Inputs BP'!$A$8:$A$58,$A5,'F_Inputs BP'!$B$8:$B$58,"CW3_018TOT_PR24") -> 5.574 | H5: =SUMIFS('F_Inputs BP'!J$8:J$58,'F_Inputs BP'!$A$8:$A$58,$A5,'F_Inputs BP'!$B$8:$B$58,"CW3_018TOT_PR24") -> 6.609 | I5: =SUMIFS('F_Inputs BP'!K$8:K$58,'F_Inputs BP'!$A$8:$A$58,$A5,'F_Inputs BP'!$B$8:$B$58,"CW3_018TOT_PR24") -> 5.871 | J5: =SUMIFS('F_Inputs BP'!L$8:L$58,'F_Inputs BP'!$A$8:$A$58,$A5,'F_Inputs BP'!$B$8:$B$58,"CW3_018TOT_PR24") -> 4.23 | K5: =SUM(Table1[[#This Row],[2023-24]:[2029-30]]) -> 26.347
A6: WSH | B6: EA/NRW environmental programme (WINEP/NEP) - Water Framework Directive; (WINEP/NEP) water totex - Total | C6: £m | D6: =SUMIFS('F_Inputs BP'!F$8:F$58,'F_Inputs BP'!$A$8:$A$58,A6,'F_Inputs BP'!$B$8:$B$58,"CW12_018TOT_PR24")+SUMIFS('F_Inputs BP'!F$8:F$58,'F_Inputs BP'!$A$8:$A$58,A6,'F_Inputs BP'!$B$8:$B$58,"CW17_018TOT_PR24") -> 0 | E6: =SUMIFS('F_Inputs BP'!G$8:G$58,'F_Inputs BP'!$A$8:$A$58,A6,'F_Inputs BP'!$B$8:$B$58,"CW12_018TOT_PR24")+SUMIFS('F_Inputs BP'!G$8:G$58,'F_Inputs BP'!$A$8:$A$58,A6,'F_Inputs BP'!$B$8:$B$58,"CW17_018TOT_PR24") -> 0 | F6: =SUMIFS('F_Inputs BP'!H$8:H$58,'F_Inputs BP'!$A$8:$A$58,$A6,'F_Inputs BP'!$B$8:$B$58,"CW3_018TOT_PR24") -> 0.454 | G6: =SUMIFS('F_Inputs BP'!I$8:I$58,'F_Inputs BP'!$A$8:$A$58,$A6,'F_Inputs BP'!$B$8:$B$58,"CW3_018TOT_PR24") -> 0.446 | H6: =SUMIFS('F_Inputs BP'!J$8:J$58,'F_Inputs BP'!$A$8:$A$58,$A6,'F_Inputs BP'!$B$8:$B$58,"CW3_018TOT_PR24") -> 0.447 | I6: =SUMIFS('F_Inputs BP'!K$8:K$58,'F_Inputs BP'!$A$8:$A$58,$A6,'F_Inputs BP'!$B$8:$B$58,"CW3_018TOT_PR24") -> 0.448 | J6: =SUMIFS('F_Inputs BP'!L$8:L$58,'F_Inputs BP'!$A$8:$A$58,$A6,'F_Inputs BP'!$B$8:$B$58,"CW3_018TOT_PR24") -> 0.456 | K6: =SUM(Table1[[#This Row],[2023-24]:[2029-30]]) -> 2.251
A7: HDD | B7: EA/NRW environmental programme (WINEP/NEP) - Water Framework Directive; (WINEP/NEP) water totex - Total | C7: £m | D7: =SUMIFS('F_Inputs BP'!F$8:F$58,'F_Inputs BP'!$A$8:$A$58,A7,'F_Inputs BP'!$B$8:$B$58,"CW12_018TOT_PR24")+SUMIFS('F_Inputs BP'!F$8:F$58,'F_Inputs BP'!$A$8:$A$58,A7,'F_Inputs BP'!$B$8:$B$58,"CW17_018TOT_PR24") -> 0 | E7: =SUMIFS('F_Inputs BP'!G$8:G$58,'F_Inputs BP'!$A$8:$A$58,A7,'F_Inputs BP'!$B$8:$B$58,"CW12_018TOT_PR24")+SUMIFS('F_Inputs BP'!G$8:G$58,'F_Inputs BP'!$A$8:$A$58,A7,'F_Inputs BP'!$B$8:$B$58,"CW17_018TOT_PR24") -> 0 | F7: =SUMIFS('F_Inputs BP'!H$8:H$58,'F_Inputs BP'!$A$8:$A$58,$A7,'F_Inputs BP'!$B$8:$B$58,"CW3_018TOT_PR24") -> 0 | G7: =SUMIFS('F_Inputs BP'!I$8:I$58,'F_Inputs BP'!$A$8:$A$58,$A7,'F_Inputs BP'!$B$8:$B$58,"CW3_018TOT_PR24") -> 0 | H7: =SUMIFS('F_Inputs BP'!J$8:J$58,'F_Inputs BP'!$A$8:$A$58,$A7,'F_Inputs BP'!$B$8:$B$58,"CW3_018TOT_PR24") -> 0.028 | I7: =SUMIFS('F_Inputs BP'!K$8:K$58,'F_Inputs BP'!$A$8:$A$58,$A7,'F_Inputs BP'!$B$8:$B$58,"CW3_018TOT_PR24") -> 0.028 | J7: =SUMIFS('F_Inputs BP'!L$8:L$58,'F_Inputs BP'!$A$8:$A$58,$A7,'F_Inputs BP'!$B$8:$B$58,"CW3_018TOT_PR24") -> 0.029 | K7: =SUM(Table1[[#This Row],[2023-24]:[2029-30]]) -> 0.085
A8: NES | B8: EA/NRW environmental programme (WINEP/NEP) - Water Framework Directive; (WINEP/NEP) water totex - Total | C8: £m | D8: =SUMIFS('F_Inputs BP'!F$8:F$58,'F_Inputs BP'!$A$8:$A$58,A8,'F_Inputs BP'!$B$8:$B$58,"CW12_018TOT_PR24")+SUMIFS('F_Inputs BP'!F$8:F$58,'F_Inputs BP'!$A$8:$A$58,A8,'F_Inputs BP'!$B$8:$B$58,"CW17_018TOT_PR24") -> 0 | E8: =SUMIFS('F_Inputs BP'!G$8:G$58,'F_Inputs BP'!$A$8:$A$58,A8,'F_Inputs BP'!$B$8:$B$58,"CW12_018TOT_PR24")+SUMIFS('F_Inputs BP'!G$8:G$58,'F_Inputs BP'!$A$8:$A$58,A8,'F_Inputs BP'!$B$8:$B$58,"CW17_018TOT_PR24") -> 0.052 | F8: =SUMIFS('F_Inputs BP'!H$8:H$58,'F_Inputs BP'!$A$8:$A$58,$A8,'F_Inputs BP'!$B$8:$B$58,"CW3_018TOT_PR24") -> 1.688 | G8: =SUMIFS('F_Inputs BP'!I$8:I$58,'F_Inputs BP'!$A$8:$A$58,$A8,'F_Inputs BP'!$B$8:$B$58,"CW3_018TOT_PR24") -> 1.571 | H8: =SUMIFS('F_Inputs BP'!J$8:J$58,'F_Inputs BP'!$A$8:$A$58,$A8,'F_Inputs BP'!$B$8:$B$58,"CW3_018TOT_PR24") -> 1.433 | I8: =SUMIFS('F_Inputs BP'!K$8:K$58,'F_Inputs BP'!$A$8:$A$58,$A8,'F_Inputs BP'!$B$8:$B$58,"CW3_018TOT_PR24") -> 1.476 | J8: =SUMIFS('F_Inputs BP'!L$8:L$58,'F_Inputs BP'!$A$8:$A$58,$A8,'F_Inputs BP'!$B$8:$B$58,"CW3_018TOT_PR24") -> 1.433 | K8: =SUM(Table1[[#This Row],[2023-24]:[2029-30]]) -> 7.653
A9: SVE | B9: EA/NRW environmental programme (WINEP/NEP) - Water Framework Directive; (WINEP/NEP) water totex - Total | C9: £m | D9: =SUMIFS('F_Inputs BP'!F$8:F$58,'F_Inputs BP'!$A$8:$A$58,A9,'F_Inputs BP'!$B$8:$B$58,"CW12_018TOT_PR24")+SUMIFS('F_Inputs BP'!F$8:F$58,'F_Inputs BP'!$A$8:$A$58,A9,'F_Inputs BP'!$B$8:$B$58,"CW17_018TOT_PR24") -> 0 | E9: =SUMIFS('F_Inputs BP'!G$8:G$58,'F_Inputs BP'!$A$8:$A$58,A9,'F_Inputs BP'!$B$8:$B$58,"CW12_018TOT_PR24")+SUMIFS('F_Inputs BP'!G$8:G$58,'F_Inputs BP'!$A$8:$A$58,A9,'F_Inputs BP'!$B$8:$B$58,"CW17_018TOT_PR24") -> 11.13518816 | F9: =SUMIFS('F_Inputs BP'!H$8:H$58,'F_Inputs BP'!$A$8:$A$58,$A9,'F_Inputs BP'!$B$8:$B$58,"CW3_018TOT_PR24") -> 52.472 | G9: =SUMIFS('F_Inputs BP'!I$8:I$58,'F_Inputs BP'!$A$8:$A$58,$A9,'F_Inputs BP'!$B$8:$B$58,"CW3_018TOT_PR24") -> 67.937 | H9: =SUMIFS('F_Inputs BP'!J$8:J$58,'F_Inputs BP'!$A$8:$A$58,$A9,'F_Inputs BP'!$B$8:$B$58,"CW3_018TOT_PR24") -> 83.747 | I9: =SUMIFS('F_Inputs BP'!K$8:K$58,'F_Inputs BP'!$A$8:$A$58,$A9,'F_Inputs BP'!$B$8:$B$58,"CW3_018TOT_PR24") -> 83.227 | J9: =SUMIFS('F_Inputs BP'!L$8:L$58,'F_Inputs BP'!$A$8:$A$58,$A9,'F_Inputs BP'!$B$8:$B$58,"CW3_018TOT_PR24") -> 30.639 | K9: =SUM(Table1[[#This Row],[2023-24]:[2029-30]]) -> 329.1571882
A10: SWB | B10: EA/NRW environmental programme (WINEP/NEP) - Water Framework Directive; (WINEP/NEP) water totex - Total | C10: £m | D10: =SUMIFS('F_Inputs BP'!F$8:F$58,'F_Inputs BP'!$A$8:$A$58,A10,'F_Inputs BP'!$B$8:$B$58,"CW12_018TOT_PR24")+SUMIFS('F_Inputs BP'!F$8:F$58,'F_Inputs BP'!$A$8:$A$58,A10,'F_Inputs BP'!$B$8:$B$58,"CW17_018TOT_PR24") -> 0 | E10: =SUMIFS('F_Inputs BP'!G$8:G$58,'F_Inputs BP'!$A$8:$A$58,A10,'F_Inputs BP'!$B$8:$B$58,"CW12_018TOT_PR24")+SUMIFS('F_Inputs BP'!G$8:G$58,'F_Inputs BP'!$A$8:$A$58,A10,'F_Inputs BP'!$B$8:$B$58,"CW17_018TOT_PR24") -> 0 | F10: =SUMIFS('F_Inputs BP'!H$8:H$58,'F_Inputs BP'!$A$8:$A$58,$A10,'F_Inputs BP'!$B$8:$B$58,"CW3_018TOT_PR24") -> 1.250202 | G10: =SUMIFS('F_Inputs BP'!I$8:I$58,'F_Inputs BP'!$A$8:$A$58,$A10,'F_Inputs BP'!$B$8:$B$58,"CW3_018TOT_PR24") -> 1.250202 | H10: =SUMIFS('F_Inputs BP'!J$8:J$58,'F_Inputs BP'!$A$8:$A$58,$A10,'F_Inputs BP'!$B$8:$B$58,"CW3_018TOT_PR24") -> 1.318874 | I10: =SUMIFS('F_Inputs BP'!K$8:K$58,'F_Inputs BP'!$A$8:$A$58,$A10,'F_Inputs BP'!$B$8:$B$58,"CW3_018TOT_PR24") -> 1.318874 | J10: =SUMIFS('F_Inputs BP'!L$8:L$58,'F_Inputs BP'!$A$8:$A$58,$A10,'F_Inputs BP'!$B$8:$B$58,"CW3_018TOT_PR24") -> 1.318874 | K10: =SUM(Table1[[#This Row],[2023-24]:[2029-30]]) -> 6.457026
A11: SRN | B11: EA/NRW environmental programme (WINEP/NEP) - Water Framework Directive; (WINEP/NEP) water totex - Total | C11: £m | D11: =SUMIFS('F_Inputs BP'!F$8:F$58,'F_Inputs BP'!$A$8:$A$58,A11,'F_Inputs BP'!$B$8:$B$58,"CW12_018TOT_PR24")+SUMIFS('F_Inputs BP'!F$8:F$58,'F_Inputs BP'!$A$8:$A$58,A11,'F_Inputs BP'!$B$8:$B$58,"CW17_018TOT_PR24") -> 0 | E11: =SUMIFS('F_Inputs BP'!G$8:G$58,'F_Inputs BP'!$A$8:$A$58,A11,'F_Inputs BP'!$B$8:$B$58,"CW12_018TOT_PR24")+SUMIFS('F_Inputs BP'!G$8:G$58,'F_Inputs BP'!$A$8:$A$58,A11,'F_Inputs BP'!$B$8:$B$58,"CW17_018TOT_PR24") -> 0 | F11: =SUMIFS('F_Inputs BP'!H$8:H$58,'F_Inputs BP'!$A$8:$A$58,$A11,'F_Inputs BP'!$B$8:$B$58,"CW3_018TOT_PR24") -> 1.645 | G11: =SUMIFS('F_Inputs BP'!I$8:I$58,'F_Inputs BP'!$A$8:$A$58,$A11,'F_Inputs BP'!$B$8:$B$58,"CW3_018TOT_PR24") -> 1.645 | H11: =SUMIFS('F_Inputs BP'!J$8:J$58,'F_Inputs BP'!$A$8:$A$58,$A11,'F_Inputs BP'!$B$8:$B$58,"CW3_018TOT_PR24") -> 1.645 | I11: =SUMIFS('F_Inputs BP'!K$8:K$58,'F_Inputs BP'!$A$8:$A$58,$A11,'F_Inputs BP'!$B$8:$B$58,"CW3_018TOT_PR24") -> 1.645 | J11: =SUMIFS('F_Inputs BP'!L$8:L$58,'F_Inputs BP'!$A$8:$A$58,$A11,'F_Inputs BP'!$B$8:$B$58,"CW3_018TOT_PR24") -> 1.645 | K11: =SUM(Table1[[#This Row],[2023-24]:[2029-30]]) -> 8.225
A12: TMS | B12: EA/NRW environmental programme (WINEP/NEP) - Water Framework Directive; (WINEP/NEP) water totex - Total | C12: £m | D12: =SUMIFS('F_Inputs BP'!F$8:F$58,'F_Inputs BP'!$A$8:$A$58,A12,'F_Inputs BP'!$B$8:$B$58,"CW12_018TOT_PR24")+SUMIFS('F_Inputs BP'!F$8:F$58,'F_Inputs BP'!$A$8:$A$58,A12,'F_Inputs BP'!$B$8:$B$58,"CW17_018TOT_PR24") -> 0 | E12: =SUMIFS('F_Inputs BP'!G$8:G$58,'F_Inputs BP'!$A$8:$A$58,A12,'F_Inputs BP'!$B$8:$B$58,"CW12_018TOT_PR24")+SUMIFS('F_Inputs BP'!G$8:G$58,'F_Inputs BP'!$A$8:$A$58,A12,'F_Inputs BP'!$B$8:$B$58,"CW17_018TOT_PR24") -> 0 | F12: =SUMIFS('F_Inputs BP'!H$8:H$58,'F_Inputs BP'!$A$8:$A$58,$A12,'F_Inputs BP'!$B$8:$B$58,"CW3_018TOT_PR24") -> 1.142 | G12: =SUMIFS('F_Inputs BP'!I$8:I$58,'F_Inputs BP'!$A$8:$A$58,$A12,'F_Inputs BP'!$B$8:$B$58,"CW3_018TOT_PR24") -> 2.718 | H12: =SUMIFS('F_Inputs BP'!J$8:J$58,'F_Inputs BP'!$A$8:$A$58,$A12,'F_Inputs BP'!$B$8:$B$58,"CW3_018TOT_PR24") -> 5.324 | I12: =SUMIFS('F_Inputs BP'!K$8:K$58,'F_Inputs BP'!$A$8:$A$58,$A12,'F_Inputs BP'!$B$8:$B$58,"CW3_018TOT_PR24") -> 9.408 | J12: =SUMIFS('F_Inputs BP'!L$8:L$58,'F_Inputs BP'!$A$8:$A$58,$A12,'F_Inputs BP'!$B$8:$B$58,"CW3_018TOT_PR24") -> 31.408 | K12: =SUM(Table1[[#This Row],[2023-24]:[2029-30]]) -> 50
A13: NWT | B13: EA/NRW environmental programme (WINEP/NEP) - Water Framework Directive; (WINEP/NEP) water totex - Total | C13: £m | D13: =SUMIFS('F_Inputs BP'!F$8:F$58,'F_Inputs BP'!$A$8:$A$58,A13,'F_Inputs BP'!$B$8:$B$58,"CW12_018TOT_PR24")+SUMIFS('F_Inputs BP'!F$8:F$58,'F_Inputs BP'!$A$8:$A$58,A13,'F_Inputs BP'!$B$8:$B$58,"CW17_018TOT_PR24") -> 0.000378275606 | E13: =SUMIFS('F_Inputs BP'!G$8:G$58,'F_Inputs BP'!$A$8:$A$58,A13,'F_Inputs BP'!$B$8:$B$58,"CW12_018TOT_PR24")+SUMIFS('F_Inputs BP'!G$8:G$58,'F_Inputs BP'!$A$8:$A$58,A13,'F_Inputs BP'!$B$8:$B$58,"CW17_018TOT_PR24") -> 0.3596989704 | F13: =SUMIFS('F_Inputs BP'!H$8:H$58,'F_Inputs BP'!$A$8:$A$58,$A13,'F_Inputs BP'!$B$8:$B$58,"CW3_018TOT_PR24") -> 6.6422425 | G13: =SUMIFS('F_Inputs BP'!I$8:I$58,'F_Inputs BP'!$A$8:$A$58,$A13,'F_Inputs BP'!$B$8:$B$58,"CW3_018TOT_PR24") -> 1.710822173 | H13: =SUMIFS('F_Inputs BP'!J$8:J$58,'F_Inputs BP'!$A$8:$A$58,$A13,'F_Inputs BP'!$B$8:$B$58,"CW3_018TOT_PR24") -> 8.014635686 | I13: =SUMIFS('F_Inputs BP'!K$8:K$58,'F_Inputs BP'!$A$8:$A$58,$A13,'F_Inputs BP'!$B$8:$B$58,"CW3_018TOT_PR24") -> 3.1244044 | J13: =SUMIFS('F_Inputs BP'!L$8:L$58,'F_Inputs BP'!$A$8:$A$58,$A13,'F_Inputs BP'!$B$8:$B$58,"CW3_018TOT_PR24") -> 0.9113212558 | K13: =SUM(Table1[[#This Row],[2023-24]:[2029-30]]) -> 20.76350326
A14: WSX | B14: EA/NRW environmental programme (WINEP/NEP) - Water Framework Directive; (WINEP/NEP) water totex - Total | C14: £m | D14: =SUMIFS('F_Inputs BP'!F$8:F$58,'F_Inputs BP'!$A$8:$A$58,A14,'F_Inputs BP'!$B$8:$B$58,"CW12_018TOT_PR24")+SUMIFS('F_Inputs BP'!F$8:F$58,'F_Inputs BP'!$A$8:$A$58,A14,'F_Inputs BP'!$B$8:$B$58,"CW17_018TOT_PR24") -> 0 | E14: =SUMIFS('F_Inputs BP'!G$8:G$58,'F_Inputs BP'!$A$8:$A$58,A14,'F_Inputs BP'!$B$8:$B$58,"CW12_018TOT_PR24")+SUMIFS('F_Inputs BP'!G$8:G$58,'F_Inputs BP'!$A$8:$A$58,A14,'F_Inputs BP'!$B$8:$B$58,"CW17_018TOT_PR24") -> 0 | F14: =SUMIFS('F_Inputs BP'!H$8:H$58,'F_Inputs BP'!$A$8:$A$58,$A14,'F_Inputs BP'!$B$8:$B$58,"CW3_018TOT_PR24") -> 0.681927 | G14: =SUMIFS('F_Inputs BP'!I$8:I$58,'F_Inputs BP'!$A$8:$A$58,$A14,'F_Inputs BP'!$B$8:$B$58,"CW3_018TOT_PR24") -> 0.131899 | H14: =SUMIFS('F_Inputs BP'!J$8:J$58,'F_Inputs BP'!$A$8:$A$58,$A14,'F_Inputs BP'!$B$8:$B$58,"CW3_018TOT_PR24") -> 0.247294 | I14: =SUMIFS('F_Inputs BP'!K$8:K$58,'F_Inputs BP'!$A$8:$A$58,$A14,'F_Inputs BP'!$B$8:$B$58,"CW3_018TOT_PR24") -> 0.74959 | J14: =SUMIFS('F_Inputs BP'!L$8:L$58,'F_Inputs BP'!$A$8:$A$58,$A14,'F_Inputs BP'!$B$8:$B$58,"CW3_018TOT_PR24") -> 1.751668 | K14: =SUM(Table1[[#This Row],[2023-24]:[2029-30]]) -> 3.562378
A15: YKY | B15: EA/NRW environmental programme (WINEP/NEP) - Water Framework Directive; (WINEP/NEP) water totex - Total | C15: £m | D15: =SUMIFS('F_Inputs BP'!F$8:F$58,'F_Inputs BP'!$A$8:$A$58,A15,'F_Inputs BP'!$B$8:$B$58,"CW12_018TOT_PR24")+SUMIFS('F_Inputs BP'!F$8:F$58,'F_Inputs BP'!$A$8:$A$58,A15,'F_Inputs BP'!$B$8:$B$58,"CW17_018TOT_PR24") -> 0 | E15: =SUMIFS('F_Inputs BP'!G$8:G$58,'F_Inputs BP'!$A$8:$A$58,A15,'F_Inputs BP'!$B$8:$B$58,"CW12_018TOT_PR24")+SUMIFS('F_Inputs BP'!G$8:G$58,'F_Inputs BP'!$A$8:$A$58,A15,'F_Inputs BP'!$B$8:$B$58,"CW17_018TOT_PR24") -> 0 | F15: =SUMIFS('F_Inputs BP'!H$8:H$58,'F_Inputs BP'!$A$8:$A$58,$A15,'F_Inputs BP'!$B$8:$B$58,"CW3_018TOT_PR24") -> 1.036 | G15: =SUMIFS('F_Inputs BP'!I$8:I$58,'F_Inputs BP'!$A$8:$A$58,$A15,'F_Inputs BP'!$B$8:$B$58,"CW3_018TOT_PR24") -> 1.116 | H15: =SUMIFS('F_Inputs BP'!J$8:J$58,'F_Inputs BP'!$A$8:$A$58,$A15,'F_Inputs BP'!$B$8:$B$58,"CW3_018TOT_PR24") -> 2.178 | I15: =SUMIFS('F_Inputs BP'!K$8:K$58,'F_Inputs BP'!$A$8:$A$58,$A15,'F_Inputs BP'!$B$8:$B$58,"CW3_018TOT_PR24") -> 2.4511664 | J15: =SUMIFS('F_Inputs BP'!L$8:L$58,'F_Inputs BP'!$A$8:$A$58,$A15,'F_Inputs BP'!$B$8:$B$58,"CW3_018TOT_PR24") -> 1.7831424 | K15: =SUM(Table1[[#This Row],[2023-24]:[2029-30]]) -> 8.5643088
A16: AFW | B16: EA/NRW environmental programme (WINEP/NEP) - Water Framework Directive; (WINEP/NEP) water totex - Total | C16: £m | D16: =SUMIFS('F_Inputs BP'!F$8:F$58,'F_Inputs BP'!$A$8:$A$58,A16,'F_Inputs BP'!$B$8:$B$58,"CW12_018TOT_PR24")+SUMIFS('F_Inputs BP'!F$8:F$58,'F_Inputs BP'!$A$8:$A$58,A16,'F_Inputs BP'!$B$8:$B$58,"CW17_018TOT_PR24") -> 0.224 | E16: =SUMIFS('F_Inputs BP'!G$8:G$58,'F_Inputs BP'!$A$8:$A$58,A16,'F_Inputs BP'!$B$8:$B$58,"CW12_018TOT_PR24")+SUMIFS('F_Inputs BP'!G$8:G$58,'F_Inputs BP'!$A$8:$A$58,A16,'F_Inputs BP'!$B$8:$B$58,"CW17_018TOT_PR24") -> 1.044 | F16: =SUMIFS('F_Inputs BP'!H$8:H$58,'F_Inputs BP'!$A$8:$A$58,$A16,'F_Inputs BP'!$B$8:$B$58,"CW3_018TOT_PR24") -> 19.023 | G16: =SUMIFS('F_Inputs BP'!I$8:I$58,'F_Inputs BP'!$A$8:$A$58,$A16,'F_Inputs BP'!$B$8:$B$58,"CW3_018TOT_PR24") -> 27.929 | H16: =SUMIFS('F_Inputs BP'!J$8:J$58,'F_Inputs BP'!$A$8:$A$58,$A16,'F_Inputs BP'!$B$8:$B$58,"CW3_018TOT_PR24") -> 35.194 | I16: =SUMIFS('F_Inputs BP'!K$8:K$58,'F_Inputs BP'!$A$8:$A$58,$A16,'F_Inputs BP'!$B$8:$B$58,"CW3_018TOT_PR24") -> 28.92 | J16: =SUMIFS('F_Inputs BP'!L$8:L$58,'F_Inputs BP'!$A$8:$A$58,$A16,'F_Inputs BP'!$B$8:$B$58,"CW3_018TOT_PR24") -> 28.653 | K16: =SUM(Table1[[#This Row],[2023-24]:[2029-30]]) -> 140.987
A17: BRL | B17: EA/NRW environmental programme (WINEP/NEP) - Water Framework Directive; (WINEP/NEP) water totex - Total | C17: £m | D17: =SUMIFS('F_Inputs BP'!F$8:F$58,'F_Inputs BP'!$A$8:$A$58,A17,'F_Inputs BP'!$B$8:$B$58,"CW12_018TOT_PR24")+SUMIFS('F_Inputs BP'!F$8:F$58,'F_Inputs BP'!$A$8:$A$58,A17,'F_Inputs BP'!$B$8:$B$58,"CW17_018TOT_PR24") -> 0 | E17: =SUMIFS('F_Inputs BP'!G$8:G$58,'F_Inputs BP'!$A$8:$A$58,A17,'F_Inputs BP'!$B$8:$B$58,"CW12_018TOT_PR24")+SUMIFS('F_Inputs BP'!G$8:G$58,'F_Inputs BP'!$A$8:$A$58,A17,'F_Inputs BP'!$B$8:$B$58,"CW17_018TOT_PR24") -> 0 | F17: =SUMIFS('F_Inputs BP'!H$8:H$58,'F_Inputs BP'!$A$8:$A$58,$A17,'F_Inputs BP'!$B$8:$B$58,"CW3_018TOT_PR24") -> 0.5270598158 | G17: =SUMIFS('F_Inputs BP'!I$8:I$58,'F_Inputs BP'!$A$8:$A$58,$A17,'F_Inputs BP'!$B$8:$B$58,"CW3_018TOT_PR24") -> 0.5270598158 | H17: =SUMIFS('F_Inputs BP'!J$8:J$58,'F_Inputs BP'!$A$8:$A$58,$A17,'F_Inputs BP'!$B$8:$B$58,"CW3_018TOT_PR24") -> 0.527058 | I17: =SUMIFS('F_Inputs BP'!K$8:K$58,'F_Inputs BP'!$A$8:$A$58,$A17,'F_Inputs BP'!$B$8:$B$58,"CW3_018TOT_PR24") -> 0.527058 | J17: =SUMIFS('F_Inputs BP'!L$8:L$58,'F_Inputs BP'!$A$8:$A$58,$A17,'F_Inputs BP'!$B$8:$B$58,"CW3_018TOT_PR24") -> 0.527058 | K17: =SUM(Table1[[#This Row],[2023-24]:[2029-30]]) -> 2.635293632
A18: PRT | B18: EA/NRW environmental programme (WINEP/NEP) - Water Framework Directive; (WINEP/NEP) water totex - Total | C18: £m | D18: =SUMIFS('F_Inputs BP'!F$8:F$58,'F_Inputs BP'!$A$8:$A$58,A18,'F_Inputs BP'!$B$8:$B$58,"CW12_018TOT_PR24")+SUMIFS('F_Inputs BP'!F$8:F$58,'F_Inputs BP'!$A$8:$A$58,A18,'F_Inputs BP'!$B$8:$B$58,"CW17_018TOT_PR24") -> 0 | E18: =SUMIFS('F_Inputs BP'!G$8:G$58,'F_Inputs BP'!$A$8:$A$58,A18,'F_Inputs BP'!$B$8:$B$58,"CW12_018TOT_PR24")+SUMIFS('F_Inputs BP'!G$8:G$58,'F_Inputs BP'!$A$8:$A$58,A18,'F_Inputs BP'!$B$8:$B$58,"CW17_018TOT_PR24") -> 0 | F18: =SUMIFS('F_Inputs BP'!H$8:H$58,'F_Inputs BP'!$A$8:$A$58,$A18,'F_Inputs BP'!$B$8:$B$58,"CW3_018TOT_PR24") -> 0 | G18: =SUMIFS('F_Inputs BP'!I$8:I$58,'F_Inputs BP'!$A$8:$A$58,$A18,'F_Inputs BP'!$B$8:$B$58,"CW3_018TOT_PR24") -> 0 | H18: =SUMIFS('F_Inputs BP'!J$8:J$58,'F_Inputs BP'!$A$8:$A$58,$A18,'F_Inputs BP'!$B$8:$B$58,"CW3_018TOT_PR24") -> 0 | I18: =SUMIFS('F_Inputs BP'!K$8:K$58,'F_Inputs BP'!$A$8:$A$58,$A18,'F_Inputs BP'!$B$8:$B$58,"CW3_018TOT_PR24") -> 0 | J18: =SUMIFS('F_Inputs BP'!L$8:L$58,'F_Inputs BP'!$A$8:$A$58,$A18,'F_Inputs BP'!$B$8:$B$58,"CW3_018TOT_PR24") -> 0.04545 | K18: =SUM(Table1[[#This Row],[2023-24]:[2029-30]]) -> 0.04545
A19: SEW | B19: EA/NRW environmental programme (WINEP/NEP) - Water Framework Directive; (WINEP/NEP) water totex - Total | C19: £m | D19: =SUMIFS('F_Inputs BP'!F$8:F$58,'F_Inputs BP'!$A$8:$A$58,A19,'F_Inputs BP'!$B$8:$B$58,"CW12_018TOT_PR24")+SUMIFS('F_Inputs BP'!F$8:F$58,'F_Inputs BP'!$A$8:$A$58,A19,'F_Inputs BP'!$B$8:$B$58,"CW17_018TOT_PR24") -> 0 | E19: =SUMIFS('F_Inputs BP'!G$8:G$58,'F_Inputs BP'!$A$8:$A$58,A19,'F_Inputs BP'!$B$8:$B$58,"CW12_018TOT_PR24")+SUMIFS('F_Inputs BP'!G$8:G$58,'F_Inputs BP'!$A$8:$A$58,A19,'F_Inputs BP'!$B$8:$B$58,"CW17_018TOT_PR24") -> 0 | F19: =SUMIFS('F_Inputs BP'!H$8:H$58,'F_Inputs BP'!$A$8:$A$58,$A19,'F_Inputs BP'!$B$8:$B$58,"CW3_018TOT_PR24") -> 1.591858307 | G19: =SUMIFS('F_Inputs BP'!I$8:I$58,'F_Inputs BP'!$A$8:$A$58,$A19,'F_Inputs BP'!$B$8:$B$58,"CW3_018TOT_PR24") -> 2.181960174 | H19: =SUMIFS('F_Inputs BP'!J$8:J$58,'F_Inputs BP'!$A$8:$A$58,$A19,'F_Inputs BP'!$B$8:$B$58,"CW3_018TOT_PR24") -> 3.71146983 | I19: =SUMIFS('F_Inputs BP'!K$8:K$58,'F_Inputs BP'!$A$8:$A$58,$A19,'F_Inputs BP'!$B$8:$B$58,"CW3_018TOT_PR24") -> 1.914394867 | J19: =SUMIFS('F_Inputs BP'!L$8:L$58,'F_Inputs BP'!$A$8:$A$58,$A19,'F_Inputs BP'!$B$8:$B$58,"CW3_018TOT_PR24") -> 1.202032058 | K19: =SUM(Table1[[#This Row],[2023-24]:[2029-30]]) -> 10.60171524
A20: SSC | B20: EA/NRW environmental programme (WINEP/NEP) - Water Framework Directive; (WINEP/NEP) water totex - Total | C20: £m | D20: =SUMIFS('F_Inputs BP'!F$8:F$58,'F_Inputs BP'!$A$8:$A$58,A20,'F_Inputs BP'!$B$8:$B$58,"CW12_018TOT_PR24")+SUMIFS('F_Inputs BP'!F$8:F$58,'F_Inputs BP'!$A$8:$A$58,A20,'F_Inputs BP'!$B$8:$B$58,"CW17_018TOT_PR24") -> 0 | E20: =SUMIFS('F_Inputs BP'!G$8:G$58,'F_Inputs BP'!$A$8:$A$58,A20,'F_Inputs BP'!$B$8:$B$58,"CW12_018TOT_PR24")+SUMIFS('F_Inputs BP'!G$8:G$58,'F_Inputs BP'!$A$8:$A$58,A20,'F_Inputs BP'!$B$8:$B$58,"CW17_018TOT_PR24") -> 0 | F20: =SUMIFS('F_Inputs BP'!H$8:H$58,'F_Inputs BP'!$A$8:$A$58,$A20,'F_Inputs BP'!$B$8:$B$58,"CW3_018TOT_PR24") -> 0.0375152384 | G20: =SUMIFS('F_Inputs BP'!I$8:I$58,'F_Inputs BP'!$A$8:$A$58,$A20,'F_Inputs BP'!$B$8:$B$58,"CW3_018TOT_PR24") -> 0.19192771 | H20: =SUMIFS('F_Inputs BP'!J$8:J$58,'F_Inputs BP'!$A$8:$A$58,$A20,'F_Inputs BP'!$B$8:$B$58,"CW3_018TOT_PR24") -> 0.6294580174 | I20: =SUMIFS('F_Inputs BP'!K$8:K$58,'F_Inputs BP'!$A$8:$A$58,$A20,'F_Inputs BP'!$B$8:$B$58,"CW3_018TOT_PR24") -> 0 | J20: =SUMIFS('F_Inputs BP'!L$8:L$58,'F_Inputs BP'!$A$8:$A$58,$A20,'F_Inputs BP'!$B$8:$B$58,"CW3_018TOT_PR24") -> 0 | K20: =SUM(Table1[[#This Row],[2023-24]:[2029-30]]) -> 0.8589009658
A21: SES | B21: EA/NRW environmental programme (WINEP/NEP) - Water Framework Directive; (WINEP/NEP) water totex - Total | C21: £m | D21: =SUMIFS('F_Inputs BP'!F$8:F$58,'F_Inputs BP'!$A$8:$A$58,A21,'F_Inputs BP'!$B$8:$B$58,"CW12_018TOT_PR24")+SUMIFS('F_Inputs BP'!F$8:F$58,'F_Inputs BP'!$A$8:$A$58,A21,'F_Inputs BP'!$B$8:$B$58,"CW17_018TOT_PR24") -> 0 | E21: =SUMIFS('F_Inputs BP'!G$8:G$58,'F_Inputs BP'!$A$8:$A$58,A21,'F_Inputs BP'!$B$8:$B$58,"CW12_018TOT_PR24")+SUMIFS('F_Inputs BP'!G$8:G$58,'F_Inputs BP'!$A$8:$A$58,A21,'F_Inputs BP'!$B$8:$B$58,"CW17_018TOT_PR24") -> 0 | F21: =SUMIFS('F_Inputs BP'!H$8:H$58,'F_Inputs BP'!$A$8:$A$58,$A21,'F_Inputs BP'!$B$8:$B$58,"CW3_018TOT_PR24") -> 0 | G21: =SUMIFS('F_Inputs BP'!I$8:I$58,'F_Inputs BP'!$A$8:$A$58,$A21,'F_Inputs BP'!$B$8:$B$58,"CW3_018TOT_PR24") -> 0 | H21: =SUMIFS('F_Inputs BP'!J$8:J$58,'F_Inputs BP'!$A$8:$A$58,$A21,'F_Inputs BP'!$B$8:$B$58,"CW3_018TOT_PR24") -> 0.037 | I21: =SUMIFS('F_Inputs BP'!K$8:K$58,'F_Inputs BP'!$A$8:$A$58,$A21,'F_Inputs BP'!$B$8:$B$58,"CW3_018TOT_PR24") -> 0.08 | J21: =SUMIFS('F_Inputs BP'!L$8:L$58,'F_Inputs BP'!$A$8:$A$58,$A21,'F_Inputs BP'!$B$8:$B$58,"CW3_018TOT_PR24") -> 0.1 | K21: =SUM(Table1[[#This Row],[2023-24]:[2029-30]]) -> 0.217

Sheet Consolidated Input Override
A1: =RIGHT(CELL("filename", $A$1), LEN(CELL("filename", $A$1)) - SEARCH("]", CELL("filename", $A$1))) -> 
A4: Acronym | B4: Item Description | C4: Unit | D4: 2023-24 | E4: 2024-25 | F4: 2025-26 | G4: 2026-27 | H4: 2027-28 | I4: 2028-29 | J4: 2029-30 | K4: Total 2023-30 | L4: Reason for override
A5: ANH | B5: EA/NRW environmental programme (WINEP/NEP) - Water Framework Directive; (WINEP/NEP) water totex - Total | C5: £m
A6: WSH | B6: EA/NRW environmental programme (WINEP/NEP) - Water Framework Directive; (WINEP/NEP) water totex - Total | C6: £m
A7: HDD | B7: EA/NRW environmental programme (WINEP/NEP) - Water Framework Directive; (WINEP/NEP) water totex - Total | C7: £m
A8: NES | B8: EA/NRW environmental programme (WINEP/NEP) - Water Framework Directive; (WINEP/NEP) water totex - Total | C8: £m
A9: SVE | B9: EA/NRW environmental programme (WINEP/NEP) - Water Framework Directive; (WINEP/NEP) water totex - Total | C9: £m
A10: SWB | B10: EA/NRW environmental programme (WINEP/NEP) - Water Framework Directive; (WINEP/NEP) water totex - Total | C10: £m
A11: SRN | B11: EA/NRW environmental programme (WINEP/NEP) - Water Framework Directive; (WINEP/NEP) water totex - Total | C11: £m
A12: TMS | B12: EA/NRW environmental programme (WINEP/NEP) - Water Framework Directive; (WINEP/NEP) water totex - Total | C12: £m | F12: 2.459 | G12: 4.121 | H12: 5.47 | I12: 11.236 | J12: 31.278 | K12: =SUM(Table13[[#This Row],[2025-26]:[2029-30]]) -> 54.564 | L12: Costs updated to £54.564m to align with updated data tables (TMS-DD-002-PR24-Draft-Determination-Data-Tables_240920) and 'OFW-REP-TMS-075'.
A13: NWT | B13: EA/NRW environmental programme (WINEP/NEP) - Water Framework Directive; (WINEP/NEP) water totex - Total | C13: £m
A14: WSX | B14: EA/NRW environmental programme (WINEP/NEP) - Water Framework Directive; (WINEP/NEP) water totex - Total | C14: £m
A15: YKY | B15: EA/NRW environmental programme (WINEP/NEP) - Water Framework Directive; (WINEP/NEP) water totex - Total | C15: £m | F15: =Table1[[#This Row],[2025-26]]-0.031 -> 1.005 | G15: =Table1[[#This Row],[2026-27]]-0.033 -> 1.083 | H15: =Table1[[#This Row],[2027-28]]-0.06 -> 2.118 | I15: =Table1[[#This Row],[2028-29]]-0.067 -> 2.3841664 | J15: =Table1[[#This Row],[2029-30]]-0.048 -> 1.7351424 | K15: =SUM(Table13[[#This Row],[2023-24]:[2029-30]]) -> 8.3253088 | L15: Reallocation of £0.239m for four schemes to line CW3.24 as per query response ref. OFW-REP-YKY-016.
A16: AFW | B16: EA/NRW environmental programme (WINEP/NEP) - Water Framework Directive; (WINEP/NEP) water totex - Total | C16: £m
A17: BRL | B17: EA/NRW environmental programme (WINEP/NEP) - Water Framework Directive; (WINEP/NEP) water totex - Total | C17: £m
A18: PRT | B18: EA/NRW environmental programme (WINEP/NEP) - Water Framework Directive; (WINEP/NEP) water totex - Total | C18: £m
A19: SEW | B19: EA/NRW environmental programme (WINEP/NEP) - Water Framework Directive; (WINEP/NEP) water totex - Total | C19: £m | F19: =Table1[[#This Row],[2025-26]]-0.5 -> 1.091858307 | G19: =Table1[[#This Row],[2026-27]]-0.5 -> 1.681960174 | H19: =Table1[[#This Row],[2027-28]]-0.5 -> 3.21146983 | I19: =Table1[[#This Row],[2028-29]]-0.5 -> 1.414394867 | J19: =Table1[[#This Row],[2029-30]]-0.5 -> 0.7020320584 | K19: =SUM(Table13[[#This Row],[2023-24]:[2029-30]]) -> 8.101715236 | L19: One scheme (08SE100046a) removed by the company following sign off from the EA, confirmed in query response REF OFW-REP-SEW-019; totex £1.34m. One scheme (08SE100016a) reallocated to Drinking Water Protected Areas line CW3.15; totex £1.16m.
A20: SSC | B20: EA/NRW environmental programme (WINEP/NEP) - Water Framework Directive; (WINEP/NEP) water totex - Total | C20: £m
A21: SES | B21: EA/NRW environmental programme (WINEP/NEP) - Water Framework Directive; (WINEP/NEP) water totex - Total | C21: £m

Sheet Final Input
A1: =RIGHT(CELL("filename", $A$1), LEN(CELL("filename", $A$1)) - SEARCH("]", CELL("filename", $A$1))) -> 
A4: Acronym | B4: Item Description | C4: Unit | D4: 2023-24 | E4: 2024-25 | F4: 2025-26 | G4: 2026-27 | H4: 2027-28 | I4: 2028-29 | J4: 2029-30 | K4: Total 2023-30
A5: ANH | B5: EA/NRW environmental programme (WINEP/NEP) - Water Framework Directive; (WINEP/NEP) water totex - Total | C5: £m | D5: =IF(('Consolidated Input Override'!D5>0),'Consolidated Input Override'!D5,'Consolidated Input'!D5) -> 0 | E5: =IF(('Consolidated Input Override'!E5>0),'Consolidated Input Override'!E5,'Consolidated Input'!E5) -> 0.657 | F5: =IF(('Consolidated Input Override'!F5>0),'Consolidated Input Override'!F5,'Consolidated Input'!F5) -> 3.406 | G5: =IF(('Consolidated Input Override'!G5>0),'Consolidated Input Override'!G5,'Consolidated Input'!G5) -> 5.574 | H5: =IF(('Consolidated Input Override'!H5>0),'Consolidated Input Override'!H5,'Consolidated Input'!H5) -> 6.609 | I5: =IF(('Consolidated Input Override'!I5>0),'Consolidated Input Override'!I5,'Consolidated Input'!I5) -> 5.871 | J5: =IF(('Consolidated Input Override'!J5>0),'Consolidated Input Override'!J5,'Consolidated Input'!J5) -> 4.23 | K5: =IF(('Consolidated Input Override'!K5>0),'Consolidated Input Override'!K5,'Consolidated Input'!K5) -> 26.347
A6: WSH | B6: EA/NRW environmental programme (WINEP/NEP) - Water Framework Directive; (WINEP/NEP) water totex - Total | C6: £m | D6: =IF(('Consolidated Input Override'!D6>0),'Consolidated Input Override'!D6,'Consolidated Input'!D6) -> 0 | E6: =IF(('Consolidated Input Override'!E6>0),'Consolidated Input Override'!E6,'Consolidated Input'!E6) -> 0 | F6: =IF(('Consolidated Input Override'!F6>0),'Consolidated Input Override'!F6,'Consolidated Input'!F6) -> 0.454 | G6: =IF(('Consolidated Input Override'!G6>0),'Consolidated Input Override'!G6,'Consolidated Input'!G6) -> 0.446 | H6: =IF(('Consolidated Input Override'!H6>0),'Consolidated Input Override'!H6,'Consolidated Input'!H6) -> 0.447 | I6: =IF(('Consolidated Input Override'!I6>0),'Consolidated Input Override'!I6,'Consolidated Input'!I6) -> 0.448 | J6: =IF(('Consolidated Input Override'!J6>0),'Consolidated Input Override'!J6,'Consolidated Input'!J6) -> 0.456 | K6: =IF(('Consolidated Input Override'!K6>0),'Consolidated Input Override'!K6,'Consolidated Input'!K6) -> 2.251
A7: HDD | B7: EA/NRW environmental programme (WINEP/NEP) - Water Framework Directive; (WINEP/NEP) water totex - Total | C7: £m | D7: =IF(('Consolidated Input Override'!D7>0),'Consolidated Input Override'!D7,'Consolidated Input'!D7) -> 0 | E7: =IF(('Consolidated Input Override'!E7>0),'Consolidated Input Override'!E7,'Consolidated Input'!E7) -> 0 | F7: =IF(('Consolidated Input Override'!F7>0),'Consolidated Input Override'!F7,'Consolidated Input'!F7) -> 0 | G7: =IF(('Consolidated Input Override'!G7>0),'Consolidated Input Override'!G7,'Consolidated Input'!G7) -> 0 | H7: =IF(('Consolidated Input Override'!H7>0),'Consolidated Input Override'!H7,'Consolidated Input'!H7) -> 0.028 | I7: =IF(('Consolidated Input Override'!I7>0),'Consolidated Input Override'!I7,'Consolidated Input'!I7) -> 0.028 | J7: =IF(('Consolidated Input Override'!J7>0),'Consolidated Input Override'!J7,'Consolidated Input'!J7) -> 0.029 | K7: =IF(('Consolidated Input Override'!K7>0),'Consolidated Input Override'!K7,'Consolidated Input'!K7) -> 0.085
A8: NES | B8: EA/NRW environmental programme (WINEP/NEP) - Water Framework Directive; (WINEP/NEP) water totex - Total | C8: £m | D8: =IF(('Consolidated Input Override'!D8>0),'Consolidated Input Override'!D8,'Consolidated Input'!D8) -> 0 | E8: =IF(('Consolidated Input Override'!E8>0),'Consolidated Input Override'!E8,'Consolidated Input'!E8) -> 0.052 | F8: =IF(('Consolidated Input Override'!F8>0),'Consolidated Input Override'!F8,'Consolidated Input'!F8) -> 1.688 | G8: =IF(('Consolidated Input Override'!G8>0),'Consolidated Input Override'!G8,'Consolidated Input'!G8) -> 1.571 | H8: =IF(('Consolidated Input Override'!H8>0),'Consolidated Input Override'!H8,'Consolidated Input'!H8) -> 1.433 | I8: =IF(('Consolidated Input Override'!I8>0),'Consolidated Input Override'!I8,'Consolidated Input'!I8) -> 1.476 | J8: =IF(('Consolidated Input Override'!J8>0),'Consolidated Input Override'!J8,'Consolidated Input'!J8) -> 1.433 | K8: =IF(('Consolidated Input Override'!K8>0),'Consolidated Input Override'!K8,'Consolidated Input'!K8) -> 7.653
A9: SVE | B9: EA/NRW environmental programme (WINEP/NEP) - Water Framework Directive; (WINEP/NEP) water totex - Total | C9: £m | D9: =IF(('Consolidated Input Override'!D9>0),'Consolidated Input Override'!D9,'Consolidated Input'!D9) -> 0 | E9: =IF(('Consolidated Input Override'!E9>0),'Consolidated Input Override'!E9,'Consolidated Input'!E9) -> 11.13518816 | F9: =IF(('Consolidated Input Override'!F9>0),'Consolidated Input Override'!F9,'Consolidated Input'!F9) -> 52.472 | G9: =IF(('Consolidated Input Override'!G9>0),'Consolidated Input Override'!G9,'Consolidated Input'!G9) -> 67.937 | H9: =IF(('Consolidated Input Override'!H9>0),'Consolidated Input Override'!H9,'Consolidated Input'!H9) -> 83.747 | I9: =IF(('Consolidated Input Override'!I9>0),'Consolidated Input Override'!I9,'Consolidated Input'!I9) -> 83.227 | J9: =IF(('Consolidated Input Override'!J9>0),'Consolidated Input Override'!J9,'Consolidated Input'!J9) -> 30.639 | K9: =IF(('Consolidated Input Override'!K9>0),'Consolidated Input Override'!K9,'Consolidated Input'!K9) -> 329.1571882
A10: SWB | B10: EA/NRW environmental programme (WINEP/NEP) - Water Framework Directive; (WINEP/NEP) water totex - Total | C10: £m | D10: =IF(('Consolidated Input Override'!D10>0),'Consolidated Input Override'!D10,'Consolidated Input'!D10) -> 0 | E10: =IF(('Consolidated Input Override'!E10>0),'Consolidated Input Override'!E10,'Consolidated Input'!E10) -> 0 | F10: =IF(('Consolidated Input Override'!F10>0),'Consolidated Input Override'!F10,'Consolidated Input'!F10) -> 1.250202 | G10: =IF(('Consolidated Input Override'!G10>0),'Consolidated Input Override'!G10,'Consolidated Input'!G10) -> 1.250202 | H10: =IF(('Consolidated Input Override'!H10>0),'Consolidated Input Override'!H10,'Consolidated Input'!H10) -> 1.318874 | I10: =IF(('Consolidated Input Override'!I10>0),'Consolidated Input Override'!I10,'Consolidated Input'!I10) -> 1.318874 | J10: =IF(('Consolidated Input Override'!J10>0),'Consolidated Input Override'!J10,'Consolidated Input'!J10) -> 1.318874 | K10: =IF(('Consolidated Input Override'!K10>0),'Consolidated Input Override'!K10,'Consolidated Input'!K10) -> 6.457026
A11: SRN | B11: EA/NRW environmental programme (WINEP/NEP) - Water Framework Directive; (WINEP/NEP) water totex - Total | C11: £m | D11: =IF(('Consolidated Input Override'!D11>0),'Consolidated Input Override'!D11,'Consolidated Input'!D11) -> 0 | E11: =IF(('Consolidated Input Override'!E11>0),'Consolidated Input Override'!E11,'Consolidated Input'!E11) -> 0 | F11: =IF(('Consolidated Input Override'!F11>0),'Consolidated Input Override'!F11,'Consolidated Input'!F11) -> 1.645 | G11: =IF(('Consolidated Input Override'!G11>0),'Consolidated Input Override'!G11,'Consolidated Input'!G11) -> 1.645 | H11: =IF(('Consolidated Input Override'!H11>0),'Consolidated Input Override'!H11,'Consolidated Input'!H11) -> 1.645 | I11: =IF(('Consolidated Input Override'!I11>0),'Consolidated Input Override'!I11,'Consolidated Input'!I11) -> 1.645 | J11: =IF(('Consolidated Input Override'!J11>0),'Consolidated Input Override'!J11,'Consolidated Input'!J11) -> 1.645 | K11: =IF(('Consolidated Input Override'!K11>0),'Consolidated Input Override'!K11,'Consolidated Input'!K11) -> 8.225
A12: TMS | B12: EA/NRW environmental programme (WINEP/NEP) - Water Framework Directive; (WINEP/NEP) water totex - Total | C12: £m | D12: =IF(('Consolidated Input Override'!D12>0),'Consolidated Input Override'!D12,'Consolidated Input'!D12) -> 0 | E12: =IF(('Consolidated Input Override'!E12>0),'Consolidated Input Override'!E12,'Consolidated Input'!E12) -> 0 | F12: =IF(('Consolidated Input Override'!F12>0),'Consolidated Input Override'!F12,'Consolidated Input'!F12) -> 2.459 | G12: =IF(('Consolidated Input Override'!G12>0),'Consolidated Input Override'!G12,'Consolidated Input'!G12) -> 4.121 | H12: =IF(('Consolidated Input Override'!H12>0),'Consolidated Input Override'!H12,'Consolidated Input'!H12) -> 5.47 | I12: =IF(('Consolidated Input Override'!I12>0),'Consolidated Input Override'!I12,'Consolidated Input'!I12) -> 11.236 | J12: =IF(('Consolidated Input Override'!J12>0),'Consolidated Input Override'!J12,'Consolidated Input'!J12) -> 31.278 | K12: =IF(('Consolidated Input Override'!K12>0),'Consolidated Input Override'!K12,'Consolidated Input'!K12) -> 54.564
A13: NWT | B13: EA/NRW environmental programme (WINEP/NEP) - Water Framework Directive; (WINEP/NEP) water totex - Total | C13: £m | D13: =IF(('Consolidated Input Override'!D13>0),'Consolidated Input Override'!D13,'Consolidated Input'!D13) -> 0.000378275606 | E13: =IF(('Consolidated Input Override'!E13>0),'Consolidated Input Override'!E13,'Consolidated Input'!E13) -> 0.3596989704 | F13: =IF(('Consolidated Input Override'!F13>0),'Consolidated Input Override'!F13,'Consolidated Input'!F13) -> 6.6422425 | G13: =IF(('Consolidated Input Override'!G13>0),'Consolidated Input Override'!G13,'Consolidated Input'!G13) -> 1.710822173 | H13: =IF(('Consolidated Input Override'!H13>0),'Consolidated Input Override'!H13,'Consolidated Input'!H13) -> 8.014635686 | I13: =IF(('Consolidated Input Override'!I13>0),'Consolidated Input Override'!I13,'Consolidated Input'!I13) -> 3.1244044 | J13: =IF(('Consolidated Input Override'!J13>0),'Consolidated Input Override'!J13,'Consolidated Input'!J13) -> 0.9113212558 | K13: =IF(('Consolidated Input Override'!K13>0),'Consolidated Input Override'!K13,'Consolidated Input'!K13) -> 20.76350326
A14: WSX | B14: EA/NRW environmental programme (WINEP/NEP) - Water Framework Directive; (WINEP/NEP) water totex - Total | C14: £m | D14: =IF(('Consolidated Input Override'!D14>0),'Consolidated Input Override'!D14,'Consolidated Input'!D14) -> 0 | E14: =IF(('Consolidated Input Override'!E14>0),'Consolidated Input Override'!E14,'Consolidated Input'!E14) -> 0 | F14: =IF(('Consolidated Input Override'!F14>0),'Consolidated Input Override'!F14,'Consolidated Input'!F14) -> 0.681927 | G14: =IF(('Consolidated Input Override'!G14>0),'Consolidated Input Override'!G14,'Consolidated Input'!G14) -> 0.131899 | H14: =IF(('Consolidated Input Override'!H14>0),'Consolidated Input Override'!H14,'Consolidated Input'!H14) -> 0.247294 | I14: =IF(('Consolidated Input Override'!I14>0),'Consolidated Input Override'!I14,'Consolidated Input'!I14) -> 0.74959 | J14: =IF(('Consolidated Input Override'!J14>0),'Consolidated Input Override'!J14,'Consolidated Input'!J14) -> 1.751668 | K14: =IF(('Consolidated Input Override'!K14>0),'Consolidated Input Override'!K14,'Consolidated Input'!K14) -> 3.562378
A15: YKY | B15: EA/NRW environmental programme (WINEP/NEP) - Water Framework Directive; (WINEP/NEP) water totex - Total | C15: £m | D15: =IF(('Consolidated Input Override'!D15>0),'Consolidated Input Override'!D15,'Consolidated Input'!D15) -> 0 | E15: =IF(('Consolidated Input Override'!E15>0),'Consolidated Input Override'!E15,'Consolidated Input'!E15) -> 0 | F15: =IF(('Consolidated Input Override'!F15>0),'Consolidated Input Override'!F15,'Consolidated Input'!F15) -> 1.005 | G15: =IF(('Consolidated Input Override'!G15>0),'Consolidated Input Override'!G15,'Consolidated Input'!G15) -> 1.083 | H15: =IF(('Consolidated Input Override'!H15>0),'Consolidated Input Override'!H15,'Consolidated Input'!H15) -> 2.118 | I15: =IF(('Consolidated Input Override'!I15>0),'Consolidated Input Override'!I15,'Consolidated Input'!I15) -> 2.3841664 | J15: =IF(('Consolidated Input Override'!J15>0),'Consolidated Input Override'!J15,'Consolidated Input'!J15) -> 1.7351424 | K15: =IF(('Consolidated Input Override'!K15>0),'Consolidated Input Override'!K15,'Consolidated Input'!K15) -> 8.3253088
A16: AFW | B16: EA/NRW environmental programme (WINEP/NEP) - Water Framework Directive; (WINEP/NEP) water totex - Total | C16: £m | D16: =IF(('Consolidated Input Override'!D16>0),'Consolidated Input Override'!D16,'Consolidated Input'!D16) -> 0.224 | E16: =IF(('Consolidated Input Override'!E16>0),'Consolidated Input Override'!E16,'Consolidated Input'!E16) -> 1.044 | F16: =IF(('Consolidated Input Override'!F16>0),'Consolidated Input Override'!F16,'Consolidated Input'!F16) -> 19.023 | G16: =IF(('Consolidated Input Override'!G16>0),'Consolidated Input Override'!G16,'Consolidated Input'!G16) -> 27.929 | H16: =IF(('Consolidated Input Override'!H16>0),'Consolidated Input Override'!H16,'Consolidated Input'!H16) -> 35.194 | I16: =IF(('Consolidated Input Override'!I16>0),'Consolidated Input Override'!I16,'Consolidated Input'!I16) -> 28.92 | J16: =IF(('Consolidated Input Override'!J16>0),'Consolidated Input Override'!J16,'Consolidated Input'!J16) -> 28.653 | K16: =IF(('Consolidated Input Override'!K16>0),'Consolidated Input Override'!K16,'Consolidated Input'!K16) -> 140.987
A17: BRL | B17: EA/NRW environmental programme (WINEP/NEP) - Water Framework Directive; (WINEP/NEP) water totex - Total | C17: £m | D17: =IF(('Consolidated Input Override'!D17>0),'Consolidated Input Override'!D17,'Consolidated Input'!D17) -> 0 | E17: =IF(('Consolidated Input Override'!E17>0),'Consolidated Input Override'!E17,'Consolidated Input'!E17) -> 0 | F17: =IF(('Consolidated Input Override'!F17>0),'Consolidated Input Override'!F17,'Consolidated Input'!F17) -> 0.5270598158 | G17: =IF(('Consolidated Input Override'!G17>0),'Consolidated Input Override'!G17,'Consolidated Input'!G17) -> 0.5270598158 | H17: =IF(('Consolidated Input Override'!H17>0),'Consolidated Input Override'!H17,'Consolidated Input'!H17) -> 0.527058 | I17: =IF(('Consolidated Input Override'!I17>0),'Consolidated Input Override'!I17,'Consolidated Input'!I17) -> 0.527058 | J17: =IF(('Consolidated Input Override'!J17>0),'Consolidated Input Override'!J17,'Consolidated Input'!J17) -> 0.527058 | K17: =IF(('Consolidated Input Override'!K17>0),'Consolidated Input Override'!K17,'Consolidated Input'!K17) -> 2.635293632
A18: PRT | B18: EA/NRW environmental programme (WINEP/NEP) - Water Framework Directive; (WINEP/NEP) water totex - Total | C18: £m | D18: =IF(('Consolidated Input Override'!D18>0),'Consolidated Input Override'!D18,'Consolidated Input'!D18) -> 0 | E18: =IF(('Consolidated Input Override'!E18>0),'Consolidated Input Override'!E18,'Consolidated Input'!E18) -> 0 | F18: =IF(('Consolidated Input Override'!F18>0),'Consolidated Input Override'!F18,'Consolidated Input'!F18) -> 0 | G18: =IF(('Consolidated Input Override'!G18>0),'Consolidated Input Override'!G18,'Consolidated Input'!G18) -> 0 | H18: =IF(('Consolidated Input Override'!H18>0),'Consolidated Input Override'!H18,'Consolidated Input'!H18) -> 0 | I18: =IF(('Consolidated Input Override'!I18>0),'Consolidated Input Override'!I18,'Consolidated Input'!I18) -> 0 | J18: =IF(('Consolidated Input Override'!J18>0),'Consolidated Input Override'!J18,'Consolidated Input'!J18) -> 0.04545 | K18: =IF(('Consolidated Input Override'!K18>0),'Consolidated Input Override'!K18,'Consolidated Input'!K18) -> 0.04545
A19: SEW | B19: EA/NRW environmental programme (WINEP/NEP) - Water Framework Directive; (WINEP/NEP) water totex - Total | C19: £m | D19: =IF(('Consolidated Input Override'!D19>0),'Consolidated Input Override'!D19,'Consolidated Input'!D19) -> 0 | E19: =IF(('Consolidated Input Override'!E19>0),'Consolidated Input Override'!E19,'Consolidated Input'!E19) -> 0 | F19: =IF(('Consolidated Input Override'!F19>0),'Consolidated Input Override'!F19,'Consolidated Input'!F19) -> 1.091858307 | G19: =IF(('Consolidated Input Override'!G19>0),'Consolidated Input Override'!G19,'Consolidated Input'!G19) -> 1.681960174 | H19: =IF(('Consolidated Input Override'!H19>0),'Consolidated Input Override'!H19,'Consolidated Input'!H19) -> 3.21146983 | I19: =IF(('Consolidated Input Override'!I19>0),'Consolidated Input Override'!I19,'Consolidated Input'!I19) -> 1.414394867 | J19: =IF(('Consolidated Input Override'!J19>0),'Consolidated Input Override'!J19,'Consolidated Input'!J19) -> 0.7020320584 | K19: =IF(('Consolidated Input Override'!K19>0),'Consolidated Input Override'!K19,'Consolidated Input'!K19) -> 8.101715236
A20: SSC | B20: EA/NRW environmental programme (WINEP/NEP) - Water Framework Directive; (WINEP/NEP) water totex - Total | C20: £m | D20: =IF(('Consolidated Input Override'!D20>0),'Consolidated Input Override'!D20,'Consolidated Input'!D20) -> 0 | E20: =IF(('Consolidated Input Override'!E20>0),'Consolidated Input Override'!E20,'Consolidated Input'!E20) -> 0 | F20: =IF(('Consolidated Input Override'!F20>0),'Consolidated Input Override'!F20,'Consolidated Input'!F20) -> 0.0375152384 | G20: =IF(('Consolidated Input Override'!G20>0),'Consolidated Input Override'!G20,'Consolidated Input'!G20) -> 0.19192771 | H20: =IF(('Consolidated Input Override'!H20>0),'Consolidated Input Override'!H20,'Consolidated Input'!H20) -> 0.6294580174 | I20: =IF(('Consolidated Input Override'!I20>0),'Consolidated Input Override'!I20,'Consolidated Input'!I20) -> 0 | J20: =IF(('Consolidated Input Override'!J20>0),'Consolidated Input Override'!J20,'Consolidated Input'!J20) -> 0 | K20: =IF(('Consolidated Input Override'!K20>0),'Consolidated Input Override'!K20,'Consolidated Input'!K20) -> 0.8589009658
A21: SES | B21: EA/NRW environmental programme (WINEP/NEP) - Water Framework Directive; (WINEP/NEP) water totex - Total | C21: £m | D21: =IF(('Consolidated Input Override'!D21>0),'Consolidated Input Override'!D21,'Consolidated Input'!D21) -> 0 | E21: =IF(('Consolidated Input Override'!E21>0),'Consolidated Input Override'!E21,'Consolidated Input'!E21) -> 0 | F21: =IF(('Consolidated Input Override'!F21>0),'Consolidated Input Override'!F21,'Consolidated Input'!F21) -> 0 | G21: =IF(('Consolidated Input Override'!G21>0),'Consolidated Input Override'!G21,'Consolidated Input'!G21) -> 0 | H21: =IF(('Consolidated Input Override'!H21>0),'Consolidated Input Override'!H21,'Consolidated Input'!H21) -> 0.037 | I21: =IF(('Consolidated Input Override'!I21>0),'Consolidated Input Override'!I21,'Consolidated Input'!I21) -> 0.08 | J21: =IF(('Consolidated Input Override'!J21>0),'Consolidated Input Override'!J21,'Consolidated Input'!J21) -> 0.1 | K21: =IF(('Consolidated Input Override'!K21>0),'Consolidated Input Override'!K21,'Consolidated Input'!K21) -> 0.217

Sheet Analysis >>

Sheet Unit costs
A1: =RIGHT(CELL("filename", $A$1), LEN(CELL("filename", $A$1)) - SEARCH("]", CELL("filename", $A$1))) -> 
A4: Acronym | B4: Unit Cost per WINEP WFD Action (£m)
A5: ANH | B5: ='Final Input'!$K5/Inputs_Queries!B5 -> 2.6347
A6: WSH | B6: ='Final Input'!$K6/Inputs_Queries!B6 -> 0.56275
A7: HDD | B7: ='Final Input'!$K7/Inputs_Queries!B7 -> 0.0425
A8: NES | B8: ='Final Input'!$K8/Inputs_Queries!B8 -> 0.3644285714
A9: SVE | B9: ='Final Input'!$K9/Inputs_Queries!B9 -> 3.577795524
A10: SWB | B10: ='Final Input'!$K10/Inputs_Queries!B10 -> 0.80712825
A11: SRN | B11: ='Final Input'!$K11/Inputs_Queries!B11 -> 2.05625
A12: TMS | B12: ='Final Input'!$K12/Inputs_Queries!B12 -> 2.7282
A13: NWT | B13: ='Final Input'!$K13/Inputs_Queries!B13 -> 0.6488594769
A14: WSX | B14: ='Final Input'!$K14/Inputs_Queries!B14 -> 0.5937296667
A15: YKY | B15: ='Final Input'!$K15/Inputs_Queries!B15 -> 0.5946649143
A16: AFW | B16: ='Final Input'!$K16/Inputs_Queries!B16 -> 1.879826667
A17: BRL | B17: ='Final Input'!$K17/Inputs_Queries!B19 -> 1.317646816
A18: PRT | B18: ='Final Input'!$K18/Inputs_Queries!B20 -> 0.04545
A19: SEW | B19: ='Final Input'!$K19/Inputs_Queries!B21 -> 1.012714405
A20: SSC | B20: ='Final Input'!$K20/Inputs_Queries!B22 -> 0.8589009658
A21: SES | B21: ='Final Input'!$K21/Inputs_Queries!B23 -> 0.217
A22: Median | B22: =MEDIAN(B5:B21) -> 0.80712825

Sheet Interconnector Efficiency
A1: =RIGHT(CELL("filename", $A$1), LEN(CELL("filename", $A$1)) - SEARCH("]", CELL("filename", $A$1))) -> 
U3: Outturn model: | W3: Reference:
A4: Scheme ID | B4: Time Horizon | C4: Company Name | D4: Scheme Name | E4: Total Cost (£m) | F4: AMP8 Cost (£m) | G4: Log Cost | H4: AMP8 Benefit (Ml/d) | I4: Total Benefit (Ml/d) | J4: Log Benefit | K4: AMP8% | L4: Length (km) | M4: Log Length | N4: Funding Location | O4: Forecast model allowance (£m) | P4: Outturn model allowance (£m) | Q4: Triangulated allowance (£m) | R4: Efficiency | S4: Reference | U4: Log benefit coefficient: | V4: 0.719 | W4: Cell E15 in 'Model calculations' tab in 'PR24CA92 - W - Supply Interconnectors'
A5: 1 | B5: Forecast | C5: SVE | D5: Stourbridge to Goldthorne | E5: 8.72 | F5: 8.72 | G5: =LN(E5) -> 2.165619238 | H5: 4.5 | I5: 4.5 | J5: =LN(I5) -> 1.504077397 | K5: 1 | L5: 8.2 | M5: =LN(L5) -> 2.104134154 | N5: WFD | O5: =(EXP($V$12+($J5*$V$10)+($M5*$V$11)))*$V$13 -> 15.89060069 | P5: =(EXP($V$6+($J5*$V$4)+($M5*$V$5)))*$V$7 -> 13.55097973 | Q5: =(0.5*$O5)+(0.5*$P5) -> 14.72079021 | R5: =IF(E5<Q5,"Efficient","Inefficient") -> Efficient | S5: OFW-OBQ-SVE-149 | U5: Log length coefficient: | V5: 0.433 | W5: Cell D15 in 'Model calculations' tab in 'PR24CA92 - W - Supply Interconnectors'
A6: =A5+1 -> 2 | B6: Forecast | C6: SVE | D6: Miskhill to Papplewick | E6: 6.994 | F6: 6.994 | G6: 1.945052639 | H6: 4 | I6: 4 | J6: =LN(I6) -> 1.386294361 | K6: 1 | L6: 5.81 | M6: 1.759580571 | N6: WFD | O6: 12.06116096 | P6: 10.72503948 | Q6: 11.39310022 | R6: =IF(E6<Q6,"Efficient","Inefficient") -> Efficient | S6: OFW-OBQ-SVE-149 | U6: Intercept: | V6: 0.465 | W6: Cell F15 in 'Model calculations' tab in 'PR24CA92 - W - Supply Interconnectors'
A7: =A6+1 -> 3 | B7: Forecast | C7: SVE | D7: Whitchurch & Wem to Shelton | E7: 14.144 | F7: 14.144 | G7: 2.649290506 | H7: 11.6 | I7: 11.6 | J7: 2.451005098 | K7: 1 | L7: 12.25 | M7: 2.505525937 | N7: WFD + Resilience | O7: 37.35823664 | P7: 31.85207436 | Q7: 34.6051555 | R7: Efficient | S7: OFW-OBQ-SVE-203, OFW-OBQ-SVE-149 | U7: Log bias: | V7: 1.1606 | W7: Cell P20 in 'Model calculations' tab in 'PR24CA92 - W - Supply Interconnectors'
A8: 4 | B8: Forecast | C8: SVE | D8: Boughton to Redhill | E8: 0.31 | F8: 0.31 | G8: -1.171182982 | H8: 6 | I8: 6 | J8: 1.791759469 | K8: 1 | L8: 0.2 | M8: -1.609437912 | N8: WFD | O8: 2.27051421 | P8: 3.337845554 | Q8: 2.804179882 | R8: Efficient | S8: OFW-OBQ-SVE-149
A9: 5 | B9: Forecast | C9: SVE | D9: Ogston Old Works to Whiteborough | E9: 0.285621 | F9: 0.285621 | G9: -1.253089522 | H9: 7.5 | I9: 7.5 | J9: 2.014903021 | K9: 1 | L9: 0.1 | M9: -2.302585093 | N9: WFD | O9: 1.765613641 | P9: 2.90267591 | Q9: 2.334144776 | R9: Efficient | S9: OFW-OBQ-SVE-149 | U9: Forecast model: | W9: Reference:
A10: 6 | B10: Forecast | C10: SVE | D10: Coventry South Pipeline | E10: 36.919 | F10: 36.919 | G10: 3.608726324 | H10: 13 | I10: 13 | J10: 2.564949357 | K10: 1 | L10: 17.63 | M10: 2.869601996 | N10: WFD + Resilience | O10: 49.64940538 | P10: 40.47454934 | Q10: 45.06197736 | R10: Efficient | S10: OFW-OBQ-SVE-203, OFW-OBQ-SVE-149 | U10: Log benefit coefficient: | V10: 0.659 | W10: Cell E8 in 'Model calculations' in 'PR24CA92 - W - Supply Interconnectors'
A11: 7 | B11: Forecast | C11: TMS | D11: Netley Mill sustainability reduction | E11: 28.435 | F11: 28.435 | G11: 3.347620781 | H11: 5 | I11: 5 | J11: 1.609437912 | K11: 1 | L11: 9.5 | M11: 2.251291799 | N11: WFD | O11: 18.53713483 | P11: 15.57913191 | Q11: =(0.5*$O11)+(0.5*$P11) -> 17.05813337 | R11: Inefficient | S11: OFW-OBQ-TMS-208, OFW-OBQ-TMS-244, OFW-REP-TMS-075. | U11: Log length coefficient: | V11: 0.575 | W11: Cell D8 in 'Model calculations' in 'PR24CA92 - W - Supply Interconnectors'
A12: 8 | B12: Forecast | C12: AFW | D12: Harefield to Harrow interconnector | E12: 28.628 | F12: 28.628 | G12: =LN(E12) -> 3.35438526 | H12: 30 | I12: 30 | J12: 3.401197382 | K12: 1 | L12: 10.7 | M12: 2.370243741 | N12: WFD | O12: 64.64707532 | P12: 59.48436889 | Q12: 62.0657221 | R12: Efficient | S12: OFW-OBQ-AFW-090, OFW-OBQ-AFW-105 | U12: Intercept: | V12: 0.543 | W12: Cell F8 in 'Model calculations' in 'PR24CA92 - W - Supply Interconnectors'
A13: 9 | B13: Forecast | C13: AFW | D13: Heronsgate to Bovingdon | E13: 35.511 | F13: 35.511 | G13: =LN(E13) -> 3.569842508 | H13: 40 | I13: 40 | J13: 3.688879454 | K13: 1 | L13: 12.8 | M13: 2.549445171 | N13: WFD | O13: 86.62306964 | P13: 79.05558394 | Q13: 82.83932679 | R13: Efficient | S13: OFW-OBQ-AFW-090, OFW-OBQ-AFW-105 | U13: Log bias: | V13: 1.0219 | W13: Cell J23 in 'Model calculations' in 'PR24CA92 - W - Supply Interconnectors'
A14: 10 | B14: Forecast | C14: AFW | D14: Local Replacement schemes WRZ3 | E14: 23.534 | F14: 23.534 | G14: =LN(E14) -> 3.158446184 | H14: 36.82 | I14: 36.82 | J14: 3.606041176 | K14: 1 | L14: 13.76 | M14: 2.621765833 | N14: WFD | O14: 85.5037409 | P14: 76.85383135 | Q14: 81.17878612 | R14: Efficient | S14: OFW-OBQ-AFW-090, OFW-OBQ-AFW-105
R16: Note that these are capacity values (in H & I) - rather than WAFU benefit as used in Supply interconnector for setting allowances. Capacity is likely to be a higher value than WAFU and schemes look more efficient on this basis.

Sheet Materiality & shallow dive
A1: =RIGHT(CELL("filename", $A$1), LEN(CELL("filename", $A$1)) - SEARCH("]", CELL("filename", $A$1))) -> 
B5: Company | C5: Total Totex for Price control (£m) | D5: Totex requested in business plan (£m) | E5: Materiality (%) | F5: Type of assessment | G5: Efficiency factor | H5: Shallow dive output | I5: Justification
A6: 1 | B6: ANH | C6: =INDEX(Water_totex!F:F,MATCH(B6,Water_totex!A:A,0)) -> 4187.353839 | D6: =VLOOKUP(B6,'Final Input'!$A$4:$K$21,11,0) -> 26.347 | E6: =D6/C6 -> 0.006292040513 | F6: Deep dive | G6: =VLOOKUP(B6,'F_Inputs SDEff'!$A$8:$K$24,11,0) -> 0.02 | I6: Material cost request. See Deep Dive 'ANH' tab.
A7: 2 | B7: WSH | C7: =INDEX(Water_totex!F:F,MATCH(B7,Water_totex!A:A,0)) -> 2365.636 | D7: =VLOOKUP(B7,'Final Input'!$A$4:$K$21,11,0) -> 2.251 | E7: =D7/C7 -> 0.00095154115 | F7: Shallow dive | G7: =VLOOKUP(B7,'F_Inputs SDEff'!$A$8:$K$24,11,0) -> 0.01 | H7: =D7*(1-G7) -> 2.22849 | I7: Below shallow dive threshold, company specific efficiency challenge applied.
A8: 3 | B8: HDD | C8: =INDEX(Water_totex!F:F,MATCH(B8,Water_totex!A:A,0)) -> 202.9929059 | D8: =VLOOKUP(B8,'Final Input'!$A$4:$K$21,11,0) -> 0.085 | E8: 0.000418733845 | F8: Shallow dive | G8: =VLOOKUP(B8,'F_Inputs SDEff'!$A$8:$K$24,11,0) -> 0 | H8: =D8*(1-G8) -> 0.085 | I8: Below shallow dive threshold, company specific efficiency challenge applied.
A9: 4 | B9: NES | C9: =INDEX(Water_totex!F:F,MATCH(B9,Water_totex!A:A,0)) -> 3081.858466 | D9: =VLOOKUP(B9,'Final Input'!$A$4:$K$21,11,0) -> 7.653 | E9: 0.002483241877 | F9: Shallow dive | G9: =VLOOKUP(B9,'F_Inputs SDEff'!$A$8:$K$24,11,0) -> 0 | H9: =D9*(1-G9) -> 7.653 | I9: Below shallow dive threshold, company specific efficiency challenge applied.
A10: 5 | B10: SVE | C10: =INDEX(Water_totex!F:F,MATCH(B10,Water_totex!A:A,0)) -> 5623.042444 | D10: =VLOOKUP(B10,'Final Input'!$A$4:$K$21,11,0) -> 329.1571882 | E10: 0.05853720498 | F10: Deep dive | G10: =VLOOKUP(B10,'F_Inputs SDEff'!$A$8:$K$24,11,0) -> 0 | I10: Material cost request. See Deep Dive 'SVE' tab.
A11: 6 | B11: SWB | C11: =INDEX(Water_totex!F:F,MATCH(B11,Water_totex!A:A,0)) -> 1570.211528 | D11: =VLOOKUP(B11,'Final Input'!$A$4:$K$21,11,0) -> 6.457026 | E11: 0.004112201372 | F11: Shallow dive | G11: =VLOOKUP(B11,'F_Inputs SDEff'!$A$8:$K$24,11,0) -> 0.1 | H11: 5.8113234 | I11: Below shallow dive threshold, company specific efficiency challenge applied.
A12: 7 | B12: SRN | C12: =INDEX(Water_totex!F:F,MATCH(B12,Water_totex!A:A,0)) -> 3614.763 | D12: =VLOOKUP(B12,'Final Input'!$A$4:$K$21,11,0) -> 8.225 | E12: 0.002275391222 | F12: Shallow dive | G12: =VLOOKUP(B12,'F_Inputs SDEff'!$A$8:$K$24,11,0) -> 0.1 | H12: 7.4025 | I12: Below shallow dive threshold, company specific efficiency challenge applied.
A13: 8 | B13: TMS | C13: =INDEX(Water_totex!F:F,MATCH(B13,Water_totex!A:A,0)) -> 10162.16273 | D13: =VLOOKUP(B13,'Final Input'!$A$4:$K$21,11,0) -> 54.564 | E13: 0.005369329488 | F13: Deep dive | G13: =VLOOKUP(B13,'F_Inputs SDEff'!$A$8:$K$24,11,0) -> 0 | I13: Material cost request. See Deep Dive 'TMS' tab.
A14: 9 | B14: NWT | C14: =INDEX(Water_totex!F:F,MATCH(B14,Water_totex!A:A,0)) -> 4204.144554 | D14: =VLOOKUP(B14,'Final Input'!$A$4:$K$21,11,0) -> 20.76350326 | E14: =D14/C14 -> 0.004938817635 | F14: Shallow dive | G14: =VLOOKUP(B14,'F_Inputs SDEff'!$A$8:$K$24,11,0) -> 0 | H14: =D14*(1-G14) -> 20.76350326 | I14: Below shallow dive threshold, company specific efficiency challenge applied.
A15: 10 | B15: WSX | C15: =INDEX(Water_totex!F:F,MATCH(B15,Water_totex!A:A,0)) -> 1136.356395 | D15: =VLOOKUP(B15,'Final Input'!$A$4:$K$21,11,0) -> 3.562378 | E15: 0.003134912618 | F15: Shallow dive | G15: =VLOOKUP(B15,'F_Inputs SDEff'!$A$8:$K$24,11,0) -> 0.07 | H15: 3.31301154 | I15: Below shallow dive threshold, company specific efficiency challenge applied.
A16: 11 | B16: YKY | C16: =INDEX(Water_totex!F:F,MATCH(B16,Water_totex!A:A,0)) -> 3120.05052 | D16: =VLOOKUP(B16,'Final Input'!$A$4:$K$21,11,0) -> 8.3253088 | E16: 0.002668324999 | F16: Shallow dive | G16: =VLOOKUP(B16,'F_Inputs SDEff'!$A$8:$K$24,11,0) -> 0 | H16: 8.3253088 | I16: Below shallow dive threshold, company specific efficiency challenge applied.
A17: 12 | B17: AFW | C17: =INDEX(Water_totex!F:F,MATCH(B17,Water_totex!A:A,0)) -> 2157.018576 | D17: =VLOOKUP(B17,'Final Input'!$A$4:$K$21,11,0) -> 140.987 | E17: 0.06536197766 | F17: Deep dive | G17: =VLOOKUP(B17,'F_Inputs SDEff'!$A$8:$K$24,11,0) -> 0.03 | I17: Material cost request. See Deep Dive 'AFW SR' and 'AFW CNBS' tabs.
A18: 13 | B18: BRL | C18: =INDEX(Water_totex!F:F,MATCH(B18,Water_totex!A:A,0)) -> 688.9547248 | D18: =VLOOKUP(B18,'Final Input'!$A$4:$K$21,11,0) -> 2.635293632 | E18: 0.003825060685 | F18: Shallow dive | G18: =VLOOKUP(B18,'F_Inputs SDEff'!$A$8:$K$24,11,0) -> 0.06 | H18: 2.477176014 | I18: Below shallow dive threshold, company specific efficiency challenge applied.
A19: 14 | B19: PRT | C19: =INDEX(Water_totex!F:F,MATCH(B19,Water_totex!A:A,0)) -> 341.6692826 | D19: =VLOOKUP(B19,'Final Input'!$A$4:$K$21,11,0) -> 0.04545 | E19: 0.0001330233718 | F19: Shallow dive | G19: =VLOOKUP(B19,'F_Inputs SDEff'!$A$8:$K$24,11,0) -> 0.07 | H19: 0.0422685 | I19: Below shallow dive threshold, company specific efficiency challenge applied.
A20: 15 | B20: SEW | C20: =INDEX(Water_totex!F:F,MATCH(B20,Water_totex!A:A,0)) -> 1862.837225 | D20: =VLOOKUP(B20,'Final Input'!$A$4:$K$21,11,0) -> 8.101715236 | E20: 0.004349126767 | F20: Deep dive | G20: =VLOOKUP(B20,'F_Inputs SDEff'!$A$8:$K$24,11,0) -> 0.1 | I20: Material cost request. See Deep Dive 'SEW' tab.
A21: 16 | B21: SSC | C21: =INDEX(Water_totex!F:F,MATCH(B21,Water_totex!A:A,0)) -> 737.9594339 | D21: =VLOOKUP(B21,'Final Input'!$A$4:$K$21,11,0) -> 0.8589009658 | E21: 0.001163886423 | F21: Shallow dive | G21: =VLOOKUP(B21,'F_Inputs SDEff'!$A$8:$K$24,11,0) -> 0 | H21: 0.8589009658 | I21: Below shallow dive threshold, company specific efficiency challenge applied.
A22: 17 | B22: SES | C22: =INDEX(Water_totex!F:F,MATCH(B22,Water_totex!A:A,0)) -> 377.6353912 | D22: =VLOOKUP(B22,'Final Input'!$A$4:$K$21,11,0) -> 0.217 | E22: 0.0005746283454 | F22: Shallow dive | G22: =VLOOKUP(B22,'F_Inputs SDEff'!$A$8:$K$24,11,0) -> 0.1 | H22: 0.1953 | I22: Below shallow dive threshold, company specific efficiency challenge applied.
B23: Total | C23: =SUM(C6:C22) -> 45434.64701 | D23: =SUM(D6:D22) -> 620.2357641 | H23: =SUM(H6:H22) -> 59.15578248

Sheet Deep Dives>>

Sheet ANH
A1: Deep Dive - Anglian Water | I1: Draft determination:
B3: Company | C3: ANH | G3: Pass | I3: Company | J3: ANH
B4: Scheme/Programme name | C4: WINEP Water Framework Directive (WFD) | G4: Partial pass | I4: Scheme/Programme name | J4: WINEP Water Framework Directive (WFD)
B5: Scheme/Programme overview | C5: Nine river restoration, river support schemes or combined river support and restoration schemes. Individual scope per action provided for each scheme. Solutions include: enhanced natural recovery measures, channel enhancement measures, and channel restoration measures; water main/pipework, pumps and telemetry, borehole shaft, kiosk, fencing installations; Backwater / in-channel wetland, channel dredging, tree planting, structures to control flow split into bypass/ old channel, ensure fish passage.​ One river monitoring action which covers 7 rivers and involves monitoring of the benefits of WFD schemes across 206 locations across the AMP. | G5: Fail | I5: Scheme/Programme overview | J5: Nine river restoration, river support schemes or combined river support and restoration schemes. Individual scope per action provided for each scheme. Solutions include: enhanced natural recovery measures, channel enhancement measures, and channel restoration measures; water main/pipework, pumps and telemetry, borehole shaft, kiosk, fencing installations; Backwater / in-channel wetland, channel dredging, tree planting, structures to control flow split into bypass/ old channel, ensure fish passage.​ One river monitoring action which covers 7 rivers and involves monitoring of the benefits of WFD schemes across 206 locations across the AMP.
B6: PR24 table line allocation | C6: Water Framework Directive; (WINEP/NEP) water - CW3.18 | G6: Pass | I6: PR24 table line allocation | J6: Water Framework Directive; (WINEP/NEP) water - CW3.18
B7: Total requested in business plan (totex, £m) | C7: ='Materiality & shallow dive'!D6 -> 26.347 | G7: Minor concerns | I7: Total requested in business plan (totex, £m) | J7: 26.348
B8: Scheme/Programme value assessed in deep dive (totex, £m) | C8: ='Materiality & shallow dive'!D6 -> 26.347 | G8: Some concerns | I8: Scheme/Programme value assessed in deep dive (totex, £m) | J8: 26.348
B9: Overall adjustment | C9: =E13+E14+E15 -> 0.1 | G9: Significant concerns | I9: Overall adjustment | J9: =SUM(L13:L16) -> 0.1
B10: Totex allowance from deep dive (£m) | C10: =C8*(1-C9) -> 23.7123 | I10: Totex allowance from deep dive (£m) | J10: =J8*(1-J9) -> 23.7132
B12: Enhancement assessment criteria grouping | C12: Assessment comments | D12: Criteria decision | E12: % adjustment | F12: Reference (e.g. document and page number) | I12: Enhancement assessment criteria grouping | J12: Assessment comments | K12: Criteria decision | L12: % adjustment | M12: Reference (e.g. document and page number)
B13: Need for enhancement investment | C13: In the draft determination the proposed investment met the criteria for enhancement investment and additional customer funding. In its representation the company includes its proposed investment submitted in its October 2023 business plan, but it provides no additional supporting evidence. Therefore, we retain our draft determination approach for the final determination. | D13: Pass | E13: 0 | F13: ANH_DD_019-Ecological-quality-enhancement-strategy | I13: Need for enhancement investment | J13: Pass: The investment meets the criteria for enhancement investment and additional customer funding. The proposed investment is consistent with the company's water industry national environment programme (WINEP) schemes. The company provides sufficient evidence that all WFD investments are required to deliver new WINEP obligations that are not reflected in base allowances. Anglian Water provides a summary of the planned activities, which includes the sensitive management of river/riparian habitats, introduction of new habitat, and/or reprofiling of riverbanks and beds to improve flow dynamics and support thriving ecology. The company states these are specifically enhancement activities and do not include any base activities (e.g. routine silt jetting or dredging). The company also provides sufficient and convincing evidence to show there is no overlap with previous enhancement funding. | K13: Pass | L13: =IF(K13="Pass",0%,IF(K13="Partial pass","10% to 80%",IF(K13="Fail",100%))) -> 0 | M13: PR24 Enhancement strategies: ecological quality
B14: Best option for customers | C14: In the draft determination we did not apply an adjustment because the company provided sufficient and convincing evidence to demonstrate that the proposed investment was the best option for customers. In its representation the company includes its proposed investment submitted in its October 2023 business plan, but it provides no additional supporting evidence. Therefore, we retain our draft determination approach for the final determination. | D14: Pass | E14: 0 | F14: ANH_DD_019-Ecological-quality-enhancement-strategy | I14: Best option for customers | J14: Pass: The company provides sufficient and convincing evidence that the investment fulfils the best option for customers criteria in our final methodology. Anglian Water considers alternative options and provides sufficient and convincing evidence to demonstrate that the chosen options are the most cost beneficial. The company provides the option appraisal reports which comprise evidence of options development, shortlisting and cost-benefit analysis, which inform the preferred option selection. The company has previously discussed and agreed options with the Environment Agency and has taken forward only cost-beneficial options. The company has provided the Option Appraisal Reports alongside the enhancement case supporting narrative which provides more background to the optioneering process and cost-benefit appraisal and demonstrate that the preferred options are the most cost beneficial in comparison with alternative options. | K14: Pass | L14: =IF(K14="Pass",0%,IF(K14="Minor concerns",10%,IF(K14="Some concerns",20%,IF(K14="Significant concerns",30%)))) -> 0 | M14: PR24 Enhancement strategies: ecological quality
B15: Cost efficiency | C15: In the draft determination we had minor concerns that the proposed investment was efficient and applied an adjustment. In its representation the company provides additional evidence, however we still have minor concerns that the investment is efficient. Therefore, we retain our draft determination approach for the final determination. In the draft determination we had minor concerns that the company did not provide evidence of the third-party assurance for its cost estimates. In its representation the company provides a third-party assurance letter. The letter states that it is clear how the company has arrived at its option costs, and that there is supporting evidence for the calculations and justification for the key assumptions used. The letter also states that costs for river restoration programmes contain efficiencies. However, the letter states that for pumping schemes, costs are assumed to be efficient due to the constant updating of the unit costs in the underlying database but external benchmarks have not been included in the cost model. Therefore, the letter states that without external benchmarks the confidence that costs are efficient is reduced and recommends that the model is updated to include external benchmarks. The company therefore does not provide sufficient and convincing evidence that the proposed investment is efficient. Therefore, we retain our draft determination approach for the final determination and apply an adjustment. | D15: Minor concerns | E15: 0.1 | F15: ANH_DD_019-Ecological-quality-enhancement-strategy OFW-REP-ANH-033 WFD Cost Assurance Audit report 23.10.24 | I15: Cost efficiency | J15: Minor concerns: We have minor concerns whether the investment is efficient. The company provides a description of the costing methodology and external cost benchmarking but does not provide evidence of third-party assurance for the robustness of the cost estimates. The company provides a breakdown of scope for each scheme, with the total cost per scheme. The company states that the costs were developed using its 'double-lock' approach of bottom-up build up of costs cross-checked through external benchmark approaches. The company states that it has engaged specialist external advisors and assurance providers to provide robust challenge and assurance of the underlying data and information, however the company does not provide evidence of the third-party assurance for its cost estimates. Anglian Water states that enhancement request for WINEP no deterioration investment was reduced by 27% following benchmarking, although it does not specifically evidence how this reduction affects its WINEP WFD proposals. | K15: Minor concerns | L15: 0.1 | M15: PR24 Enhancement strategies: ecological quality
B16: Customer protection | C16: For the final determination, the company's proposed investment does not meet the materiality threshold for a price control deliverable (PCD). The company does not propose a PCD. Having considered the size of the proposed investment and our guidance on when there should be a PCD, our decision is that a PCD is not required for this investment. Therefore, for the final determination we do not apply a PCD. | D16: Pass | E16: N/A | I16: Customer protection | J16: Pass: The company does not propose a price control deliverable (PCD) for this investment. The expenditure in this area is not material and so we do not consider a PCD is required. | K16: Pass | L16: N/A
B18: End of published version

Sheet SVE
A1: Deep Dive - Severn Trent Water | I1: Draft determination:
B3: Company | C3: SVE | G3: Pass | I3: Company | J3: SVE
B4: Scheme/Programme name | C4: WINEP Water Framework Directive (WFD) | G4: Partial pass | I4: Scheme/Programme name | J4: WINEP Water Framework Directive (WFD)
B5: Scheme/Programme overview | C5: A programme of actions to prevent WFD status deterioration at the highest priority sites by 2030: network and asset reconfiguration to accommodate abstraction licence changes at 65 sources of public water supply by 2030 plus supporting catchment restoration and protection measures. | G5: Fail | I5: Scheme/Programme overview | J5: A programme of actions to prevent WFD status deterioration at the highest priority sites by 2030: network and asset reconfiguration to accommodate abstraction licence changes at 65 sources of public water supply by 2030 plus supporting catchment restoration and protection measures.
B6: PR24 table line allocation | C6: Water Framework Directive; (WINEP/NEP) water - CW3.18 | G6: Pass | I6: PR24 table line allocation | J6: Water Framework Directive; (WINEP/NEP) water - CW3.18
B7: Total requested in business plan (totex, £m) | C7: ='Materiality & shallow dive'!D10 -> 329.1571882 | G7: Minor concerns | I7: Total requested in business plan (totex, £m) | J7: 329.022
B8: Scheme/Programme value assessed in deep dive (totex, £m) | C8: ='Materiality & shallow dive'!D10 -> 329.1571882 | G8: Some concerns | I8: Scheme/Programme value assessed in deep dive (totex, £m) | J8: 329.02
B9: Overall adjustment | C9: =E13+E14+E15 -> 0.1639257116 | G9: Significant concerns | I9: Overall adjustment | J9: =SUM(L13:L16) -> 0.5704072701
B10: Totex allowance from deep dive (£m) | C10: =C8*(1-C9) -> 275.1998619 | I10: Totex allowance from deep dive | J10: =J8*(1-J9) -> 141.3446
B12: Enhancement assessment criteria grouping | C12: Assessment comments | D12: Criteria decision | E12: % adjustment | F12: Reference (e.g. document and page number) | I12: Enhancement assessment criteria grouping | J12: Assessment comments | K12: Criteria decision | L12: % adjustment | M12: Reference (e.g. document and page number)
B13: Need for enhancement investment | C13: In the draft determination the proposed investment partially met the criteria for enhancement investment and additional customer funding. In its representation the company provides additional evidence, however the investment still only partially meets the need for enhancement criteria. The company provides further evidence therefore we reduce the draft determination adjustment for the final determination. In the draft determination we had concerns that the company did not provide sufficient and convincing evidence that there are no Water Framework Directive (WFD) overlaps with base allowances and previously funded enhancement schemes. The company stated that there is no overlap of the proposed enhancement investment with base allowances or previously funded enhancement schemes. However, the evidence was not clearly presented and multiple drivers for the same investments made the company's case complex and therefore not fully transparent. In its representation the company states there is a material difference compared to other water companies as it has larger WFD No Deterioration challenge than other companies. The company states new licence conditions will come into effect from 2030 and in 2025-2030 period it must invest in the new assets to comply with these new legal requirements. The company lists individual schemes, including scope of works and the total cost per scheme, and categorises these schemes into investment types. However, the company provides a table (SVE4.05 Water WINEP licence capping, Figure 14) which illustrates that the average age of WFD enhancement pumps (for replacement) is 16 years, against a useful life of 22 years. In the follow up query responses, the company states that while it is confident about which specific sites will need investment, at this relatively early stage of the project it is not able to identify the individual on-site assets that will need to be changed. The company states it is not yet able to provide the level of detail around the number and age of individual assets to be replaced at each site. The company provides a chart which compares pump age at WFD sites with non-WFD sites; this chart illustrates that in total 42% of pumps at WFD sites are older than 20 years (32% are 20-30 years old; 10% are greater than 31 years old). We consider that each site where a pump is to be installed represents a potential base overlap as it likely includes replacement of an existing one. Our review of scope of each project where new pumps were installed identified 11 sites, resulting in the total cost of £50.6m representing a potential base overlap due to pump replacements. We apply 42% adjustment to represent pumps older than 20 years, which we consider would be replaced under base maintenance because they are over the useful life of 22 years. This calculation results in £21.2m, which is 6.9% of the total cost of the programme. We also consider that this value represents a significant, but not full, proportion of base overlap concerns. This is because there are other asset classes, for example dosing system upgrades, which we also consider overlapping with base maintenance activities. We therefore consider that there is remaining base overlap for asset upgrades. We consider that the New Infra Connections and Environmental measures to improve ecological resilience to low flows represent new assets and/or solutions (with no base overlap). Therefore, we reduce the draft determination adjustment for the final determination. We now apply 10% challenge applied to the programme excluding New Infra Connections and Environmental measures to improve ecological resilience to low flows. This results in the overall 8% challenge. | D13: Partial pass | E13: =(0.1*(C8-48.683-10.8))/J8 -> 0.0819628558 | F13: SVE4.05 Water WINEP WFD (Licence capping) SVE4.05.01 Water WINEP WFD Appendix A | I13: Need for enhancement investment | J13: Partial pass: The investment partly meets the criteria for enhancement investment and additional customer funding. The company does not provide sufficient and convincing evidence that there are no water framework directive (WFD) overlaps with base allowances and previously funded enhancement schemes. The company states that majority of the 2025-2030 water industry national environment programme (WINEP) programme has been defined as statutory within the Water Industry Strategic Environmental Requirements (WISER) framework. Additionally, there are two statutory plus elements (biodiversity enhancements and Sites of Special Scientific Interest (SSSIs) that are not driven by the WFD. The scale and timing of the company's proposed WFD investment is consistent with its WINEP programme. The company states that there is no overlap of the proposed enhancement investment with base allowances or previously funded enhancement schemes. However, the evidence is not clearly presented and multiple drivers for the same investments (for example some pipeline schemes being driven by WFD and Resilience) make the company's case complex and therefore not fully transparent. The company does not demonstrate the need for each scheme against the WFD driver. A partial pass with a 20% adjustment is therefore applied for this scheme. | K13: Partial pass | L13: 0.2 | M13: SVE26 04a Water WINEP
B14: Best option for customers | C14: In the draft determination we had some concerns that the proposed investment was the best option for customers and applied an adjustment. In its representation the company provides additional evidence, however we still have minor concerns that the investment is the best option for customers. Therefore, we reduce the draft determination adjustment for the final determination. In the draft determination we had concerns that the company did not provide sufficient and convincing evidence that alternative options have been considered or a robust option development process has been followed. The company represents that its WFD driven options assessment process was focused on determining least cost. It did not appear to consider the most beneficial (best value) solutions. The company did not provide evidence to demonstrate that it has conducted cost benefit analysis or best value analysis for its WFD schemes. In its representation the company states the WFD No Deterioration driver is statutory and in the legislation there is no cost / benefit or best value test that applies. The company provides more detailed commentary on its option appraisal and optioneering using transitional expenditure and integration with WRMP programme and proportional allocation of costs. However, the company does not provide any evidence of optioneering for its proposed changes at its water productions sites. The company seems to have identified the lowest cost infrastructure solution rtaher than the best value solution (such as optimising current assets). Therefore, we reduce the draft determination adjustment for the final determination. We apply 10% challenge applied to the programme excluding New Infra Connections and Environmental measures to improve ecological resilience to low flows; this results in the overall 8% challenge. | D14: Minor concerns | E14: =(0.1*(C8-48.683-10.8))/J8 -> 0.0819628558 | F14: SVE4.05 Water WINEP WFD (Licence capping) SVE4.05.01 Water WINEP WFD Appendix A | I14: Best option for customers | J14: Some concerns: We have some concerns whether the investment is the best option for customers. The company does not provide sufficient and convincing evidence that alternative options have been considered or a robust option development process has been followed. The company states that the WINEP methodology requires it to produce Option Development Reports (ODRs) for all major areas of investment. Site specific options are determined through narrowing wider options using site-specific constraints. Once feasible options are determined, the company tests the costs and benefits of those using its benefits assessment tool. The company does not provide sufficient and convincing evidence that alternative options were considered or a robust option development process has been followed. The company's WFD driven options assessment process is focused on determining least cost. It does not appear to consider the most beneficial (best value) solutions. The company does not provide evidence to demonstrate that it has conducted cost benefit analysis or best value analysis for its WFD schemes. | K14: Some concerns | L14: =IF(K14="Pass",0%,IF(K14="Minor concerns",10%,IF(K14="Some concerns",20%,IF(K14="Significant concerns",30%)))) -> 0.2 | M14: SVE26 04a Water WINEP
B15: Cost efficiency | C15: In the draft determination we had some concerns that the investment was efficient and applied an adjustment. In its representation the company provides sufficient and convincing evidence to address our concerns and to demonstrate that the proposed investment is efficient. Therefore, for the final determination, we do not apply an adjustment. In the draft determination we had concerns that the company did not provide sufficient and convincing evidence that the proposed costs are efficient. The company did not provide evidence that it has considered the efficiency of costs for its WFD schemes nor evidence that its cost estimates for WINEP or WFD schemes have been assured by its third-party assurer. In its representation the company provides evidence that it carried out bottom-up cost benchmarking which shows examples of three projects sampling by external consultants. The conclusions of this work were that the overall costs are within the tolerance expected for the maturity of the project designs and that on-costs are also within broad alignment with the benchmark against the external database of on-costs. The company states that as a total the project estimates are within 10% of the benchmarks developed, while some assets show a larger variance than this, the overall cost is well within the expected ranges for this stage of design. The company provides sufficient and convincing evidence to demonstrate that the investment is efficient. Therefore, for the final determination, we do not apply an adjustment. | D15: Pass | E15: 0 | F15: SVE4.05 Water WINEP WFD (Licence capping) SVE4.05.01 Water WINEP WFD Appendix A | I15: Cost efficiency | J15: Some concerns: We have some concerns whether the investment is efficient. The company does not provide sufficient and convincing evidence that the proposed costs are efficient. The process described by the company states that the majority of the WINEP programme is made up of bespoke solutions that make it extremely difficult to benchmark, but it has undertaken high level benchmarking on key aspects of its catchment programme against other water companies, and with the agricultural sector. For the six pipelines included in this programme, we tested the efficiency in the Supply interconnector model using the relevant variables of length (km) and benefit (Ml/d). Based on this benchmarking we concluded that the pipeline schemes were efficient. For the remainder of the cost request (non-interconnector component) we apply our cost efficiency challenge (20%), due insufficient evidence for cost efficiency as described above. This results in an overall 17% challenge. The company does not provide evidence to show that it has considered the efficiency of costs for its WFD schemes. It also does not provide evidence that its cost estimates for WINEP or WFD schemes have been assured by its third-party assurer. | K15: Some concerns | L15: =(0.2*(J8-48.683))/J8 -> 0.1704072701 | M15: SVE26 04a Water WINEP
B16: Customer protection | C16: For the final determination, the company's proposed investment meets the materiality threshold for a price control deliverable (PCD). The company proposes a PCD, and we consider one is required to provide customer protection. Therefore, for the final determination we apply a PCD. We discuss the PCD and our consideration of any consultation responses received in the Price Control Deliverables Appendix. | D16: Some concerns | E16: N/A | I16: Customer protection | J16: Some concerns: We have some concerns whether the company's proposal protects customers from non- or under delivery. The company proposes that its 'EPA Water WINEP Licence Capping (PCD 3)' measures delivery of abstraction licence capping obligations, whilst describing that its Water WINEP includes work to facilitate 70 abstraction licence modifications required to prevent WFD status deterioration in 75 waterbodies. Severn Trent Water also states that the delivery of 20 obligations (estimated totex £24m) by 2030 will be challenging and it is negotiating a revised delivery programme with the Environment Agency, and that the PCD will be subject to change if the EA revise the current obligation delivery profile. For consistency across companies with material enhancement line expenditure, we are introducing a common price control deliverable in this area. For more information on PCD decisions see the PR24 draft determinations: Expenditure allowances - Price control deliverable appendix. | K16: Some concerns | L16: N/A
B18: End of published version

Sheet TMS
A1: Deep Dive - Thames Water | I1: Draft determination:
B3: Company | C3: TMS | G3: Pass | I3: Company | J3: TMS
B4: Scheme/Programme name | C4: WINEP Water Framework Directive (WFD) | G4: Partial pass | I4: Scheme/Programme name | J4: WINEP Water Framework Directive (WFD)
B5: Scheme/Programme overview | C5: Investment related to Water Framework Directive (WFD) is for enhancement activity listed in the WINEP/ NEP to deliver actions to improve/achieve/protect/prevent deterioration of water body objectives or ecological status within a catchment. Thames Water's programme includes twenty WINEP actions. Activities include habitat improvements, river restoration projects, a 9.5km trunk main and low flow implementation or sustainability/abstraction reductions which do not result in zonal supply demand balance impact. | G5: Fail | I5: Scheme/Programme overview | J5: Investment related to Water Framework Directive (WFD) is for enhancement activity listed in the WINEP/ NEP to deliver actions to improve/achieve/protect/prevent deterioration of water body objectives or ecological status within a catchment. Thames Water's programme includes sixteen WINEP actions. Activities include habitat improvements, river restoration projects, a 9.5km trunk main and low flow implementation or sustainability/abstraction reductions which do not result in zonal supply demand balance impact.
B6: PR24 table line allocation | C6: Water Framework Directive; (WINEP/NEP) water - CW3.18 | G6: Pass | I6: PR24 table line allocation | J6: Water Framework Directive; (WINEP/NEP) water - CW3.18
B7: Total requested in business plan (totex, £m) | C7: ='Materiality & shallow dive'!D13 -> 54.564 | G7: Minor concerns | I7: Total requested in business plan (totex, £m) | J7: 46.94
B8: Scheme/Programme value assessed in deep dive (totex, £m) | C8: =_xlfn.ANCHORARRAY(C7) -> 54.564 | G8: Some concerns | I8: Scheme/Programme value assessed in deep dive (totex, £m) | J8: 46.94
B9: Overall adjustment | C9: =SUM(E13:E16) -> 0.1 | G9: Significant concerns | I9: Overall adjustment | J9: =SUM(L13:L16) -> 0.584277
B10: Totex allowance from deep dive (£m) | C10: =IF($C$9<100%,$C$8-$C$8*$C$9,0) -> 49.1076 | I10: Totex allowance from deep dive (£m) | J10: =IF($J$9<100%,$J$8-$J$8*$J$9,0) -> 19.51403762
B12: Enhancement assessment criteria grouping | C12: Assessment comments | D12: Criteria decision | E12: % adjustment | F12: Reference (e.g. document and page number) | I12: Enhancement assessment criteria grouping | J12: Assessment comments | K12: Criteria decision | L12: % adjustment | M12: Reference (e.g. document and page number)
B13: Need for enhancement investment | C13: In the draft determination the proposed investment partially met the criteria for enhancement investment and additional customer funding. In its representation the company increases the proposed investment (the “revised” investment). The company provides sufficient and convincing evidence to demonstrate that the revised investment meets the need for enhancement criteria. Therefore, for the final determination, we do not apply an adjustment. In the draft determination we had concerns that the ‘Netley WTW sustainability reduction’ scheme (‘08TW100002a’) overlapped with previously funded investment. This scheme was originally presented in 2020-2025 as an interconnector supply scheme (‘Shalford to Netley Mill transfer scheme - Guildford WRZ’). As part of a query response the ‘Netley WTW’ scheme was described as a proposal ‘to increase the diameter of the PR19 design’ from 300 to 450mm. The company noted that ‘in terms of optioneering, it became clear very early in the process that modifying the planned PR19 pipeline would be the most cost-effective solution to deliver the scheme identified in the WINEP, rather than constructing a second pipeline’. The 2020-2025 and 2025-2030 elements of the scheme were therefore considered jointly and were deemed inefficient by the benchmarked model. For the remainder of the Water Framework Directive (WFD) programme, the company provided sufficient and convincing evidence to demonstrate that the investment met the need for enhancement criteria, and we did not apply an adjustment. In its representation, the company provides further clarification as to the scheme-scope of the ‘Netley WTW sustainability reduction’ scheme. The scheme is described as a dual-main that includes a ‘300mm main with an additional 450mm main’. The company clarifies that the revised investment request is intended only to represent the cost difference between the 300mm scheme (funded in the 2020-2025 period) and the dualled 300mm and 450mm scheme (requested for the 2025-2030 period). See ‘Cost Efficiency’ for further analysis and adjustment. Additionally, the company increases its proposed investment due to a change in driver for four schemes (WINEP Action IDs ‘08TW100028a’, ‘08TW100027a’, ‘08TW100023a’ and ‘08TW100022a’). The Environment Agency has requested a change from investigation to implementation drivers since the April submission with the expectation that these schemes are delivered in the 2025-2030 period. Revised costs and rescoped solutions are representative of this change. For these schemes, the company provides sufficient and convincing evidence to demonstrate that the revised investment meets the need for enhancement criteria. The company provides sufficient and convincing evidence to demonstrate that the revised investment meets the criteria for enhancement investment and additional customer funding. Therefore, for the final determination, we do not apply an adjustment. | D13: Pass | E13: 0 | F13: OFW-REP-TMS-075 TMS-DD-038: Thames Water PR24 DD Response Enhancement Cases TMS-DD-058 - PR24 WINEP Enhancement Case supporting information Water WINEP annex TMS-DD-066 PR24 WINEP EC supporting evidence - WR WFD cost breakdown TMS-DD-059 SR_NetleyMill_ODR TMS-DD-060 SR_Bradfield_ODR TMS-DD-061 SR_UpperSwell_ODR TMS-DD-062 SR_Hornsey_ODR_Jan23 TMS-DD-063 FishPassages_ODR TMS-DD-064 SR_RiverRestoration_ODR TMS-DD-065 SR_UpperKennetRR_ODR | I13: Need for enhancement investment | J13: Partial pass: The investment partly meets the criteria for enhancement investment and additional customer funding. The company does not provide sufficient and convincing evidence that there are no Water Framework Directive (WFD) overlaps with previously funded enhancement schemes. The company's proposed investment and timescales are consistent with its Water Industry National Environment Programme (WINEP). The need for enhancement is partly demonstrated however a bespoke adjustment (-£19.063m, 41%) has been applied based on modelled scheme inefficiency and the scale of investment overlap. We have concerns that the ‘Netley WTW sustainability reduction’ scheme (08TW100002a) overlaps with previously funded investment. This scheme was originally presented at PR19 as an interconnector supply scheme (‘Shalford to Netley Mill transfer scheme - Guildford WRZ’). Thames Water have confirmed that this scheme has been delayed, and that the intention is to increase the size of the PR19 interconnector from 300mm to 450mm diameter at PR24. The company’s additional WFD request at PR24 reflects this increase in scope. Due to overlap concerns, we have assessed this as a singular multi-AMP interconnector scheme and analysed the efficient cost for delivery using the supply-interconnector model (PR24CA92 – W – Supply Interconnectors). The overall allowance requested for this scheme, when taking into account both the PR19 and PR24 requests, is considered inefficient. The WFD funding request will be reduced accordingly by £19.063m to take account of both that inefficiency and the funding already provided in the previous price review. Further information on the methodology relating to this adjustment can be found in the Supply Interconnector model (PR24CA92 – W – Supply Interconnectors) and the WFD model (PR24CA35-W-Water Framework Directive). | K13: Partial pass | L13: 0.406114 | M13: OFW-OBQ-TMS-208 OFW-OBQ-TMS-244 TMS26 (Revised) Enhancement Case: WINEP PR24CA92 – W – Supply Interconnectors
B14: Best option for customers | C14: In the draft determination the company provided sufficient and convincing evidence that the proposed investment was the best option for customers. In its representation the company increases the proposed investment (the “revised” investment). The company provides sufficient and convincing evidence to demonstrate that the “revised” investment addresses our concerns and that it is the best option for customers. Therefore, for the final determination, we do not apply an adjustment In the draft determination we did not have concerns that the proposed investment was the best option for customers and did not apply an adjustment. The company has increased its proposed investment due to a change in driver for four schemes (WINEP Action IDs ‘08TW100028a’, ‘08TW100027a’, ‘08TW100023a’ and ‘08TW100022a’). In its representation the company provides updated Options Development Reports (ODRs) for the Water Framework Directive programme as part of its representation. The evidence provided by the company includes further descriptions of scheme-scope, option consideration and evidence of stakeholder engagement. Although the company provides additional evidence for the 'Netley WTW sustainability reduction’ scheme, we still have minor concerns that the presented ‘dual main’ approach is the best option for customers. Insufficient evidence has been provided to determine that this scheme is sufficiently resilient and efficient in comparison to other potential options. See ‘Cost Efficiency’ for adjustment. For the remainder of the programme, the company provides sufficient and convincing evidence to demonstrate that the revised investment is the best option for customers. Therefore, for the final determination, we do not apply an adjustment for this criterion. | D14: Pass | E14: 0 | F14: OFW-REP-TMS-075 TMS-DD-038: Thames Water PR24 DD Response Enhancement Cases TMS-DD-058 - PR24 WINEP Enhancement Case supporting information Water WINEP annex TMS-DD-066 PR24 WINEP EC supporting evidence - WR WFD cost breakdown TMS-DD-059 SR_NetleyMill_ODR TMS-DD-060 SR_Bradfield_ODR TMS-DD-061 SR_UpperSwell_ODR TMS-DD-062 SR_Hornsey_ODR_Jan23 TMS-DD-063 FishPassages_ODR TMS-DD-064 SR_RiverRestoration_ODR TMS-DD-065 SR_UpperKennetRR_ODR | I14: Best option for customers | J14: Pass: The company provides sufficient and convincing evidence that the investment represents the best option for customers. The company considers alternative options and provides sufficient and convincing evidence that a robust option development process has been followed. The company states that a high-level list of options have been considered which have been developed in line with WINEP guidance. The company’s Options Development Report and Option Appraisal Reports comprise evidence of options development, shortlisting and high-level cost-benefit analysis, which inform the preferred option selection. Both catchment management and infrastructure solutions have been considered and a reasonable range of options has been presented. Thames Water have also commissioned third-party assurance to review how well they fulfilled WINEP guidance expectations for developing options. For the remainder of the cost request (the non-interconnector components) we have made no adjustments. | K14: Pass | L14: =IF(K14="Pass",0%,IF(K14="Minor concerns",10%,IF(K14="Some concerns",20%,IF(K14="Significant concerns",30%)))) -> 0 | M14: TMS26 (Revised) Enhancement Case: WINEP OFW-OBQ-TMS-223 TWL_WINEP-Assurance-Report
B15: Cost efficiency | C15: In the draft determination we had significant concerns that the proposed investment was efficient and applied an adjustment. In its representation the company increases the proposed investment (the “revised” investment). In its representation the company provides additional evidence, however we still have some concerns that the investment is efficient. Therefore, we reduce the draft determination adjustment for the final determination. In the draft determination we had concerns that although a high-level explanation of the company’s costing approach for the Water Framework Directive (WFD) programme was described, no evidence of benchmarking had been provided in the submission. A detailed breakdown of scheme cost was requested for all WFD schemes; however, no cost breakdown or additional information was provided by the company. In its representation the company provides a high-level description of costs in relation to its optioneering process. A detailed breakdown of costs has also been provided for the four most material schemes included in the WFD programme. However, the company provides no further evidence of benchmarking or third-party assurance. The efficient cost for delivery of the ‘Netley WTW sustainability reduction’ scheme (£28.435m, 9.5km, 5.0Ml/d increase in transfer capacity) was also analysed using the supply-interconnector model, where the scheme was inefficient against the benchmark. We still have minor concerns that the presented ‘dual main’ is the most cost-efficient approach. Insufficient evidence has been provided to determine that this scheme is sufficiently cost efficient in comparison to other potential options. While the company provides some additional evidence, we still have minor concerns that the revised investment is efficient. Therefore, we reduce the draft determination adjustment for the final determination. | D15: Minor concerns | E15: 0.1 | F15: PR24CA92 - W - Supply Interconnectors (Referenced in WFD tab 'Interconnector Efficiency) OFW-REP-TMS-075 TMS-DD-038: Thames Water PR24 DD Response Enhancement Cases TMS-DD-058 - PR24 WINEP Enhancement Case supporting information Water WINEP annex TMS-DD-066 PR24 WINEP EC supporting evidence - WR WFD cost breakdown TMS-DD-059 SR_NetleyMill_ODR TMS-DD-060 SR_Bradfield_ODR TMS-DD-061 SR_UpperSwell_ODR TMS-DD-062 SR_Hornsey_ODR_Jan23 TMS-DD-063 FishPassages_ODR TMS-DD-064 SR_RiverRestoration_ODR TMS-DD-065 SR_UpperKennetRR_ODR | I15: Cost efficiency | J15: Significant concerns: We have significant concerns whether the investment is efficient. The company does not provide sufficient and convincing evidence that the proposed costs are efficient. The company has provided a high-level explanation of its costing approach, stating historical cost-efficiency benchmarking has been applied to all WINEP categories. The methodology is described as bottom-up engineering costing, which is then challenged through the application of different operational efficiency levers. These processes are described, but no evidence has been provided in the submission. A detailed breakdown of scheme cost was requested for each of the sixteen WFD schemes, however no cost breakdown or additional information was provided. The company does not provide evidence to show that it has considered the efficiency of costs for its WFD schemes. It is unclear how the company has arrived at its option costs for its WFD specific schemes or whether these costs can be deemed efficient. The company also does not provide evidence that its cost estimates for WINEP or WFD schemes have been assured by a third-party. We have applied a scheme-specific adjustment to the ‘Netley WTW sustainability reduction’ scheme (08TW100002a) detailed above. For the remainder of the cost request (the non-interconnector components) we have applied our cost efficiency challenge (30%), due to insufficient evidence for cost efficiency. This results in an overall 18% challenge. | K15: Significant concerns | L15: 0.178163 | M15: TMS26 (Revised) Enhancement Case: WINEP TMS33 Capital Cost, Efficiency and Assurance OFW-OBQ-TMS-244
B16: Customer protection | C16: For the final determination, the company's proposed investment does not meet the materiality threshold for a price control deliverable (PCD). The company does not propose a PCD. However, to provide customer protection we consider a PCD is required. Therefore, for the final determination we apply a PCD. We discuss the PCD and our consideration of any consultation responses received in the Price Control Deliverables Appendix. | D16: Pass | E16: NA | F16: TMS-DD-038: Thames Water PR24 DD Response Enhancement Cases TMS-DD-044: Thames Water PR24 DD Response - Price Control Deliverables | I16: Customer protection | J16: Pass: The company does not propose a price control deliverable (PCD) for this investment. The expenditure in this area is not material and so we do not consider a PCD is required. | K16: Pass | L16: NA | M16: TMS26 (Revised) Enhancement Case: WINEP TMS01 PR24 Business Plan 041023
B18: End of published version

Sheet AFW SR
A1: Deep Dive - Affinity Water (Sustainability Reductions) | I1: Draft determination:
B3: Company | C3: AFW | G3: Pass | I3: Company | J3: AFW
B4: Scheme/Programme name | C4: WINEP Water Framework Directive (WFD) | G4: Partial pass | I4: Scheme/Programme name | J4: WINEP Water Framework Directive (WFD)
B5: Scheme/Programme overview | C5: Full programme consists of a programme of sustainable abstraction reductions with ten sustainability reduction schemes; four average deployable output (ADO) relocation schemes; and nine no deterioration schemes. This programme mainly consists of pipelines/transfers and network reconfiguration investments. | G5: Fail | I5: Scheme/Programme overview | J5: Full programme consists of: a) A programme of sustainable abstraction reductions with ten sustainability reduction schemes; four average deployable output (ADO) relocation schemes; and nine no deterioration schemes. This programme mainly consists of pipelines/transfers and network reconfiguration investments. b) A programme of Catchment and Nature Based Solutions (C&NBS) incorporating river restoration and catchment management initiatives for the Colne; Upper Lea; Dour and Little Stour; Cam and Ivel catchments. c) A chalk stream catchment restoration scheme for the River Beane in Hertfordshire to deliver the ambition of Defra’s Catchment Based Approach chalk stream restoration strategy and implementation plan.
B6: PR24 table line allocation | C6: Water Framework Directive; (WINEP/NEP) water - CW3.18 | G6: Pass | I6: PR24 table line allocation | J6: Water Framework Directive; (WINEP/NEP) water - CW3.18
B7: Total requested in business plan (totex, £m) | C7: 124.412 | G7: Minor concerns | I7: Total requested in business plan (totex, £m) | J7: 141.004
B8: Scheme/Programme value assessed in deep dive (totex, £m) | C8: 124.412 | G8: Some concerns | I8: Scheme/Programme value assessed in deep dive (totex, £m) | J8: 141.004
B9: Overall adjustment | C9: =E13+E14+E15 -> 0.04429878147 | I9: Overall adjustment | J9: =SUM(L13:L16) -> 0.3756489178
B10: Totex allowance from deep dive (£m) | C10: =C8*(1-C9) -> 118.9007 | I10: Totex allowance from deep dive | J10: =J8*(1-J9) -> 88.036
B12: Enhancement assessment criteria grouping | C12: Assessment comments | D12: Criteria decision | E12: % adjustment | F12: Reference (e.g. document and page number) | I12: Enhancement assessment criteria grouping | J12: Assessment comments | K12: Criteria decision | L12: % adjustment | M12: Reference (e.g. document and page number)
B13: Need for enhancement investment | C13: In the draft determination the proposed investment partially met the criteria for enhancement investment and additional customer funding. In its representation the company provides additional evidence, however the investment still partially meets the need for enhancement criteria. Therefore, we reduce the draft determination adjustment for the final determination. In the draft determination we had concerns that the proposed investment met the need for enhancement investment criteria because the company did not demonstrate that there are no water framework directive (WFD) activity overlaps with base allowances and previously funded enhancement schemes. In its representation the company provides evidence that a review has been carried out on three distinct elements of work that contribute to achievement of the 2025 - 2030 sustainability reductions to review potential overlap with base. The company identified a residual overlap with base maintenance from pump replacement elements of the work scope; estimated at £99k and considered immaterial. In the follow up query responses, the company lists key components for each scheme, and provides sufficient and convincing evidence to show there is no overlap with previous enhancement funding. However we consider that there is a residual base maintenance overlap. We consider that the interconnectors represent new assets and there is not a base maintenance overlap for them. Therefore, we reduce the draft determination adjustment for the final determination. We apply 10% challenge applied to the programme excluding interconnectors. This results in the overall 3% challenge. | D13: Partial pass | E13: =(0.1*(C8-87.67))/C8 -> 0.02953252098 | F13: Affinity Water PR24 Draft Determination Representation | I13: Need for enhancement investment | J13: Partial pass: The investment partly meets the criteria for enhancement investment and additional customer funding. The proposed investment is consistent with the company's water industry national environment programme (WINEP) schemes. The company does not provide sufficient and convincing evidence that there are no water framework directive (WFD) activity overlaps with base allowances and previously funded enhancement schemes. The company sets out in its technical annex for the Connect 2050 (umbrella name for the schemes being proposed to meet its WRMP and agreed sustainability reduction (WINEP) requirements) how the strategic level assessment was carried out using an approach that aimed to address both the WRMP24 needs, as well as the requirements relating to the WINEP. The company illustrates its optioneering process which involves the application of network constraints in modelling for the identification and selection of final solutions. This indicates that the current constraints have been incorporated into the problem statement (modelling) the company seeks to address . Therefore, the company does not provide any evidence that applying existing operational constraints does not create overlaps with base expenditure. The company further states that a water supply systems-based approach has been taken to identify the preferred options and therefore whilst it has separated out costs and apportioned these against individual sources, there are multiple interdependencies of schemes. Affinity Water states that the costs are only those additional as a result of the sustainability reductions i.e. the installation of additional assets that otherwise would not be required . For the Connect 2050 project it says there is no overlap of projected improvements with previously funded investments under the company's Supply 2040 programme or any other programmes, but it is unclear if this is the case because the company fails to provide sufficient and convincing evidence that there are no overlaps. Therefore, the company does not provide sufficient and convincing evidence that there are no overlaps with activities funded through base costs (such as maintenance/operational activities). The company also states that through the PR24 WINEP development process it has worked to ensure that all lines on the PR24 WINEP spreadsheet relate to new schemes and that its 2025-30 river restoration and catchment management programme will focus on new reaches of rivers/areas within catchments but does not provide sufficient and convincing evidence to show there is no overlap with previous enhancement funding . A partial pass with a 20% adjustment is therefore applied for this scheme. | K13: Partial pass | L13: 0.2 | M13: AFW14a - Enhancement investment cases Query response AFW-WINEP-001 Query response – OFW-OBQ-AFW-090
B14: Best option for customers | C14: In the draft determination we had minor concerns that the proposed investment was the best option for customers and applied an adjustment. In its representation the company provides sufficient and convincing evidence to address our concerns and to demonstrate that the proposed investment is the best option for customers. Therefore, for the final determination, we do not apply an adjustment. In the draft determination we had concerns that the company did not consider an appropriate number of options over a range of intervention types to meet the identified needs. In its representation the company provides detailed information on its optioneering process used. The company also evidences root cause analysis carried out at programme level, identifying three causes (lack of treatment capacity; lack of transfer capability/capacity; raw water deterioration) that it will address through the proposed network connectivity programme. The company provides unconstrained to constrained lists for each problem and cost-benefit analysis which monetises risk reduction / opportunity attained for the new transfer options and qualitative screening for the local site-specific needs. The company provides sufficient and convincing evidence to address our concerns and to demonstrate that the proposed investment is the best option for customers. Therefore, for the final determination, we do not apply an adjustment. | D14: Pass | E14: 0 | F14: Affinity Water PR24 Draft Determination Representation | I14: Best option for customers | J14: Minor concerns: We have minor concerns whether the investment is the best option for customers. The company does not consider an appropriate number of options over a range of intervention types to meet the identified needs. Affinity Water states that a wide range of options have been considered and verified with its stakeholders and coarse screening process used to select feasible options from a list of alternative options for each need. The company evidences a consideration of alternative options and states it selected best value options using economic analysis. However, alternative options are limited in number given the scale of the programme and focussed on a narrow range of options, limited to network reinforcements and transfer schemes. | K14: Minor concerns | L14: =IF(K14="Pass",0%,IF(K14="Minor concerns",10%,IF(K14="Some concerns",20%,IF(K14="Significant concerns",30%)))) -> 0.1 | M14: AFW14a - Enhancement investment cases
B15: Cost efficiency | C15: In the draft determination we had some concerns that the investment was efficient and applied an adjustment. In its representation the company provides additional evidence, however we still have minor concerns that the investment is efficient. Therefore, we reduce our draft determination approach for our final determination. In the draft determination we had concerns that the company did not provide evidence to show that it had considered the efficiency of costs for its WFD schemes and did not provide evidence of the use of external benchmarks and assurance. In its representation the company provides a new report from its external assurers which concludes that the benchmarked construction cost data is within a reasonable alignment with anticipated market rates. This report also identifies that benchmarking undertaken on the Sustainability Reductions area (£87.5m was reviewed) resulted in 7.8% variance, sitting at £80.6m. We therefore apply cost efficiency challenge of 5% to the non-interconnector component. This results in an overall 1.5% challenge. Therefore, we reduce the draft determination adjustment for the final determination. | D15: Minor concerns | E15: =(0.05*(C8-87.67))/C8 -> 0.01476626049 | F15: Affinity Water PR24 Draft Determination Representation | I15: Cost efficiency | J15: Some concerns: We have some concerns whether the investment is efficient. The company does not provide sufficient and convincing evidence that the proposed costs are efficient. The company states that the costs for each option have been calculated using a combination of unit cost model, which uses unit costs for river restorations and catchment management activities to build up projects, and costs from previous known work and schemes. For Sustainability reductions Affinity Water states it used a strategic level optioneering process incorporating a number of different modelling processes, but does not reference cost efficiency. The company does not provide evidence to show that it has considered the efficiency of costs for its WFD schemes and does not evidence the use of external benchmarks. The company states that it used a third-party to carry out assurance of this business case but it does not provide sufficient and convincing evidence of cost estimation and efficiency assurance. For the three pipelines included in this programme, we tested the efficiency in the Supply interconnector model using the relevant variables of length (km) and benefit (Ml/d). Based on this benchmarking we concluded that the pipeline schemes were efficient. For the remainder of the cost request (non-interconnector component) we apply our cost efficiency challenge (20%), due insufficient evidence for cost efficiency as described above. This results in an overall 7.56% challenge. | K15: Some concerns | L15: =(0.2*(J8-87.67))/J8 -> 0.07564891776 | M15: AFW14a - Enhancement investment cases
B16: Customer protection | C16: For the final determination, the company's proposed investment meets the materiality threshold for a price control deliverable (PCD). The company proposes a PCD, and we consider one is required to provide customer protection. Therefore, for the final determination we apply a PCD. We discuss the PCD and our consideration of any consultation responses received in the Price Control Deliverables Appendix. | D16: Pass | E16: N/A | F16: Affinity Water PR24 Draft Determination Representation | I16: Customer protection | J16: Some concerns: We have some concerns whether the price control deliverable (PCD) proposed is aligned with the enhancement investment. The company provides a PCD for the sustainability reductions, reduction in average deployable output and WFD no deterioration programme, which forms 89% of its WFD proposals. The scope of the company proposed PCD does not cover the full costs of the investment being proposed. For consistency across companies with material enhancement line expenditure, we are introducing a common price control deliverable in this area. For more information on PCD decisions see the PR24 draft determinations: Expenditure allowances - Price control deliverable appendix. | K16: Some concerns | L16: N/A
B18: End of published version

Sheet AFW CNBS
A1: Deep Dive - Affinity Water (C&NBS) | I1: Draft determination:
B3: Company | C3: AFW | G3: Pass | I3: Company | J3: AFW
B4: Scheme/Programme name | C4: WINEP Water Framework Directive (WFD) | G4: Partial pass | I4: Scheme/Programme name | J4: WINEP Water Framework Directive (WFD)
B5: Scheme/Programme overview | C5: Full programme consists of: a) A programme of Catchment and Nature Based Solutions (C&NBS) incorporating river restoration and catchment management initiatives for the Colne; Upper Lea; Dour and Little Stour; Cam and Ivel catchments. b) A chalk stream catchment restoration scheme for the River Beane in Hertfordshire to deliver the ambition of Defra’s Catchment Based Approach chalk stream restoration strategy and implementation plan. | G5: Fail | I5: Scheme/Programme overview | J5: Full programme consists of: a) A programme of sustainable abstraction reductions with ten sustainability reduction schemes; four average deployable output (ADO) relocation schemes; and nine no deterioration schemes. This programme mainly consists of pipelines/transfers and network reconfiguration investments. b) A programme of Catchment and Nature Based Solutions (C&NBS) incorporating river restoration and catchment management initiatives for the Colne; Upper Lea; Dour and Little Stour; Cam and Ivel catchments. c) A chalk stream catchment restoration scheme for the River Beane in Hertfordshire to deliver the ambition of Defra’s Catchment Based Approach chalk stream restoration strategy and implementation plan.
B6: PR24 table line allocation | C6: Water Framework Directive; (WINEP/NEP) water - CW3.18 | G6: Pass | I6: PR24 table line allocation | J6: Water Framework Directive; (WINEP/NEP) water - CW3.18
B7: Total requested in business plan (totex, £m) | C7: 16.575 | G7: Minor concerns | I7: Total requested in business plan (totex, £m) | J7: 141.004
B8: Scheme/Programme value assessed in deep dive (totex, £m) | C8: 16.575 | G8: Some concerns | I8: Scheme/Programme value assessed in deep dive (totex, £m) | J8: 141.004
B9: Overall adjustment | C9: =E13+E14+E15 -> 0 | G9: Significant concerns | I9: Overall adjustment | J9: =SUM(L13:L16) -> 0.3756489178
B10: Totex allowance from deep dive (£m) | C10: =C8*(1-C9) -> 16.575 | I10: Totex allowance from deep dive | J10: =J8*(1-J9) -> 88.036
B12: Enhancement assessment criteria grouping | C12: Assessment comments | D12: Criteria decision | E12: % adjustment | F12: Reference (e.g. document and page number) | I12: Enhancement assessment criteria grouping | J12: Assessment comments | K12: Criteria decision | L12: % adjustment | M12: Reference (e.g. document and page number)
B13: Need for enhancement investment | C13: In the draft determination this part of the proposed WFD investment was assessed together with the Sustainability Reductions programme. In its representation the company states our adjustment was based on the application of an incorrect assumption relating to the Connect 2050/sustainability reductions investment cases, but was erroneously applied across the C&NBS river restoration and catchment management cases, and that these are significantly different interventions to those in the proposed Connect 2050/sustainability reductions cases. For the final determination, we now assess the C&NBS river restoration and catchment management schemes separately from the remainder of the Sustainability Reductions programme. The company provides sufficient and convincing evidence to demonstrate that the proposed investment meets the enhancement criteria for investment need. Therefore, for the final determination, we do not apply an adjustment. In the draft determination we had concerns that the proposed investment met the need for enhancement investment criteria because the company did not demonstrate that there are no water framework directive (WFD) activity overlaps with base allowances and previously funded enhancement schemes. The company sets out the list (including. WINEP Action ID) of catchments within which it is planning to deliver work in 2025 – 2030, and for waterbodies where it previously delivered river restoration projects in 2015 - 2020 or 2020 – 2025. The company states it will be delivering new projects at new locations and provides maps identifying 2020-25 water quality scheme areas against those planned for 2025-30 showing different locations. The company provides sufficient and convincing evidence to meet the enhancement criteria for investment need. Therefore, for the final determination, we do not apply an adjustment. | D13: Pass | E13: 0 | F13: Affinity Water PR24 Draft Determination Representation | I13: Need for enhancement investment | J13: Partial pass: The investment partly meets the criteria for enhancement investment and additional customer funding. The proposed investment is consistent with the company's water industry national environment programme (WINEP) schemes. The company does not provide sufficient and convincing evidence that there are no water framework directive (WFD) activity overlaps with base allowances and previously funded enhancement schemes. The company sets out in its technical annex for the Connect 2050 (umbrella name for the schemes being proposed to meet its WRMP and agreed sustainability reduction (WINEP) requirements) how the strategic level assessment was carried out using an approach that aimed to address both the WRMP24 needs, as well as the requirements relating to the WINEP. The company illustrates its optioneering process which involves the application of network constraints in modelling for the identification and selection of final solutions. This indicates that the current constraints have been incorporated into the problem statement (modelling) the company seeks to address . Therefore, the company does not provide any evidence that applying existing operational constraints does not create overlaps with base expenditure. The company further states that a water supply systems-based approach has been taken to identify the preferred options and therefore whilst it has separated out costs and apportioned these against individual sources, there are multiple interdependencies of schemes. Affinity Water states that the costs are only those additional as a result of the sustainability reductions i.e. the installation of additional assets that otherwise would not be required . For the Connect 2050 project it says there is no overlap of projected improvements with previously funded investments under the company's Supply 2040 programme or any other programmes, but it is unclear if this is the case because the company fails to provide sufficient and convincing evidence that there are no overlaps. Therefore, the company does not provide sufficient and convincing evidence that there are no overlaps with activities funded through base costs (such as maintenance/operational activities). The company also states that through the PR24 WINEP development process it has worked to ensure that all lines on the PR24 WINEP spreadsheet relate to new schemes and that its 2025-30 river restoration and catchment management programme will focus on new reaches of rivers/areas within catchments but does not provide sufficient and convincing evidence to show there is no overlap with previous enhancement funding . A partial pass with a 20% adjustment is therefore applied for this scheme. | K13: Partial pass | L13: 0.2 | M13: AFW14a - Enhancement investment cases Query response AFW-WINEP-001 Query response – OFW-OBQ-AFW-090
B14: Best option for customers | C14: In the draft determination we had some concerns that the proposed investment was the best option for customers and applied an adjustment. In its representation the company provides sufficient and convincing evidence to address our concerns and to demonstrate that the proposed investment is efficient. Therefore, for the final determination, we do not apply an adjustment. In the draft determination we had concerns that the company did not consider an appropriate number of options over a range of intervention types to meet the identified needs. In its representation the company states that these are wholly irrelevant to the C&NBS (river restoration and catchment management) investment cases, presumably referring to the Connect 2050 and sustainability reductions elements with the references to “network reinforcements and transfer schemes”. The company provides more information on the process it used and evidence in the form of unconstrained and constrained lists for each action and reasons for rejection/screening into feasible options using its Option Evaluation process. NPVs of options and benefit/cost ratios were calculated; those are provided in the representation. The company states it undertook sensitivity studies, and combined projects for analysis as necessary to ensure it has selected the best option for customers. The company provides sufficient and convincing evidence to demonstrate that the proposed investment is the best option for customers. Therefore, for the final determination, we do not apply an adjustment. | D14: Pass | E14: 0 | F14: Affinity Water PR24 Draft Determination Representation | I14: Best option for customers | J14: Minor concerns: We have minor concerns whether the investment is the best option for customers. The company does not consider an appropriate number of options over a range of intervention types to meet the identified needs. Affinity Water states that a wide range of options have been considered and verified with its stakeholders and coarse screening process used to select feasible options from a list of alternative options for each need. The company evidences a consideration of alternative options and states it selected best value options using economic analysis. However, alternative options are limited in number given the scale of the programme and focussed on a narrow range of options, limited to network reinforcements and transfer schemes. | K14: Minor concerns | L14: =IF(K14="Pass",0%,IF(K14="Minor concerns",10%,IF(K14="Some concerns",20%,IF(K14="Significant concerns",30%)))) -> 0.1 | M14: AFW14a - Enhancement investment cases
B15: Cost efficiency | C15: In the draft determination we had some concerns that the investment was efficient and applied an adjustment. In its representation the company provides sufficient and convincing evidence to address our concerns and to demonstrate that the proposed investment is efficient. Therefore, for the final determination, we do not apply an adjustment. In the draft determination we had concerns that the company did not provide evidence to show that it has considered the efficiency of costs for its WFD schemes and did not provide evidence of the use of external benchmarks and assurance. In its representation the company states that these comments are irrelevant to the C&NBS (river restoration and catchment management) investment cases, being focused mainly on the Connect 2050 and sustainability reduction elements. The company provides its PR24 WINEP Assurance Report provided by an external assurer, which states that the overall approach and methodology that has been used to develop the costs of each option and assess the benefits of each option appears to be sound, and provides a good audit trail of the decision-making process. The company provides evidence of carrying out benchmarking of river restoration activities against comparable external benchmarks, with average cost per scheme of £0.613m compared to the national river restoration inventory average of £1.797m. For catchment management the company states its schemes align with the Defra sustainable farm payments and so these are consistent with rates applied by all sectors. The company provides sufficient and convincing evidence to demonstrate that the proposed investment is efficient. Therefore, for the final determination, we do not apply an adjustment. | D15: Pass | E15: 0 | F15: Affinity Water PR24 Draft Determination Representation | I15: Cost efficiency | J15: Some concerns: We have some concerns whether the investment is efficient. The company does not provide sufficient and convincing evidence that the proposed costs are efficient. The company states that the costs for each option have been calculated using a combination of unit cost model, which uses unit costs for river restorations and catchment management activities to build up projects, and costs from previous known work and schemes. For Sustainability reductions Affinity Water states it used a strategic level optioneering process incorporating a number of different modelling processes, but does not reference cost efficiency. The company does not provide evidence to show that it has considered the efficiency of costs for its WFD schemes and does not evidence the use of external benchmarks. The company states that it used a third-party to carry out assurance of this business case but it does not provide sufficient and convincing evidence of cost estimation and efficiency assurance. For the three pipelines included in this programme, we tested the efficiency in the Supply interconnector model using the relevant variables of length (km) and benefit (Ml/d). Based on this benchmarking we concluded that the pipeline schemes were efficient. For the remainder of the cost request (non-interconnector component) we apply our cost efficiency challenge (20%), due insufficient evidence for cost efficiency as described above. This results in an overall 7.56% challenge. | K15: Some concerns | L15: =(0.2*(J8-87.67))/J8 -> 0.07564891776 | M15: AFW14a - Enhancement investment cases
B16: Customer protection | C16: For the final determination, the company's proposed investment meets the materiality threshold for a price control deliverable (PCD). The company proposes a PCD, and we consider one is required to provide customer protection. Therefore, for the final determination we apply a PCD. We discuss the PCD and our consideration of any consultation responses received in the Price Control Deliverables Appendix. | D16: Pass | E16: N/A | F16: Affinity Water PR24 Draft Determination Representation | I16: Customer protection | J16: Some concerns: We have some concerns whether the price control deliverable (PCD) proposed is aligned with the enhancement investment. The company provides a PCD for the sustainability reductions, reduction in average deployable output and WFD no deterioration programme, which forms 89% of its WFD proposals. The scope of the company proposed PCD does not cover the full costs of the investment being proposed. For consistency across companies with material enhancement line expenditure, we are introducing a common price control deliverable in this area. For more information on PCD decisions see the PR24 draft determinations: Expenditure allowances - Price control deliverable appendix. | K16: Some concerns | L16: N/A
B18: End of published version

Sheet SEW
A1: Deep Dive - South East Water | I1: Draft determination:
B3: Company | C3: SEW | G3: Pass | I3: Company | J3: SEW
B4: Scheme/Programme name | C4: WINEP Water Framework Directive (WFD) | G4: Partial pass | I4: Scheme/Programme name | J4: WINEP Water Framework Directive (WFD)
B5: Scheme/Programme overview | C5: The full programme includes: 1 catchment measure; 1 fish habitat improvement; 7 schemes awaiting results of AMP7 investigations; four of which may result in abstraction license changes.​ | G5: Fail | I5: Scheme/Programme overview | J5: The full programme includes: 1 catchment measure; 1 fish habitat improvement; 7 schemes awaiting results of AMP7 investigations; four of which may result in abstraction license changes.​
B6: PR24 table line allocation | C6: Water Framework Directive; (WINEP/NEP) water - CW3.18 | G6: Pass | I6: PR24 table line allocation | J6: Water Framework Directive; (WINEP/NEP) water - CW3.18
B7: Total requested in business plan (totex, £m) | C7: 10.602 | G7: Minor concerns | I7: Total requested in business plan (totex, £m) | J7: 9.8
B8: Scheme/Programme value assessed in deep dive (totex, £m) | C8: ='Materiality & shallow dive'!D20 -> 8.101715236 | G8: Some concerns | I8: Scheme/Programme value assessed in deep dive (totex, £m) | J8: 9.8
B9: Overall adjustment | C9: =E13+E14+E15 -> 0.08924036194 | I9: Overall adjustment | J9: =SUM(L13:L16) -> 0.4
B10: Totex allowance from deep dive | C10: =C8*(1-C9) -> 7.378715236 | I10: Totex allowance from deep dive | J10: =J8*(1-J9) -> 5.88
B12: Enhancement assessment criteria grouping | C12: Assessment comments | D12: Criteria decision | E12: % adjustment | F12: Reference (e.g. document and page number) | I12: Enhancement assessment criteria grouping | J12: Assessment comments | K12: Criteria decision | L12: % adjustment | M12: Reference (e.g. document and page number)
B13: Need for enhancement investment | C13: In the draft determination the proposed investment met the criteria for enhancement investment and additional customer funding. In its representation the company includes its proposed investment submitted in its October 2023 business plan, but it provides no additional supporting evidence. Therefore, we retain our draft determination approach for the final determination. | D13: Pass | E13: 0 | F13: SEWDD2d - Response to cost assessment - WINEP | I13: Need for enhancement investment | J13: Pass: The investment meets the criteria for enhancement investment and additional customer funding. The company's proposed investment is consistent with its water industry national environment programme (WINEP). The company provides a list of WINEP implementation actions included in its programme, which it states are related to PR19 funded WINEP investigations and provides sufficient and convincing commentary to show there is no overlap with base or previous enhancement funding because they will deliver new measures resulting from the 2020-25 investigations and trials. | K13: Pass | L13: 0 | M13: SEW18 Environment
B14: Best option for customers | C14: In the draft determination we had some concerns that the proposed investment was the best option for customers and applied an adjustment. In its representation the company provides additional evidence, however we still have minor concerns that the investment is the best option for customers. Therefore, we reduce our draft determination adjustment for the final determination. In the draft determination we had concerns that the company did not provide sufficient and convincing evidence of optioneering and cost benefit analysis to demonstrate that the chosen options are the right solutions. The company provides a summary of the optioneering process in its representation to our draft determination. The company states that each option has been taken through steps detailed in the Environment Agency’s WINEP options development guidance and was assessed and approved by the Environment Agency. The evidence provided by the company identifies that for six out of eight WINEP Water Framework Directive (WFD) actions are presented as holding lines and the company states the information presented within its option development reports (ODRs) and option assessment reports (OARs) is based on the best available information to date and the ODR/OAR and that PR24 WINEP submission will be updated at a later stage via an alteration, once the investigation and options appraisal has been completed. In addition, the company states that scheme Bisham Brook - Hurley and Cookham are also likely to be removed from the programme (totex £1.39m). Therefore, we reduce our draft determination adjustment for the final determination. For the final determination, we make 10% adjustments to the following actions included as holding lines awaiting outcomes from 2020-2025 period due to no evidence of options appraisal: Darent - Cramptons Road (Kemsing and Oak Lane) Hart - Itchel Maidenhead Ditch - College Avenue (Cookham) Wey Bisham Brook - Hurley and Cookham North Kent (Groundwater Modelling) | D14: Some concerns | E14: =(0.1*('Inputs_SEW Query'!D9+'Inputs_SEW Query'!D11+'Inputs_SEW Query'!D12+'Inputs_SEW Query'!D13+'Inputs_SEW Query'!D14+'Inputs_SEW Query'!D15))/C8 -> 0.08924036194 | F14: SEWDD2d - Response to cost assessment - WINEP OFW-PR24 - 09. SEW WINEP ODR RSA options 16.02.2023 V3 | I14: Best option for customers | J14: Some concerns: We have some concerns whether the investment is the best option for customers. Evidence of alternative options being considered was provided for only a limited number of schemes and the company does not provide details of optioneering to demonstrate that the chosen option is the right solution. It has also not provided sufficient and convincing evidence to demonstrate that the chosen option is the most cost beneficial in comparison to others. South East Water provides its enhancement case but the supporting narrative does not provide sufficient background to the optioneering process nor demonstrates that the chosen options are the most cost beneficial in comparison to alternatives. The company provides the option appraisal reports which indicate no alternative options were considered for the majority of schemes. Therefore, it is not possible to determine if the chosen options are the right solutions. | K14: Some concerns | L14: 0.2 | M14: SEW18 Environment
B15: Cost efficiency | C15: In the draft determination we had some concerns that the investment was efficient and applied an adjustment. The company in its representation provides additional evidence, however we still have some concerns that the investment is efficient. Therefore, we reduce the draft determination adjustment for the final determination. In the draft determination we had concerns that the company did not provide sufficient and convincing evidence that its costs are efficient or any evidence of cost benchmarking or third party assurance of costs. The company states that the bespoke, bottom-up costing approach adopted by South East Water under WINEP24 was carried out based on a project scope that reflects the requirements of the scheme and the local scenario. The company states that all schemes followed the same costing methodology with variations only to adjust the approach to scheme specific requirements, and that because these costs were bespoke and considered to be accurate, a 40% overall reduction in value would render the schemes undeliverable. The company has not provided new material evidence to demonstrate that its costs are efficient and has not provided any evidence of cost benchmarking or third party assurance of costs. We therefore still have some concerns that the proposed investment is efficient. However, as we are making an adjustment due to concerns that the company may have not selected the best option, we do not apply an additional adjustment for cost efficiency. Please see the 'PR24 final determination: expenditure allowances' document for further information on our approach to determining expenditure allowances. | D15: Pass | E15: 0 | F15: SEWDD2d - Response to cost assessment - WINEP | I15: Cost efficiency | J15: Some concerns: We have some concerns whether the investment is efficient. The company does not provide sufficient and convincing evidence that the proposed costs are efficient. The company states it has developed the costs using information from its current programme of works to build up a separate cost profile for each scheme but does not present any evidence of the cost build ups. South East Water also does not provide evidence of cost benchmarking or third-party assurance of costs to demonstrate that they are efficient. | K15: Some concerns | L15: 0.2 | M15: SEW18 Environment
B16: Customer protection | C16: For the final determination, the company's proposed investment does not meet the materiality threshold for a price control deliverable (PCD). The company does not propose a PCD. Having considered the size of the proposed investment and our guidance on when there should be a PCD, our decision is that a PCD is not required for this investment. Therefore, for the final determination we do not apply a PCD. | D16: Pass | E16: N/A | I16: Customer protection | J16: Pass: The company does not propose a price control deliverable (PCD) for this investment. The expenditure in this area is not material and so we do not consider a PCD is required. | K16: Pass | L16: N/A
B18: End of published version

Sheet Outputs >>

Sheet Allowance
A1: =RIGHT(CELL("filename", $A$1), LEN(CELL("filename", $A$1)) - SEARCH("]", CELL("filename", $A$1))) -> 
A3: Summary of allowed costs
A6: Cost allowance for 2025-2030 (£m in 2022-23 prices)
B9: Company | C9: Totex in business plan - wholesale water | D9: Net totex reallocated in/out | E9: Totex after reallocations | F9: Shallow dive allowance | G9: Modelled/ benchmark allowance | H9: Deep dive allowance | I9: Totex allowed - wholesale water
A10: 1 | B10: ANH | C10: =INDEX('Consolidated Input'!$K$5:$K$21,MATCH(B10,$B$10:$B$26,0)) -> 26.347 | E10: =C10+D10 -> 26.347 | H10: =ANH!C10 -> 23.7123 | I10: =SUM(F10:H10) -> 23.7123
A11: 2 | B11: WSH | C11: =INDEX('Consolidated Input'!$K$5:$K$21,MATCH(B11,$B$10:$B$26,0)) -> 2.251 | E11: =C11+D11 -> 2.251 | F11: =_xlfn.IFNA(VLOOKUP(Allowance!B11,'Materiality & shallow dive'!$B$5:$H$22,7,0),"") -> 2.22849 | I11: =SUM(F11:H11) -> 2.22849
A12: 3 | B12: HDD | C12: =INDEX('Consolidated Input'!$K$5:$K$21,MATCH(B12,$B$10:$B$26,0)) -> 0.085 | E12: 0.085 | F12: =_xlfn.IFNA(VLOOKUP(Allowance!B12,'Materiality & shallow dive'!$B$5:$H$22,7,0),"") -> 0.085 | I12: 0.085
A13: 4 | B13: NES | C13: =INDEX('Consolidated Input'!$K$5:$K$21,MATCH(B13,$B$10:$B$26,0)) -> 7.653 | E13: 7.653 | F13: =_xlfn.IFNA(VLOOKUP(Allowance!B13,'Materiality & shallow dive'!$B$5:$H$22,7,0),"") -> 7.653 | I13: 7.653
A14: 5 | B14: SVE | C14: =INDEX('Consolidated Input'!$K$5:$K$21,MATCH(B14,$B$10:$B$26,0)) -> 329.1571882 | E14: 329.1571882 | H14: =SVE!C10 -> 275.1998619 | I14: 275.1998619
A15: 6 | B15: SWB | C15: =INDEX('Consolidated Input'!$K$5:$K$21,MATCH(B15,$B$10:$B$26,0)) -> 6.457026 | E15: 6.457026 | F15: =_xlfn.IFNA(VLOOKUP(Allowance!B15,'Materiality & shallow dive'!$B$5:$H$22,7,0),"") -> 5.8113234 | I15: 5.8113234
A16: 7 | B16: SRN | C16: =INDEX('Consolidated Input'!$K$5:$K$21,MATCH(B16,$B$10:$B$26,0)) -> 8.225 | E16: 8.225 | F16: =_xlfn.IFNA(VLOOKUP(Allowance!B16,'Materiality & shallow dive'!$B$5:$H$22,7,0),"") -> 7.4025 | I16: 7.4025
A17: 8 | B17: TMS | C17: =INDEX('Consolidated Input'!$K$5:$K$21,MATCH(B17,$B$10:$B$26,0)) -> 50 | D17: 4.564 | E17: 54.564 | H17: =TMS!C10 -> 49.1076 | I17: 49.1076
A18: 9 | B18: NWT | C18: =INDEX('Consolidated Input'!$K$5:$K$21,MATCH(B18,$B$10:$B$26,0)) -> 20.76350326 | E18: 20.76350326 | F18: =_xlfn.IFNA(VLOOKUP(Allowance!B18,'Materiality & shallow dive'!$B$5:$H$22,7,0),"") -> 20.76350326 | I18: 20.76350326
A19: 10 | B19: WSX | C19: =INDEX('Consolidated Input'!$K$5:$K$21,MATCH(B19,$B$10:$B$26,0)) -> 3.562378 | E19: 3.562378 | F19: =_xlfn.IFNA(VLOOKUP(Allowance!B19,'Materiality & shallow dive'!$B$5:$H$22,7,0),"") -> 3.31301154 | I19: 3.31301154
A20: 11 | B20: YKY | C20: =INDEX('Consolidated Input'!$K$5:$K$21,MATCH(B20,$B$10:$B$26,0)) -> 8.5643088 | D20: -0.239 | E20: 8.3253088 | F20: =_xlfn.IFNA(VLOOKUP(Allowance!B20,'Materiality & shallow dive'!$B$5:$H$22,7,0),"") -> 8.3253088 | I20: 8.3253088
A21: 12 | B21: AFW | C21: =INDEX('Consolidated Input'!$K$5:$K$21,MATCH(B21,$B$10:$B$26,0)) -> 140.987 | E21: 140.987 | H21: ='AFW SR'!C10+'AFW CNBS'!C10 -> 135.4757 | I21: 135.4757
A22: 13 | B22: BRL | C22: =INDEX('Consolidated Input'!$K$5:$K$21,MATCH(B22,$B$10:$B$26,0)) -> 2.635293632 | E22: 2.635293632 | F22: =_xlfn.IFNA(VLOOKUP(Allowance!B22,'Materiality & shallow dive'!$B$5:$H$22,7,0),"") -> 2.477176014 | I22: 2.477176014
A23: 14 | B23: PRT | C23: =INDEX('Consolidated Input'!$K$5:$K$21,MATCH(B23,$B$10:$B$26,0)) -> 0.04545 | E23: 0.04545 | F23: =_xlfn.IFNA(VLOOKUP(Allowance!B23,'Materiality & shallow dive'!$B$5:$H$22,7,0),"") -> 0.0422685 | I23: 0.0422685
A24: 15 | B24: SEW | C24: =INDEX('Consolidated Input'!$K$5:$K$21,MATCH(B24,$B$10:$B$26,0)) -> 10.60171524 | D24: =-(1.16+1.34) -> -2.5 | E24: 8.101715236 | H24: =SEW!C10 -> 7.378715236 | I24: 7.378715236
A25: 16 | B25: SSC | C25: =INDEX('Consolidated Input'!$K$5:$K$21,MATCH(B25,$B$10:$B$26,0)) -> 0.8589009658 | E25: 0.8589009658 | F25: =_xlfn.IFNA(VLOOKUP(Allowance!B25,'Materiality & shallow dive'!$B$5:$H$22,7,0),"") -> 0.8589009658 | I25: 0.8589009658
A26: 17 | B26: SES | C26: =INDEX('Consolidated Input'!$K$5:$K$21,MATCH(B26,$B$10:$B$26,0)) -> 0.217 | E26: 0.217 | F26: =_xlfn.IFNA(VLOOKUP(Allowance!B26,'Materiality & shallow dive'!$B$5:$H$22,7,0),"") -> 0.1953 | I26: 0.1953
B27: Total | C27: =SUM(C10:C26) -> 618.4107641 | D27: =SUM(D10:D26) -> 1.825 | E27: 620.2357641 | F27: =SUM(F10:F26) -> 59.15578248 | G27: =SUM(G10:G26) -> 0 | H27: 490.8741771 | I27: 550.0299596

Sheet Outputs to aggregator
A1: =RIGHT(CELL("filename", $A$1), LEN(CELL("filename", $A$1)) - SEARCH("]", CELL("filename", $A$1))) -> 
A3: Summary of submitted costs before and after reallocations
B5: As submitted | O5: As assessed
B6: Company | C6: Totex in business plan - wholesale water | D6: 2023/2024 - transition exp | E6: 2023/2024 - accelerated prog | F6: 2024/2025 - transition exp | G6: 2024/2025 - accelerated prog | H6: 2025/2026 | I6: 2026/2027 | J6: 2027/2028 | K6: 2028/2029 | L6: 2029/2030 | M6: Total | O6: Company | P6: Totex in business plan - wholesale water | Q6: 2023/2024 - transition exp | R6: 2023/2024 - accelerated prog | S6: 2024/2025 - transition exp | T6: 2024/2025 - accelerated prog | U6: 2025/2026 | V6: 2026/2027 | W6: 2027/2028 | X6: 2028/2029 | Y6: 2029/2030 | Z6: Total
B7: =Allowance!B10 -> ANH | C7: =Allowance!C10 -> 26.347 | D7: =SUMIFS('F_Inputs BP'!F$8:F$58,'F_Inputs BP'!$A$8:$A$58,B7,'F_Inputs BP'!$B$8:$B$58,"CW12_018TOT_PR24") -> 0 | E7: =SUMIFS('F_Inputs BP'!H$8:H$58,'F_Inputs BP'!$A$8:$A$58,B7,'F_Inputs BP'!$B$8:$B$58,"CW17_018TOT_PR24") -> 0 | F7: =SUMIFS('F_Inputs BP'!G$8:G$58,'F_Inputs BP'!$A$8:$A$58,B7,'F_Inputs BP'!$B$8:$B$58,"CW12_018TOT_PR24") -> 0.657 | G7: =SUMIFS('F_Inputs BP'!I$8:I$58,'F_Inputs BP'!$A$8:$A$58,B7,'F_Inputs BP'!$B$8:$B$58,"CW17_018TOT_PR24") -> 0 | H7: =VLOOKUP($B7,'Consolidated Input'!$A$4:$J$21,6,0) -> 3.406 | I7: =VLOOKUP($B7,'Consolidated Input'!$A$4:$J$21,7,0) -> 5.574 | J7: =VLOOKUP($B7,'Consolidated Input'!$A$4:$J$21,8,0) -> 6.609 | K7: =VLOOKUP($B7,'Consolidated Input'!$A$4:$J$21,9,0) -> 5.871 | L7: =VLOOKUP($B7,'Consolidated Input'!$A$4:$J$21,10,0) -> 4.23 | M7: =SUM(D7:L7) -> 26.347 | O7: =Allowance!B10 -> ANH | P7: =Allowance!E10 -> 26.347 | Q7: =D7 -> 0 | R7: =E7 -> 0 | S7: 0.657 | T7: 0 | U7: =VLOOKUP($B7,'Final Input'!$A$4:$J$21,6,0) -> 3.406 | V7: =VLOOKUP($B7,'Final Input'!$A$4:$J$21,7,0) -> 5.574 | W7: =VLOOKUP($B7,'Final Input'!$A$4:$J$21,8,0) -> 6.609 | X7: =VLOOKUP($B7,'Final Input'!$A$4:$J$21,9,0) -> 5.871 | Y7: =VLOOKUP($B7,'Final Input'!$A$4:$J$21,10,0) -> 4.23 | Z7: =SUM(Q7:Y7) -> 26.347
B8: =Allowance!B11 -> WSH | C8: =Allowance!C11 -> 2.251 | D8: =SUMIFS('F_Inputs BP'!F$8:F$58,'F_Inputs BP'!$A$8:$A$58,B8,'F_Inputs BP'!$B$8:$B$58,"CW12_018TOT_PR24") -> 0 | E8: =SUMIFS('F_Inputs BP'!H$8:H$58,'F_Inputs BP'!$A$8:$A$58,B8,'F_Inputs BP'!$B$8:$B$58,"CW17_018TOT_PR24") -> 0 | F8: =SUMIFS('F_Inputs BP'!G$8:G$58,'F_Inputs BP'!$A$8:$A$58,B8,'F_Inputs BP'!$B$8:$B$58,"CW12_018TOT_PR24") -> 0 | G8: =SUMIFS('F_Inputs BP'!I$8:I$58,'F_Inputs BP'!$A$8:$A$58,B8,'F_Inputs BP'!$B$8:$B$58,"CW17_018TOT_PR24") -> 0 | H8: =VLOOKUP($B8,'Consolidated Input'!$A$4:$J$21,6,0) -> 0.454 | I8: =VLOOKUP($B8,'Consolidated Input'!$A$4:$J$21,7,0) -> 0.446 | J8: =VLOOKUP($B8,'Consolidated Input'!$A$4:$J$21,8,0) -> 0.447 | K8: =VLOOKUP($B8,'Consolidated Input'!$A$4:$J$21,9,0) -> 0.448 | L8: =VLOOKUP($B8,'Consolidated Input'!$A$4:$J$21,10,0) -> 0.456 | M8: =SUM(D8:L8) -> 2.251 | O8: =Allowance!B11 -> WSH | P8: =Allowance!E11 -> 2.251 | Q8: =D8 -> 0 | R8: =E8 -> 0 | S8: =F8 -> 0 | T8: =G8 -> 0 | U8: =VLOOKUP($B8,'Final Input'!$A$4:$J$21,6,0) -> 0.454 | V8: =VLOOKUP($B8,'Final Input'!$A$4:$J$21,7,0) -> 0.446 | W8: =VLOOKUP($B8,'Final Input'!$A$4:$J$21,8,0) -> 0.447 | X8: =VLOOKUP($B8,'Final Input'!$A$4:$J$21,9,0) -> 0.448 | Y8: =VLOOKUP($B8,'Final Input'!$A$4:$J$21,10,0) -> 0.456 | Z8: =SUM(Q8:Y8) -> 2.251
B9: =Allowance!B12 -> HDD | C9: =Allowance!C12 -> 0.085 | D9: =SUMIFS('F_Inputs BP'!F$8:F$58,'F_Inputs BP'!$A$8:$A$58,B9,'F_Inputs BP'!$B$8:$B$58,"CW12_018TOT_PR24") -> 0 | E9: =SUMIFS('F_Inputs BP'!H$8:H$58,'F_Inputs BP'!$A$8:$A$58,B9,'F_Inputs BP'!$B$8:$B$58,"CW17_018TOT_PR24") -> 0 | F9: =SUMIFS('F_Inputs BP'!G$8:G$58,'F_Inputs BP'!$A$8:$A$58,B9,'F_Inputs BP'!$B$8:$B$58,"CW12_018TOT_PR24") -> 0 | G9: =SUMIFS('F_Inputs BP'!I$8:I$58,'F_Inputs BP'!$A$8:$A$58,B9,'F_Inputs BP'!$B$8:$B$58,"CW17_018TOT_PR24") -> 0 | H9: =VLOOKUP($B9,'Consolidated Input'!$A$4:$J$21,6,0) -> 0 | I9: =VLOOKUP($B9,'Consolidated Input'!$A$4:$J$21,7,0) -> 0 | J9: =VLOOKUP($B9,'Consolidated Input'!$A$4:$J$21,8,0) -> 0.028 | K9: =VLOOKUP($B9,'Consolidated Input'!$A$4:$J$21,9,0) -> 0.028 | L9: =VLOOKUP($B9,'Consolidated Input'!$A$4:$J$21,10,0) -> 0.029 | M9: 0.085 | O9: =Allowance!B12 -> HDD | P9: =Allowance!E12 -> 0.085 | Q9: 0 | R9: 0 | S9: 0 | T9: 0 | U9: =VLOOKUP($B9,'Final Input'!$A$4:$J$21,6,0) -> 0 | V9: =VLOOKUP($B9,'Final Input'!$A$4:$J$21,7,0) -> 0 | W9: =VLOOKUP($B9,'Final Input'!$A$4:$J$21,8,0) -> 0.028 | X9: =VLOOKUP($B9,'Final Input'!$A$4:$J$21,9,0) -> 0.028 | Y9: =VLOOKUP($B9,'Final Input'!$A$4:$J$21,10,0) -> 0.029 | Z9: 0.085
B10: =Allowance!B13 -> NES | C10: =Allowance!C13 -> 7.653 | D10: =SUMIFS('F_Inputs BP'!F$8:F$58,'F_Inputs BP'!$A$8:$A$58,B10,'F_Inputs BP'!$B$8:$B$58,"CW12_018TOT_PR24") -> 0 | E10: =SUMIFS('F_Inputs BP'!H$8:H$58,'F_Inputs BP'!$A$8:$A$58,B10,'F_Inputs BP'!$B$8:$B$58,"CW17_018TOT_PR24") -> 0 | F10: =SUMIFS('F_Inputs BP'!G$8:G$58,'F_Inputs BP'!$A$8:$A$58,B10,'F_Inputs BP'!$B$8:$B$58,"CW12_018TOT_PR24") -> 0.052 | G10: =SUMIFS('F_Inputs BP'!I$8:I$58,'F_Inputs BP'!$A$8:$A$58,B10,'F_Inputs BP'!$B$8:$B$58,"CW17_018TOT_PR24") -> 0 | H10: =VLOOKUP($B10,'Consolidated Input'!$A$4:$J$21,6,0) -> 1.688 | I10: =VLOOKUP($B10,'Consolidated Input'!$A$4:$J$21,7,0) -> 1.571 | J10: =VLOOKUP($B10,'Consolidated Input'!$A$4:$J$21,8,0) -> 1.433 | K10: =VLOOKUP($B10,'Consolidated Input'!$A$4:$J$21,9,0) -> 1.476 | L10: =VLOOKUP($B10,'Consolidated Input'!$A$4:$J$21,10,0) -> 1.433 | M10: 7.653 | O10: =Allowance!B13 -> NES | P10: =Allowance!E13 -> 7.653 | Q10: 0 | R10: 0 | S10: 0.052 | T10: 0 | U10: =VLOOKUP($B10,'Final Input'!$A$4:$J$21,6,0) -> 1.688 | V10: =VLOOKUP($B10,'Final Input'!$A$4:$J$21,7,0) -> 1.571 | W10: =VLOOKUP($B10,'Final Input'!$A$4:$J$21,8,0) -> 1.433 | X10: =VLOOKUP($B10,'Final Input'!$A$4:$J$21,9,0) -> 1.476 | Y10: =VLOOKUP($B10,'Final Input'!$A$4:$J$21,10,0) -> 1.433 | Z10: 7.653
B11: =Allowance!B14 -> SVE | C11: =Allowance!C14 -> 329.1571882 | D11: =SUMIFS('F_Inputs BP'!F$8:F$58,'F_Inputs BP'!$A$8:$A$58,B11,'F_Inputs BP'!$B$8:$B$58,"CW12_018TOT_PR24") -> 0 | E11: =SUMIFS('F_Inputs BP'!H$8:H$58,'F_Inputs BP'!$A$8:$A$58,B11,'F_Inputs BP'!$B$8:$B$58,"CW17_018TOT_PR24") -> 0 | F11: =SUMIFS('F_Inputs BP'!G$8:G$58,'F_Inputs BP'!$A$8:$A$58,B11,'F_Inputs BP'!$B$8:$B$58,"CW12_018TOT_PR24") -> 11.13518816 | G11: =SUMIFS('F_Inputs BP'!I$8:I$58,'F_Inputs BP'!$A$8:$A$58,B11,'F_Inputs BP'!$B$8:$B$58,"CW17_018TOT_PR24") -> 0 | H11: =VLOOKUP($B11,'Consolidated Input'!$A$4:$J$21,6,0) -> 52.472 | I11: =VLOOKUP($B11,'Consolidated Input'!$A$4:$J$21,7,0) -> 67.937 | J11: =VLOOKUP($B11,'Consolidated Input'!$A$4:$J$21,8,0) -> 83.747 | K11: =VLOOKUP($B11,'Consolidated Input'!$A$4:$J$21,9,0) -> 83.227 | L11: =VLOOKUP($B11,'Consolidated Input'!$A$4:$J$21,10,0) -> 30.639 | M11: 329.1571882 | O11: =Allowance!B14 -> SVE | P11: =Allowance!E14 -> 329.1571882 | Q11: 0 | R11: 0 | S11: 11.13518816 | T11: 0 | U11: =VLOOKUP($B11,'Final Input'!$A$4:$J$21,6,0) -> 52.472 | V11: =VLOOKUP($B11,'Final Input'!$A$4:$J$21,7,0) -> 67.937 | W11: =VLOOKUP($B11,'Final Input'!$A$4:$J$21,8,0) -> 83.747 | X11: =VLOOKUP($B11,'Final Input'!$A$4:$J$21,9,0) -> 83.227 | Y11: =VLOOKUP($B11,'Final Input'!$A$4:$J$21,10,0) -> 30.639 | Z11: 329.1571882
B12: =Allowance!B15 -> SWB | C12: =Allowance!C15 -> 6.457026 | D12: =SUMIFS('F_Inputs BP'!F$8:F$58,'F_Inputs BP'!$A$8:$A$58,B12,'F_Inputs BP'!$B$8:$B$58,"CW12_018TOT_PR24") -> 0 | E12: =SUMIFS('F_Inputs BP'!H$8:H$58,'F_Inputs BP'!$A$8:$A$58,B12,'F_Inputs BP'!$B$8:$B$58,"CW17_018TOT_PR24") -> 0 | F12: =SUMIFS('F_Inputs BP'!G$8:G$58,'F_Inputs BP'!$A$8:$A$58,B12,'F_Inputs BP'!$B$8:$B$58,"CW12_018TOT_PR24") -> 0 | G12: =SUMIFS('F_Inputs BP'!I$8:I$58,'F_Inputs BP'!$A$8:$A$58,B12,'F_Inputs BP'!$B$8:$B$58,"CW17_018TOT_PR24") -> 0 | H12: =VLOOKUP($B12,'Consolidated Input'!$A$4:$J$21,6,0) -> 1.250202 | I12: =VLOOKUP($B12,'Consolidated Input'!$A$4:$J$21,7,0) -> 1.250202 | J12: =VLOOKUP($B12,'Consolidated Input'!$A$4:$J$21,8,0) -> 1.318874 | K12: =VLOOKUP($B12,'Consolidated Input'!$A$4:$J$21,9,0) -> 1.318874 | L12: =VLOOKUP($B12,'Consolidated Input'!$A$4:$J$21,10,0) -> 1.318874 | M12: 6.457026 | O12: =Allowance!B15 -> SWB | P12: =Allowance!E15 -> 6.457026 | Q12: 0 | R12: 0 | S12: 0 | T12: 0 | U12: =VLOOKUP($B12,'Final Input'!$A$4:$J$21,6,0) -> 1.250202 | V12: =VLOOKUP($B12,'Final Input'!$A$4:$J$21,7,0) -> 1.250202 | W12: =VLOOKUP($B12,'Final Input'!$A$4:$J$21,8,0) -> 1.318874 | X12: =VLOOKUP($B12,'Final Input'!$A$4:$J$21,9,0) -> 1.318874 | Y12: =VLOOKUP($B12,'Final Input'!$A$4:$J$21,10,0) -> 1.318874 | Z12: 6.457026
B13: =Allowance!B16 -> SRN | C13: =Allowance!C16 -> 8.225 | D13: =SUMIFS('F_Inputs BP'!F$8:F$58,'F_Inputs BP'!$A$8:$A$58,B13,'F_Inputs BP'!$B$8:$B$58,"CW12_018TOT_PR24") -> 0 | E13: =SUMIFS('F_Inputs BP'!H$8:H$58,'F_Inputs BP'!$A$8:$A$58,B13,'F_Inputs BP'!$B$8:$B$58,"CW17_018TOT_PR24") -> 0 | F13: =SUMIFS('F_Inputs BP'!G$8:G$58,'F_Inputs BP'!$A$8:$A$58,B13,'F_Inputs BP'!$B$8:$B$58,"CW12_018TOT_PR24") -> 0 | G13: =SUMIFS('F_Inputs BP'!I$8:I$58,'F_Inputs BP'!$A$8:$A$58,B13,'F_Inputs BP'!$B$8:$B$58,"CW17_018TOT_PR24") -> 0 | H13: =VLOOKUP($B13,'Consolidated Input'!$A$4:$J$21,6,0) -> 1.645 | I13: =VLOOKUP($B13,'Consolidated Input'!$A$4:$J$21,7,0) -> 1.645 | J13: =VLOOKUP($B13,'Consolidated Input'!$A$4:$J$21,8,0) -> 1.645 | K13: =VLOOKUP($B13,'Consolidated Input'!$A$4:$J$21,9,0) -> 1.645 | L13: =VLOOKUP($B13,'Consolidated Input'!$A$4:$J$21,10,0) -> 1.645 | M13: 8.225 | O13: =Allowance!B16 -> SRN | P13: =Allowance!E16 -> 8.225 | Q13: 0 | R13: 0 | S13: 0 | T13: 0 | U13: =VLOOKUP($B13,'Final Input'!$A$4:$J$21,6,0) -> 1.645 | V13: =VLOOKUP($B13,'Final Input'!$A$4:$J$21,7,0) -> 1.645 | W13: =VLOOKUP($B13,'Final Input'!$A$4:$J$21,8,0) -> 1.645 | X13: =VLOOKUP($B13,'Final Input'!$A$4:$J$21,9,0) -> 1.645 | Y13: =VLOOKUP($B13,'Final Input'!$A$4:$J$21,10,0) -> 1.645 | Z13: 8.225
B14: =Allowance!B17 -> TMS | C14: =Allowance!C17 -> 50 | D14: =SUMIFS('F_Inputs BP'!F$8:F$58,'F_Inputs BP'!$A$8:$A$58,B14,'F_Inputs BP'!$B$8:$B$58,"CW12_018TOT_PR24") -> 0 | E14: =SUMIFS('F_Inputs BP'!H$8:H$58,'F_Inputs BP'!$A$8:$A$58,B14,'F_Inputs BP'!$B$8:$B$58,"CW17_018TOT_PR24") -> 0 | F14: =SUMIFS('F_Inputs BP'!G$8:G$58,'F_Inputs BP'!$A$8:$A$58,B14,'F_Inputs BP'!$B$8:$B$58,"CW12_018TOT_PR24") -> 0 | G14: =SUMIFS('F_Inputs BP'!I$8:I$58,'F_Inputs BP'!$A$8:$A$58,B14,'F_Inputs BP'!$B$8:$B$58,"CW17_018TOT_PR24") -> 0 | H14: =VLOOKUP($B14,'Consolidated Input'!$A$4:$J$21,6,0) -> 1.142 | I14: =VLOOKUP($B14,'Consolidated Input'!$A$4:$J$21,7,0) -> 2.718 | J14: =VLOOKUP($B14,'Consolidated Input'!$A$4:$J$21,8,0) -> 5.324 | K14: =VLOOKUP($B14,'Consolidated Input'!$A$4:$J$21,9,0) -> 9.408 | L14: =VLOOKUP($B14,'Consolidated Input'!$A$4:$J$21,10,0) -> 31.408 | M14: 50 | O14: =Allowance!B17 -> TMS | P14: =Allowance!E17 -> 54.564 | Q14: 0 | R14: 0 | S14: 0 | T14: 0 | U14: =VLOOKUP($B14,'Final Input'!$A$4:$J$21,6,0) -> 2.459 | V14: =VLOOKUP($B14,'Final Input'!$A$4:$J$21,7,0) -> 4.121 | W14: =VLOOKUP($B14,'Final Input'!$A$4:$J$21,8,0) -> 5.47 | X14: =VLOOKUP($B14,'Final Input'!$A$4:$J$21,9,0) -> 11.236 | Y14: =VLOOKUP($B14,'Final Input'!$A$4:$J$21,10,0) -> 31.278 | Z14: 54.564
B15: =Allowance!B18 -> NWT | C15: =Allowance!C18 -> 20.76350326 | D15: =SUMIFS('F_Inputs BP'!F$8:F$58,'F_Inputs BP'!$A$8:$A$58,B15,'F_Inputs BP'!$B$8:$B$58,"CW12_018TOT_PR24") -> 0.000378275606 | E15: =SUMIFS('F_Inputs BP'!H$8:H$58,'F_Inputs BP'!$A$8:$A$58,B15,'F_Inputs BP'!$B$8:$B$58,"CW17_018TOT_PR24") -> 0 | F15: =SUMIFS('F_Inputs BP'!G$8:G$58,'F_Inputs BP'!$A$8:$A$58,B15,'F_Inputs BP'!$B$8:$B$58,"CW12_018TOT_PR24") -> 0.3596989704 | G15: =SUMIFS('F_Inputs BP'!I$8:I$58,'F_Inputs BP'!$A$8:$A$58,B15,'F_Inputs BP'!$B$8:$B$58,"CW17_018TOT_PR24") -> 0 | H15: =VLOOKUP($B15,'Consolidated Input'!$A$4:$J$21,6,0) -> 6.6422425 | I15: =VLOOKUP($B15,'Consolidated Input'!$A$4:$J$21,7,0) -> 1.710822173 | J15: =VLOOKUP($B15,'Consolidated Input'!$A$4:$J$21,8,0) -> 8.014635686 | K15: =VLOOKUP($B15,'Consolidated Input'!$A$4:$J$21,9,0) -> 3.1244044 | L15: =VLOOKUP($B15,'Consolidated Input'!$A$4:$J$21,10,0) -> 0.9113212558 | M15: 20.76350326 | O15: =Allowance!B18 -> NWT | P15: =Allowance!E18 -> 20.76350326 | Q15: 0.000378275606 | R15: 0 | S15: 0.3596989704 | T15: 0 | U15: =VLOOKUP($B15,'Final Input'!$A$4:$J$21,6,0) -> 6.6422425 | V15: =VLOOKUP($B15,'Final Input'!$A$4:$J$21,7,0) -> 1.710822173 | W15: =VLOOKUP($B15,'Final Input'!$A$4:$J$21,8,0) -> 8.014635686 | X15: =VLOOKUP($B15,'Final Input'!$A$4:$J$21,9,0) -> 3.1244044 | Y15: =VLOOKUP($B15,'Final Input'!$A$4:$J$21,10,0) -> 0.9113212558 | Z15: 20.76350326
B16: =Allowance!B19 -> WSX | C16: =Allowance!C19 -> 3.562378 | D16: =SUMIFS('F_Inputs BP'!F$8:F$58,'F_Inputs BP'!$A$8:$A$58,B16,'F_Inputs BP'!$B$8:$B$58,"CW12_018TOT_PR24") -> 0 | E16: =SUMIFS('F_Inputs BP'!H$8:H$58,'F_Inputs BP'!$A$8:$A$58,B16,'F_Inputs BP'!$B$8:$B$58,"CW17_018TOT_PR24") -> 0 | F16: =SUMIFS('F_Inputs BP'!G$8:G$58,'F_Inputs BP'!$A$8:$A$58,B16,'F_Inputs BP'!$B$8:$B$58,"CW12_018TOT_PR24") -> 0 | G16: =SUMIFS('F_Inputs BP'!I$8:I$58,'F_Inputs BP'!$A$8:$A$58,B16,'F_Inputs BP'!$B$8:$B$58,"CW17_018TOT_PR24") -> 0 | H16: =VLOOKUP($B16,'Consolidated Input'!$A$4:$J$21,6,0) -> 0.681927 | I16: =VLOOKUP($B16,'Consolidated Input'!$A$4:$J$21,7,0) -> 0.131899 | J16: =VLOOKUP($B16,'Consolidated Input'!$A$4:$J$21,8,0) -> 0.247294 | K16: =VLOOKUP($B16,'Consolidated Input'!$A$4:$J$21,9,0) -> 0.74959 | L16: =VLOOKUP($B16,'Consolidated Input'!$A$4:$J$21,10,0) -> 1.751668 | M16: 3.562378 | O16: =Allowance!B19 -> WSX | P16: =Allowance!E19 -> 3.562378 | Q16: 0 | R16: 0 | S16: 0 | T16: 0 | U16: =VLOOKUP($B16,'Final Input'!$A$4:$J$21,6,0) -> 0.681927 | V16: =VLOOKUP($B16,'Final Input'!$A$4:$J$21,7,0) -> 0.131899 | W16: =VLOOKUP($B16,'Final Input'!$A$4:$J$21,8,0) -> 0.247294 | X16: =VLOOKUP($B16,'Final Input'!$A$4:$J$21,9,0) -> 0.74959 | Y16: =VLOOKUP($B16,'Final Input'!$A$4:$J$21,10,0) -> 1.751668 | Z16: 3.562378
B17: =Allowance!B20 -> YKY | C17: =Allowance!C20 -> 8.5643088 | D17: =SUMIFS('F_Inputs BP'!F$8:F$58,'F_Inputs BP'!$A$8:$A$58,B17,'F_Inputs BP'!$B$8:$B$58,"CW12_018TOT_PR24") -> 0 | E17: =SUMIFS('F_Inputs BP'!H$8:H$58,'F_Inputs BP'!$A$8:$A$58,B17,'F_Inputs BP'!$B$8:$B$58,"CW17_018TOT_PR24") -> 0 | F17: =SUMIFS('F_Inputs BP'!G$8:G$58,'F_Inputs BP'!$A$8:$A$58,B17,'F_Inputs BP'!$B$8:$B$58,"CW12_018TOT_PR24") -> 0 | G17: =SUMIFS('F_Inputs BP'!I$8:I$58,'F_Inputs BP'!$A$8:$A$58,B17,'F_Inputs BP'!$B$8:$B$58,"CW17_018TOT_PR24") -> 0 | H17: =VLOOKUP($B17,'Consolidated Input'!$A$4:$J$21,6,0) -> 1.036 | I17: =VLOOKUP($B17,'Consolidated Input'!$A$4:$J$21,7,0) -> 1.116 | J17: =VLOOKUP($B17,'Consolidated Input'!$A$4:$J$21,8,0) -> 2.178 | K17: =VLOOKUP($B17,'Consolidated Input'!$A$4:$J$21,9,0) -> 2.4511664 | L17: =VLOOKUP($B17,'Consolidated Input'!$A$4:$J$21,10,0) -> 1.7831424 | M17: 8.5643088 | O17: =Allowance!B20 -> YKY | P17: =Allowance!E20 -> 8.3253088 | Q17: 0 | R17: 0 | S17: 0 | T17: 0 | U17: =VLOOKUP($B17,'Final Input'!$A$4:$J$21,6,0) -> 1.005 | V17: =VLOOKUP($B17,'Final Input'!$A$4:$J$21,7,0) -> 1.083 | W17: =VLOOKUP($B17,'Final Input'!$A$4:$J$21,8,0) -> 2.118 | X17: =VLOOKUP($B17,'Final Input'!$A$4:$J$21,9,0) -> 2.3841664 | Y17: =VLOOKUP($B17,'Final Input'!$A$4:$J$21,10,0) -> 1.7351424 | Z17: 8.3253088
B18: =Allowance!B21 -> AFW | C18: =Allowance!C21 -> 140.987 | D18: =SUMIFS('F_Inputs BP'!F$8:F$58,'F_Inputs BP'!$A$8:$A$58,B18,'F_Inputs BP'!$B$8:$B$58,"CW12_018TOT_PR24") -> 0.224 | E18: =SUMIFS('F_Inputs BP'!H$8:H$58,'F_Inputs BP'!$A$8:$A$58,B18,'F_Inputs BP'!$B$8:$B$58,"CW17_018TOT_PR24") -> 0 | F18: =SUMIFS('F_Inputs BP'!G$8:G$58,'F_Inputs BP'!$A$8:$A$58,B18,'F_Inputs BP'!$B$8:$B$58,"CW12_018TOT_PR24") -> 1.044 | G18: =SUMIFS('F_Inputs BP'!I$8:I$58,'F_Inputs BP'!$A$8:$A$58,B18,'F_Inputs BP'!$B$8:$B$58,"CW17_018TOT_PR24") -> 0 | H18: =VLOOKUP($B18,'Consolidated Input'!$A$4:$J$21,6,0) -> 19.023 | I18: =VLOOKUP($B18,'Consolidated Input'!$A$4:$J$21,7,0) -> 27.929 | J18: =VLOOKUP($B18,'Consolidated Input'!$A$4:$J$21,8,0) -> 35.194 | K18: =VLOOKUP($B18,'Consolidated Input'!$A$4:$J$21,9,0) -> 28.92 | L18: =VLOOKUP($B18,'Consolidated Input'!$A$4:$J$21,10,0) -> 28.653 | M18: 140.987 | O18: =Allowance!B21 -> AFW | P18: =Allowance!E21 -> 140.987 | Q18: 0.224 | R18: 0 | S18: 1.044 | T18: 0 | U18: =VLOOKUP($B18,'Final Input'!$A$4:$J$21,6,0) -> 19.023 | V18: =VLOOKUP($B18,'Final Input'!$A$4:$J$21,7,0) -> 27.929 | W18: =VLOOKUP($B18,'Final Input'!$A$4:$J$21,8,0) -> 35.194 | X18: =VLOOKUP($B18,'Final Input'!$A$4:$J$21,9,0) -> 28.92 | Y18: =VLOOKUP($B18,'Final Input'!$A$4:$J$21,10,0) -> 28.653 | Z18: 140.987
B19: =Allowance!B22 -> BRL | C19: =Allowance!C22 -> 2.635293632 | D19: =SUMIFS('F_Inputs BP'!F$8:F$58,'F_Inputs BP'!$A$8:$A$58,B19,'F_Inputs BP'!$B$8:$B$58,"CW12_018TOT_PR24") -> 0 | E19: =SUMIFS('F_Inputs BP'!H$8:H$58,'F_Inputs BP'!$A$8:$A$58,B19,'F_Inputs BP'!$B$8:$B$58,"CW17_018TOT_PR24") -> 0 | F19: =SUMIFS('F_Inputs BP'!G$8:G$58,'F_Inputs BP'!$A$8:$A$58,B19,'F_Inputs BP'!$B$8:$B$58,"CW12_018TOT_PR24") -> 0 | G19: =SUMIFS('F_Inputs BP'!I$8:I$58,'F_Inputs BP'!$A$8:$A$58,B19,'F_Inputs BP'!$B$8:$B$58,"CW17_018TOT_PR24") -> 0 | H19: =VLOOKUP($B19,'Consolidated Input'!$A$4:$J$21,6,0) -> 0.5270598158 | I19: =VLOOKUP($B19,'Consolidated Input'!$A$4:$J$21,7,0) -> 0.5270598158 | J19: =VLOOKUP($B19,'Consolidated Input'!$A$4:$J$21,8,0) -> 0.527058 | K19: =VLOOKUP($B19,'Consolidated Input'!$A$4:$J$21,9,0) -> 0.527058 | L19: =VLOOKUP($B19,'Consolidated Input'!$A$4:$J$21,10,0) -> 0.527058 | M19: 2.635293632 | O19: =Allowance!B22 -> BRL | P19: =Allowance!E22 -> 2.635293632 | Q19: 0 | R19: 0 | S19: 0 | T19: 0 | U19: =VLOOKUP($B19,'Final Input'!$A$4:$J$21,6,0) -> 0.5270598158 | V19: =VLOOKUP($B19,'Final Input'!$A$4:$J$21,7,0) -> 0.5270598158 | W19: =VLOOKUP($B19,'Final Input'!$A$4:$J$21,8,0) -> 0.527058 | X19: =VLOOKUP($B19,'Final Input'!$A$4:$J$21,9,0) -> 0.527058 | Y19: =VLOOKUP($B19,'Final Input'!$A$4:$J$21,10,0) -> 0.527058 | Z19: 2.635293632
B20: =Allowance!B23 -> PRT | C20: =Allowance!C23 -> 0.04545 | D20: =SUMIFS('F_Inputs BP'!F$8:F$58,'F_Inputs BP'!$A$8:$A$58,B20,'F_Inputs BP'!$B$8:$B$58,"CW12_018TOT_PR24") -> 0 | E20: =SUMIFS('F_Inputs BP'!H$8:H$58,'F_Inputs BP'!$A$8:$A$58,B20,'F_Inputs BP'!$B$8:$B$58,"CW17_018TOT_PR24") -> 0 | F20: =SUMIFS('F_Inputs BP'!G$8:G$58,'F_Inputs BP'!$A$8:$A$58,B20,'F_Inputs BP'!$B$8:$B$58,"CW12_018TOT_PR24") -> 0 | G20: =SUMIFS('F_Inputs BP'!I$8:I$58,'F_Inputs BP'!$A$8:$A$58,B20,'F_Inputs BP'!$B$8:$B$58,"CW17_018TOT_PR24") -> 0 | H20: =VLOOKUP($B20,'Consolidated Input'!$A$4:$J$21,6,0) -> 0 | I20: =VLOOKUP($B20,'Consolidated Input'!$A$4:$J$21,7,0) -> 0 | J20: =VLOOKUP($B20,'Consolidated Input'!$A$4:$J$21,8,0) -> 0 | K20: =VLOOKUP($B20,'Consolidated Input'!$A$4:$J$21,9,0) -> 0 | L20: =VLOOKUP($B20,'Consolidated Input'!$A$4:$J$21,10,0) -> 0.04545 | M20: 0.04545 | O20: =Allowance!B23 -> PRT | P20: =Allowance!E23 -> 0.04545 | Q20: 0 | R20: 0 | S20: 0 | T20: 0 | U20: =VLOOKUP($B20,'Final Input'!$A$4:$J$21,6,0) -> 0 | V20: =VLOOKUP($B20,'Final Input'!$A$4:$J$21,7,0) -> 0 | W20: =VLOOKUP($B20,'Final Input'!$A$4:$J$21,8,0) -> 0 | X20: =VLOOKUP($B20,'Final Input'!$A$4:$J$21,9,0) -> 0 | Y20: =VLOOKUP($B20,'Final Input'!$A$4:$J$21,10,0) -> 0.04545 | Z20: 0.04545
B21: =Allowance!B24 -> SEW | C21: =Allowance!C24 -> 10.60171524 | D21: =SUMIFS('F_Inputs BP'!F$8:F$58,'F_Inputs BP'!$A$8:$A$58,B21,'F_Inputs BP'!$B$8:$B$58,"CW12_018TOT_PR24") -> 0 | E21: =SUMIFS('F_Inputs BP'!H$8:H$58,'F_Inputs BP'!$A$8:$A$58,B21,'F_Inputs BP'!$B$8:$B$58,"CW17_018TOT_PR24") -> 0 | F21: =SUMIFS('F_Inputs BP'!G$8:G$58,'F_Inputs BP'!$A$8:$A$58,B21,'F_Inputs BP'!$B$8:$B$58,"CW12_018TOT_PR24") -> 0 | G21: =SUMIFS('F_Inputs BP'!I$8:I$58,'F_Inputs BP'!$A$8:$A$58,B21,'F_Inputs BP'!$B$8:$B$58,"CW17_018TOT_PR24") -> 0 | H21: =VLOOKUP($B21,'Consolidated Input'!$A$4:$J$21,6,0) -> 1.591858307 | I21: =VLOOKUP($B21,'Consolidated Input'!$A$4:$J$21,7,0) -> 2.181960174 | J21: =VLOOKUP($B21,'Consolidated Input'!$A$4:$J$21,8,0) -> 3.71146983 | K21: =VLOOKUP($B21,'Consolidated Input'!$A$4:$J$21,9,0) -> 1.914394867 | L21: =VLOOKUP($B21,'Consolidated Input'!$A$4:$J$21,10,0) -> 1.202032058 | M21: 10.60171524 | O21: =Allowance!B24 -> SEW | P21: =Allowance!E24 -> 8.101715236 | Q21: 0 | R21: 0 | S21: 0 | T21: 0 | U21: =VLOOKUP($B21,'Final Input'!$A$4:$J$21,6,0) -> 1.091858307 | V21: =VLOOKUP($B21,'Final Input'!$A$4:$J$21,7,0) -> 1.681960174 | W21: =VLOOKUP($B21,'Final Input'!$A$4:$J$21,8,0) -> 3.21146983 | X21: =VLOOKUP($B21,'Final Input'!$A$4:$J$21,9,0) -> 1.414394867 | Y21: =VLOOKUP($B21,'Final Input'!$A$4:$J$21,10,0) -> 0.7020320584 | Z21: 8.101715236
B22: =Allowance!B25 -> SSC | C22: =Allowance!C25 -> 0.8589009658 | D22: =SUMIFS('F_Inputs BP'!F$8:F$58,'F_Inputs BP'!$A$8:$A$58,B22,'F_Inputs BP'!$B$8:$B$58,"CW12_018TOT_PR24") -> 0 | E22: =SUMIFS('F_Inputs BP'!H$8:H$58,'F_Inputs BP'!$A$8:$A$58,B22,'F_Inputs BP'!$B$8:$B$58,"CW17_018TOT_PR24") -> 0 | F22: =SUMIFS('F_Inputs BP'!G$8:G$58,'F_Inputs BP'!$A$8:$A$58,B22,'F_Inputs BP'!$B$8:$B$58,"CW12_018TOT_PR24") -> 0 | G22: =SUMIFS('F_Inputs BP'!I$8:I$58,'F_Inputs BP'!$A$8:$A$58,B22,'F_Inputs BP'!$B$8:$B$58,"CW17_018TOT_PR24") -> 0 | H22: =VLOOKUP($B22,'Consolidated Input'!$A$4:$J$21,6,0) -> 0.0375152384 | I22: =VLOOKUP($B22,'Consolidated Input'!$A$4:$J$21,7,0) -> 0.19192771 | J22: =VLOOKUP($B22,'Consolidated Input'!$A$4:$J$21,8,0) -> 0.6294580174 | K22: =VLOOKUP($B22,'Consolidated Input'!$A$4:$J$21,9,0) -> 0 | L22: =VLOOKUP($B22,'Consolidated Input'!$A$4:$J$21,10,0) -> 0 | M22: 0.8589009658 | O22: =Allowance!B25 -> SSC | P22: =Allowance!E25 -> 0.8589009658 | Q22: 0 | R22: 0 | S22: 0 | T22: 0 | U22: =VLOOKUP($B22,'Final Input'!$A$4:$J$21,6,0) -> 0.0375152384 | V22: =VLOOKUP($B22,'Final Input'!$A$4:$J$21,7,0) -> 0.19192771 | W22: =VLOOKUP($B22,'Final Input'!$A$4:$J$21,8,0) -> 0.6294580174 | X22: =VLOOKUP($B22,'Final Input'!$A$4:$J$21,9,0) -> 0 | Y22: =VLOOKUP($B22,'Final Input'!$A$4:$J$21,10,0) -> 0 | Z22: 0.8589009658
B23: =Allowance!B26 -> SES | C23: =Allowance!C26 -> 0.217 | D23: =SUMIFS('F_Inputs BP'!F$8:F$58,'F_Inputs BP'!$A$8:$A$58,B23,'F_Inputs BP'!$B$8:$B$58,"CW12_018TOT_PR24") -> 0 | E23: =SUMIFS('F_Inputs BP'!H$8:H$58,'F_Inputs BP'!$A$8:$A$58,B23,'F_Inputs BP'!$B$8:$B$58,"CW17_018TOT_PR24") -> 0 | F23: =SUMIFS('F_Inputs BP'!G$8:G$58,'F_Inputs BP'!$A$8:$A$58,B23,'F_Inputs BP'!$B$8:$B$58,"CW12_018TOT_PR24") -> 0 | G23: =SUMIFS('F_Inputs BP'!I$8:I$58,'F_Inputs BP'!$A$8:$A$58,B23,'F_Inputs BP'!$B$8:$B$58,"CW17_018TOT_PR24") -> 0 | H23: =VLOOKUP($B23,'Consolidated Input'!$A$4:$J$21,6,0) -> 0 | I23: =VLOOKUP($B23,'Consolidated Input'!$A$4:$J$21,7,0) -> 0 | J23: =VLOOKUP($B23,'Consolidated Input'!$A$4:$J$21,8,0) -> 0.037 | K23: =VLOOKUP($B23,'Consolidated Input'!$A$4:$J$21,9,0) -> 0.08 | L23: =VLOOKUP($B23,'Consolidated Input'!$A$4:$J$21,10,0) -> 0.1 | M23: 0.217 | O23: =Allowance!B26 -> SES | P23: =Allowance!E26 -> 0.217 | Q23: 0 | R23: 0 | S23: 0 | T23: 0 | U23: =VLOOKUP($B23,'Final Input'!$A$4:$J$21,6,0) -> 0 | V23: =VLOOKUP($B23,'Final Input'!$A$4:$J$21,7,0) -> 0 | W23: =VLOOKUP($B23,'Final Input'!$A$4:$J$21,8,0) -> 0.037 | X23: =VLOOKUP($B23,'Final Input'!$A$4:$J$21,9,0) -> 0.08 | Y23: =VLOOKUP($B23,'Final Input'!$A$4:$J$21,10,0) -> 0.1 | Z23: 0.217
B24: =Allowance!B27 -> Total | C24: =Allowance!C27 -> 618.4107641 | D24: =SUM(D7:D23) -> 0.2243782756 | E24: =SUM(E7:E23) -> 0 | F24: 13.24788713 | G24: 0 | H24: 91.59680486 | I24: 114.9298709 | J24: 151.0907895 | K24: 141.1884877 | L24: 106.1325457 | M24: 618.4107641 | O24: =Allowance!B27 -> Total | P24: =Allowance!E27 -> 620.2357641 | Q24: =SUM(Q7:Q23) -> 0.2243782756 | R24: =SUM(R7:R23) -> 0 | S24: 13.24788713 | T24: 0 | U24: =SUM(U7:U23) -> 92.38280486 | V24: =SUM(V7:V23) -> 115.7998709 | W24: 150.6767895 | X24: 142.4494877 | Y24: 105.4545457 | Z24: 620.2357641
A26: Summary of allowances based on temporal profiling of submitted costs - for company level allowances
B28: Temporal profiling | O28: Allowances
B29: Company | C29: 2023/2024 - transition exp | D29: 2023/2024 - accelerated prog | E29: 2024/2025 - transition exp | F29: 2024/2025 - accelerated prog | G29: 2025/2026 | H29: 2026/2027 | I29: 2027/2028 | J29: 2028/2029 | K29: 2029/2030 | L29: Check | O29: =Allowance!B9 -> Company | P29: Total allowances | Q29: 2023/2024 - transition exp | R29: 2023/2024 - accelerated prog | S29: 2024/2025 - transition exp | T29: 2024/2025 - accelerated prog | U29: 2025/2026 | V29: 2026/2027 | W29: 2027/2028 | X29: 2028/2029 | Y29: 2029/2030
B30: =Allowance!B10 -> ANH | C30: =D7/SUM($D7:$L7) -> 0 | D30: =E7/SUM($D7:$L7) -> 0 | E30: 0.0249364254 | F30: 0 | G30: =H7/SUM($D7:$L7) -> 0.1292746802 | H30: =I7/SUM($D7:$L7) -> 0.2115610885 | I30: 0.2508444984 | J30: 0.2228337192 | K30: 0.1605495882 | L30: =IF(SUM(C30:K30)=1, "reconciled","check") -> reconciled | O30: =Allowance!B10 -> ANH | P30: =SUMIF(Allowance!$B$10:$B$26,'Outputs to aggregator'!O30,Allowance!$I$10:$I$26) -> 23.7123 | Q30: =C30*$P30 -> 0 | R30: =D30*$P30 -> 0 | S30: 0.5913 | T30: 0 | U30: =G30*$P30 -> 3.0654 | V30: 5.0166 | W30: 5.9481 | X30: 5.2839 | Y30: 3.807
B31: =Allowance!B11 -> WSH | C31: =D8/SUM($D8:$L8) -> 0 | D31: 0 | E31: 0 | F31: 0 | G31: 0.2016881386 | H31: 0.1981341626 | I31: 0.1985784096 | J31: 0.1990226566 | K31: 0.2025766326 | L31: =IF(SUM(C31:K31)=1, "reconciled","check") -> reconciled | O31: =Allowance!B11 -> WSH | P31: =SUMIF(Allowance!$B$10:$B$26,'Outputs to aggregator'!O31,Allowance!$I$10:$I$26) -> 2.22849 | Q31: =C31*$P31 -> 0 | R31: 0 | S31: 0 | T31: 0 | U31: 0.44946 | V31: 0.44154 | W31: 0.44253 | X31: 0.44352 | Y31: 0.45144
B32: =Allowance!B12 -> HDD | C32: 0 | D32: 0 | E32: 0 | F32: 0 | G32: 0 | H32: 0 | I32: 0.3294117647 | J32: 0.3294117647 | K32: 0.3411764706 | L32: reconciled | O32: =Allowance!B12 -> HDD | P32: =SUMIF(Allowance!$B$10:$B$26,'Outputs to aggregator'!O32,Allowance!$I$10:$I$26) -> 0.085 | Q32: 0 | R32: 0 | S32: 0 | T32: 0 | U32: 0 | V32: 0 | W32: 0.028 | X32: 0.028 | Y32: 0.029
B33: =Allowance!B13 -> NES | C33: =D10/SUM($D10:$L10) -> 0 | D33: 0 | E33: 0.006794721024 | F33: 0 | G33: 0.2205670979 | H33: 0.2052789756 | I33: 0.1872468313 | J33: 0.1928655429 | K33: 0.1872468313 | L33: reconciled | O33: =Allowance!B13 -> NES | P33: =SUMIF(Allowance!$B$10:$B$26,'Outputs to aggregator'!O33,Allowance!$I$10:$I$26) -> 7.653 | Q33: 0 | R33: 0 | S33: 0.052 | T33: 0 | U33: 1.688 | V33: 1.571 | W33: 1.433 | X33: 1.476 | Y33: 1.433
B34: =Allowance!B14 -> SVE | C34: =D11/SUM($D11:$L11) -> 0 | D34: 0 | E34: 0.03382939387 | F34: 0 | G34: 0.159413198 | H34: 0.2063968294 | I34: 0.2544285922 | J34: 0.2528487999 | K34: 0.0930831867 | L34: reconciled | O34: =Allowance!B14 -> SVE | P34: =SUMIF(Allowance!$B$10:$B$26,'Outputs to aggregator'!O34,Allowance!$I$10:$I$26) -> 275.1998619 | Q34: 0 | R34: 0 | S34: 9.309844519 | T34: 0 | U34: 43.87049006 | V34: 56.80037893 | W34: 70.01871343 | X34: 69.5839548 | Y34: 25.61648012
B35: =Allowance!B15 -> SWB | C35: 0 | D35: 0 | E35: 0 | F35: 0 | G35: 0.193618858 | H35: 0.193618858 | I35: 0.2042540947 | J35: 0.2042540947 | K35: 0.2042540947 | L35: reconciled | O35: =Allowance!B15 -> SWB | P35: =SUMIF(Allowance!$B$10:$B$26,'Outputs to aggregator'!O35,Allowance!$I$10:$I$26) -> 5.8113234 | Q35: 0 | R35: 0 | S35: 0 | T35: 0 | U35: 1.1251818 | V35: 1.1251818 | W35: 1.1869866 | X35: 1.1869866 | Y35: 1.1869866
B36: =Allowance!B16 -> SRN | C36: 0 | D36: 0 | E36: 0 | F36: 0 | G36: 0.2 | H36: 0.2 | I36: 0.2 | J36: 0.2 | K36: 0.2 | L36: reconciled | O36: =Allowance!B16 -> SRN | P36: =SUMIF(Allowance!$B$10:$B$26,'Outputs to aggregator'!O36,Allowance!$I$10:$I$26) -> 7.4025 | Q36: 0 | R36: 0 | S36: 0 | T36: 0 | U36: 1.4805 | V36: 1.4805 | W36: 1.4805 | X36: 1.4805 | Y36: 1.4805
B37: =Allowance!B17 -> TMS | C37: 0 | D37: 0 | E37: 0 | F37: 0 | G37: 0.02284 | H37: 0.05436 | I37: 0.10648 | J37: 0.18816 | K37: 0.62816 | L37: reconciled | O37: =Allowance!B17 -> TMS | P37: =SUMIF(Allowance!$B$10:$B$26,'Outputs to aggregator'!O37,Allowance!$I$10:$I$26) -> 49.1076 | Q37: 0 | R37: 0 | S37: 0 | T37: 0 | U37: 1.121617584 | V37: 2.669489136 | W37: 5.228977248 | X37: 9.240086016 | Y37: 30.84743002
B38: =Allowance!B18 -> NWT | C38: 1.821829396e-05 | D38: 0 | E38: 0.01732361663 | F38: 0 | G38: 0.3198998944 | H38: 0.08239564158 | I38: 0.3859963122 | J38: 0.1504757825 | K38: 0.04389053448 | L38: reconciled | O38: =Allowance!B18 -> NWT | P38: =SUMIF(Allowance!$B$10:$B$26,'Outputs to aggregator'!O38,Allowance!$I$10:$I$26) -> 20.76350326 | Q38: 0.000378275606 | R38: 0 | S38: 0.3596989704 | T38: 0 | U38: 6.6422425 | V38: 1.710822173 | W38: 8.014635686 | X38: 3.1244044 | Y38: 0.9113212558
B39: =Allowance!B19 -> WSX | C39: 0 | D39: 0 | E39: 0 | F39: 0 | G39: 0.1914246607 | H39: 0.03702554866 | I39: 0.06941823692 | J39: 0.210418434 | K39: 0.4917131197 | L39: reconciled | O39: =Allowance!B19 -> WSX | P39: =SUMIF(Allowance!$B$10:$B$26,'Outputs to aggregator'!O39,Allowance!$I$10:$I$26) -> 3.31301154 | Q39: 0 | R39: 0 | S39: 0 | T39: 0 | U39: 0.63419211 | V39: 0.12266607 | W39: 0.22998342 | X39: 0.6971187 | Y39: 1.62905124
B40: =Allowance!B20 -> YKY | C40: 0 | D40: 0 | E40: 0 | F40: 0 | G40: 0.1209671468 | H40: 0.1303082392 | I40: 0.2543112411 | J40: 0.2862071484 | K40: 0.2082062244 | L40: reconciled | O40: =Allowance!B20 -> YKY | P40: =SUMIF(Allowance!$B$10:$B$26,'Outputs to aggregator'!O40,Allowance!$I$10:$I$26) -> 8.3253088 | Q40: 0 | R40: 0 | S40: 0 | T40: 0 | U40: 1.007088852 | V40: 1.084856331 | W40: 2.117219613 | X40: 2.382762892 | Y40: 1.733381112
B41: =Allowance!B21 -> AFW | C41: 0.001588798967 | D41: 0 | E41: 0.007404938044 | F41: 0 | G41: 0.1349273337 | H41: 0.1980962784 | I41: 0.249625852 | J41: 0.2051252952 | K41: 0.2032315036 | L41: reconciled | O41: =Allowance!B21 -> AFW | P41: =SUMIF(Allowance!$B$10:$B$26,'Outputs to aggregator'!O41,Allowance!$I$10:$I$26) -> 135.4757 | Q41: 0.2152436523 | R41: 0 | S41: 1.003189165 | T41: 0 | U41: =G41*$P41 -> 18.27937499 | V41: 26.83723198 | W41: 33.81823704 | X41: 27.78949296 | Y41: 27.53293021
B42: =Allowance!B22 -> BRL | C42: 0 | D42: 0 | E42: 0 | F42: 0 | G42: 0.2000004134 | H42: 0.2000004134 | I42: 0.1999997244 | J42: 0.1999997244 | K42: 0.1999997244 | L42: reconciled | O42: =Allowance!B22 -> BRL | P42: =SUMIF(Allowance!$B$10:$B$26,'Outputs to aggregator'!O42,Allowance!$I$10:$I$26) -> 2.477176014 | Q42: 0 | R42: 0 | S42: 0 | T42: 0 | U42: 0.4954362268 | V42: 0.4954362268 | W42: 0.49543452 | X42: 0.49543452 | Y42: 0.49543452
B43: =Allowance!B23 -> PRT | C43: 0 | D43: 0 | E43: 0 | F43: 0 | G43: 0 | H43: 0 | I43: 0 | J43: 0 | K43: 1 | L43: reconciled | O43: =Allowance!B23 -> PRT | P43: =SUMIF(Allowance!$B$10:$B$26,'Outputs to aggregator'!O43,Allowance!$I$10:$I$26) -> 0.0422685 | Q43: 0 | R43: 0 | S43: 0 | T43: 0 | U43: 0 | V43: 0 | W43: 0 | X43: 0 | Y43: 0.0422685
B44: =Allowance!B24 -> SEW | C44: 0 | D44: 0 | E44: 0 | F44: 0 | G44: 0.1501510153 | H44: 0.205811996 | I44: 0.3500820148 | J44: 0.1805740698 | K44: 0.1133809041 | L44: reconciled | O44: =Allowance!B24 -> SEW | P44: =SUMIF(Allowance!$B$10:$B$26,'Outputs to aggregator'!O44,Allowance!$I$10:$I$26) -> 7.378715236 | Q44: 0 | R44: 0 | S44: 0 | T44: 0 | U44: 1.107921585 | V44: 1.518628111 | W44: 2.583155496 | X44: 1.33240464 | Y44: 0.8366054045
B45: =Allowance!B25 -> SSC | C45: 0 | D45: 0 | E45: 0 | F45: 0 | G45: 0.04367818863 | H45: 0.2234573224 | I45: 0.732864489 | J45: 0 | K45: 0 | L45: reconciled | O45: =Allowance!B25 -> SSC | P45: =SUMIF(Allowance!$B$10:$B$26,'Outputs to aggregator'!O45,Allowance!$I$10:$I$26) -> 0.8589009658 | Q45: 0 | R45: 0 | S45: 0 | T45: 0 | U45: 0.0375152384 | V45: 0.19192771 | W45: 0.6294580174 | X45: 0 | Y45: 0
B46: =Allowance!B26 -> SES | C46: 0 | D46: 0 | E46: 0 | F46: 0 | G46: 0 | H46: 0 | I46: 0.1705069124 | J46: 0.3686635945 | K46: 0.4608294931 | L46: =IF(SUM(G46:K46)=1, "reconciled","check") -> reconciled | O46: =Allowance!B26 -> SES | P46: =SUMIF(Allowance!$B$10:$B$26,'Outputs to aggregator'!O46,Allowance!$I$10:$I$26) -> 0.1953 | Q46: 0 | R46: 0 | S46: 0 | T46: 0 | U46: 0 | V46: 0 | W46: 0.0333 | X46: 0.072 | Y46: 0.09
O47: =Allowance!B27 -> Total | P47: =SUM(P30:P46) -> 550.0299596 | Q47: =SUM(Q30:Q46) -> 0.2156219279 | R47: 0 | S47: 11.31603265 | T47: 0 | U47: 81.00442094 | V47: 101.0662585 | W47: 133.6882311 | X47: 124.6165655 | Y47: 98.12282898

Sheet F_Outputs
A1: =RIGHT(CELL("filename", $A$1), LEN(CELL("filename", $A$1)) - SEARCH("]", CELL("filename", $A$1))) -> 
C2: PR24CA35
A3: Acronym | B3: Reference | C3: Item description | D3: Unit | E3: Model | F3: Constant | G3: 2023-24 | H3: 2024-25 | I3: 2025-26 | J3: 2026-27 | K3: 2027-28 | L3: 2028-29 | M3: 2029-30
A5: ANH | B5: =CONCATENATE("C_", $C$2, "_ENH_W_TOT") -> C_PR24CA35_ENH_W_TOT | C5: Total enhancement allowance - Water - WFD - Totex | D5: £m | E5: Price Review 2024 | I5: =SUMIFS('Outputs to aggregator'!U$30:U$46, 'Outputs to aggregator'!$O$30:$O$46, $A5) -> 3.0654 | J5: =SUMIFS('Outputs to aggregator'!V$30:V$46, 'Outputs to aggregator'!$O$30:$O$46, $A5) -> 5.0166 | K5: =SUMIFS('Outputs to aggregator'!W$30:W$46, 'Outputs to aggregator'!$O$30:$O$46, $A5) -> 5.9481 | L5: =SUMIFS('Outputs to aggregator'!X$30:X$46, 'Outputs to aggregator'!$O$30:$O$46, $A5) -> 5.2839 | M5: =SUMIFS('Outputs to aggregator'!Y$30:Y$46, 'Outputs to aggregator'!$O$30:$O$46, $A5) -> 3.807
A6: ANH | B6: =CONCATENATE("C_", $C$2, "_ENH_W_AP") -> C_PR24CA35_ENH_W_AP | C6: Total enhancement allowance - Water - WFD - Accelerated programme | D6: £m | E6: Price Review 2024 | G6: =SUMIFS('Outputs to aggregator'!$R$30:$R$46, 'Outputs to aggregator'!$O$30:$O$46, $A6) -> 0 | H6: =SUMIFS('Outputs to aggregator'!$T$30:$T$46, 'Outputs to aggregator'!$O$30:$O$46, $A6) -> 0
A7: ANH | B7: =CONCATENATE("C_", $C$2, "_ENH_W_TE") -> C_PR24CA35_ENH_W_TE | C7: Total enhancement allowance - Water - WFD - Transition allowance | D7: £m | E7: Price Review 2024 | G7: =SUMIFS('Outputs to aggregator'!$Q$30:$Q$46, 'Outputs to aggregator'!$O$30:$O$46, $A7) -> 0 | H7: =SUMIFS('Outputs to aggregator'!$S$30:$S$46, 'Outputs to aggregator'!$O$30:$O$46, $A7) -> 0.5913
A8: ANH | B8: =CONCATENATE("PR24QA_", $C$2, "_OUT1") -> PR24QA_PR24CA35_OUT1 | C8: =CONCATENATE("Date & Time for Model - ", $C$2) -> Date & Time for Model - PR24CA35 | D8: Text | E8: Price Review 2024 | F8: =CONCATENATE("[…]", TEXT(NOW(),"dd/mm/yyy hh:mm:ss")) -> […]16/12/2024 16:16:39 | G8: […]16/12/2024 16:16:39 | H8: […]16/12/2024 16:16:39 | I8: […]16/12/2024 16:16:39 | J8: […]16/12/2024 16:16:39 | K8: […]16/12/2024 16:16:39 | L8: […]16/12/2024 16:16:39 | M8: […]16/12/2024 16:16:39
A9: ANH | B9: =CONCATENATE("PR24QA_", $C$2, "_OUT2") -> PR24QA_PR24CA35_OUT2 | C9: =CONCATENATE("Name of Model - ", $C$2) -> Name of Model - PR24CA35 | D9: Text | E9: Price Review 2024 | F9: =MID(CELL("filename"),SEARCH("[",CELL("filename"))+1,SEARCH("]",CELL("filename"))-SEARCH("[",CELL("filename"))-1) -> 
A10: ANH | B10: =CONCATENATE("PR24QA_", $C$2, "_OUT3") -> PR24QA_PR24CA35_OUT3 | C10: =CONCATENATE("F_Inputs time stamp - ", $C$2) -> F_Inputs time stamp - PR24CA35 | D10: Text | E10: Price Review 2024 | F10: ='F_Inputs BP'!$E$2 -> Run on 03 Sep 2024 17:26 | G10: ='F_Inputs BP'!$E$2 -> Run on 03 Sep 2024 17:26 | H10: ='F_Inputs BP'!$E$2 -> Run on 03 Sep 2024 17:26 | I10: ='F_Inputs BP'!$E$2 -> Run on 03 Sep 2024 17:26 | J10: ='F_Inputs BP'!$E$2 -> Run on 03 Sep 2024 17:26 | K10: ='F_Inputs BP'!$E$2 -> Run on 03 Sep 2024 17:26 | L10: ='F_Inputs BP'!$E$2 -> Run on 03 Sep 2024 17:26 | M10: ='F_Inputs BP'!$E$2 -> Run on 03 Sep 2024 17:26
A11: ANH | B11: =CONCATENATE("PR24QA_", $C$2, "_OUT4") -> PR24QA_PR24CA35_OUT4 | C11: =CONCATENATE("Model override switch for - ", $C$2) -> Model override switch for - PR24CA35 | D11: nr | E11: Price Review 2024 | F11: =IF(SUM('Consolidated Input Override'!$E$5:$K$125)>0,1,0) -> 1 | G11: =IF(SUM('Consolidated Input Override'!$E$5:$K$125)>0,1,0) -> 1 | H11: =IF(SUM('Consolidated Input Override'!$E$5:$K$125)>0,1,0) -> 1 | I11: =IF(SUM('Consolidated Input Override'!$E$5:$K$125)>0,1,0) -> 1 | J11: =IF(SUM('Consolidated Input Override'!$E$5:$K$125)>0,1,0) -> 1 | K11: =IF(SUM('Consolidated Input Override'!$E$5:$K$125)>0,1,0) -> 1 | L11: =IF(SUM('Consolidated Input Override'!$E$5:$K$125)>0,1,0) -> 1 | M11: =IF(SUM('Consolidated Input Override'!$E$5:$K$125)>0,1,0) -> 1
A12: ANH | B12: =CONCATENATE("C_", $C$2, "_ENH_W_ASSESSED") -> C_PR24CA35_ENH_W_ASSESSED | C12: =CONCATENATE("Total amount assessed - ", MID($C$5,31,200)) -> Total amount assessed - Water - WFD - Totex | D12: £m | E12: Price Review 2024 | F12: =SUMIFS(Allowance!$E$10:$E$26, Allowance!$B$10:$B$26, A12) -> 26.347
A13: HDD | B13: =CONCATENATE("C_", $C$2, "_ENH_W_TOT") -> C_PR24CA35_ENH_W_TOT | C13: =$C$5 -> Total enhancement allowance - Water - WFD - Totex | D13: £m | E13: Price Review 2024 | I13: =SUMIFS('Outputs to aggregator'!U$30:U$46, 'Outputs to aggregator'!$O$30:$O$46, $A13) -> 0 | J13: =SUMIFS('Outputs to aggregator'!V$30:V$46, 'Outputs to aggregator'!$O$30:$O$46, $A13) -> 0 | K13: =SUMIFS('Outputs to aggregator'!W$30:W$46, 'Outputs to aggregator'!$O$30:$O$46, $A13) -> 0.028 | L13: =SUMIFS('Outputs to aggregator'!X$30:X$46, 'Outputs to aggregator'!$O$30:$O$46, $A13) -> 0.028 | M13: =SUMIFS('Outputs to aggregator'!Y$30:Y$46, 'Outputs to aggregator'!$O$30:$O$46, $A13) -> 0.029
A14: HDD | B14: =CONCATENATE("C_", $C$2, "_ENH_W_AP") -> C_PR24CA35_ENH_W_AP | C14: =$C$6 -> Total enhancement allowance - Water - WFD - Accelerated programme | D14: £m | E14: Price Review 2024 | G14: =SUMIFS('Outputs to aggregator'!$R$30:$R$46, 'Outputs to aggregator'!$O$30:$O$46, $A14) -> 0 | H14: =SUMIFS('Outputs to aggregator'!$T$30:$T$46, 'Outputs to aggregator'!$O$30:$O$46, $A14) -> 0
A15: HDD | B15: =CONCATENATE("C_", $C$2, "_ENH_W_TE") -> C_PR24CA35_ENH_W_TE | C15: =$C$7 -> Total enhancement allowance - Water - WFD - Transition allowance | D15: £m | E15: Price Review 2024 | G15: =SUMIFS('Outputs to aggregator'!$Q$30:$Q$46, 'Outputs to aggregator'!$O$30:$O$46, $A15) -> 0 | H15: =SUMIFS('Outputs to aggregator'!$S$30:$S$46, 'Outputs to aggregator'!$O$30:$O$46, $A15) -> 0
A16: HDD | B16: =CONCATENATE("PR24QA_", $C$2, "_OUT1") -> PR24QA_PR24CA35_OUT1 | C16: =CONCATENATE("Date & Time for Model - ", $C$2) -> Date & Time for Model - PR24CA35 | D16: Text | E16: Price Review 2024 | F16: =CONCATENATE("[…]", TEXT(NOW(),"dd/mm/yyy hh:mm:ss")) -> […]16/12/2024 16:16:39 | G16: […]16/12/2024 16:16:39 | H16: […]16/12/2024 16:16:39 | I16: […]16/12/2024 16:16:39 | J16: […]16/12/2024 16:16:39 | K16: […]16/12/2024 16:16:39 | L16: […]16/12/2024 16:16:39 | M16: […]16/12/2024 16:16:39
A17: HDD | B17: =CONCATENATE("PR24QA_", $C$2, "_OUT2") -> PR24QA_PR24CA35_OUT2 | C17: =CONCATENATE("Name of Model - ", $C$2) -> Name of Model - PR24CA35 | D17: Text | E17: Price Review 2024 | F17: =MID(CELL("filename"),SEARCH("[",CELL("filename"))+1,SEARCH("]",CELL("filename"))-SEARCH("[",CELL("filename"))-1) -> 
A18: HDD | B18: =CONCATENATE("PR24QA_", $C$2, "_OUT3") -> PR24QA_PR24CA35_OUT3 | C18: =CONCATENATE("F_Inputs time stamp - ", $C$2) -> F_Inputs time stamp - PR24CA35 | D18: Text | E18: Price Review 2024 | F18: ='F_Inputs BP'!$E$2 -> Run on 03 Sep 2024 17:26 | G18: ='F_Inputs BP'!$E$2 -> Run on 03 Sep 2024 17:26 | H18: ='F_Inputs BP'!$E$2 -> Run on 03 Sep 2024 17:26 | I18: ='F_Inputs BP'!$E$2 -> Run on 03 Sep 2024 17:26 | J18: ='F_Inputs BP'!$E$2 -> Run on 03 Sep 2024 17:26 | K18: ='F_Inputs BP'!$E$2 -> Run on 03 Sep 2024 17:26 | L18: ='F_Inputs BP'!$E$2 -> Run on 03 Sep 2024 17:26 | M18: ='F_Inputs BP'!$E$2 -> Run on 03 Sep 2024 17:26
A19: HDD | B19: =CONCATENATE("PR24QA_", $C$2, "_OUT4") -> PR24QA_PR24CA35_OUT4 | C19: =CONCATENATE("Model override switch for - ", $C$2) -> Model override switch for - PR24CA35 | D19: nr | E19: Price Review 2024 | F19: =IF(SUM('Consolidated Input Override'!$E$5:$K$125)>0,1,0) -> 1 | G19: =IF(SUM('Consolidated Input Override'!$E$5:$K$125)>0,1,0) -> 1 | H19: =IF(SUM('Consolidated Input Override'!$E$5:$K$125)>0,1,0) -> 1 | I19: =IF(SUM('Consolidated Input Override'!$E$5:$K$125)>0,1,0) -> 1 | J19: =IF(SUM('Consolidated Input Override'!$E$5:$K$125)>0,1,0) -> 1 | K19: =IF(SUM('Consolidated Input Override'!$E$5:$K$125)>0,1,0) -> 1 | L19: =IF(SUM('Consolidated Input Override'!$E$5:$K$125)>0,1,0) -> 1 | M19: =IF(SUM('Consolidated Input Override'!$E$5:$K$125)>0,1,0) -> 1
A20: HDD | B20: =CONCATENATE("C_", $C$2, "_ENH_W_ASSESSED") -> C_PR24CA35_ENH_W_ASSESSED | C20: =CONCATENATE("Total amount assessed - ", MID($C$5,31,200)) -> Total amount assessed - Water - WFD - Totex | D20: £m | E20: Price Review 2024 | F20: =SUMIFS(Allowance!$E$10:$E$26, Allowance!$B$10:$B$26, A20) -> 0.085
A21: NES | B21: =CONCATENATE("C_", $C$2, "_ENH_W_TOT") -> C_PR24CA35_ENH_W_TOT | C21: =$C$5 -> Total enhancement allowance - Water - WFD - Totex | D21: £m | E21: Price Review 2024 | I21: =SUMIFS('Outputs to aggregator'!U$30:U$46, 'Outputs to aggregator'!$O$30:$O$46, $A21) -> 1.688 | J21: =SUMIFS('Outputs to aggregator'!V$30:V$46, 'Outputs to aggregator'!$O$30:$O$46, $A21) -> 1.571 | K21: =SUMIFS('Outputs to aggregator'!W$30:W$46, 'Outputs to aggregator'!$O$30:$O$46, $A21) -> 1.433 | L21: =SUMIFS('Outputs to aggregator'!X$30:X$46, 'Outputs to aggregator'!$O$30:$O$46, $A21) -> 1.476 | M21: =SUMIFS('Outputs to aggregator'!Y$30:Y$46, 'Outputs to aggregator'!$O$30:$O$46, $A21) -> 1.433
A22: NES | B22: =CONCATENATE("C_", $C$2, "_ENH_W_AP") -> C_PR24CA35_ENH_W_AP | C22: =$C$6 -> Total enhancement allowance - Water - WFD - Accelerated programme | D22: £m | E22: Price Review 2024 | G22: =SUMIFS('Outputs to aggregator'!$R$30:$R$46, 'Outputs to aggregator'!$O$30:$O$46, $A22) -> 0 | H22: =SUMIFS('Outputs to aggregator'!$T$30:$T$46, 'Outputs to aggregator'!$O$30:$O$46, $A22) -> 0
A23: NES | B23: =CONCATENATE("C_", $C$2, "_ENH_W_TE") -> C_PR24CA35_ENH_W_TE | C23: =$C$7 -> Total enhancement allowance - Water - WFD - Transition allowance | D23: £m | E23: Price Review 2024 | G23: =SUMIFS('Outputs to aggregator'!$Q$30:$Q$46, 'Outputs to aggregator'!$O$30:$O$46, $A23) -> 0 | H23: =SUMIFS('Outputs to aggregator'!$S$30:$S$46, 'Outputs to aggregator'!$O$30:$O$46, $A23) -> 0.052
A24: NES | B24: =CONCATENATE("PR24QA_", $C$2, "_OUT1") -> PR24QA_PR24CA35_OUT1 | C24: =CONCATENATE("Date & Time for Model - ", $C$2) -> Date & Time for Model - PR24CA35 | D24: Text | E24: Price Review 2024 | F24: =CONCATENATE("[…]", TEXT(NOW(),"dd/mm/yyy hh:mm:ss")) -> […]16/12/2024 16:16:39 | G24: […]16/12/2024 16:16:39 | H24: […]16/12/2024 16:16:39 | I24: […]16/12/2024 16:16:39 | J24: […]16/12/2024 16:16:39 | K24: […]16/12/2024 16:16:39 | L24: […]16/12/2024 16:16:39 | M24: […]16/12/2024 16:16:39
A25: NES | B25: =CONCATENATE("PR24QA_", $C$2, "_OUT2") -> PR24QA_PR24CA35_OUT2 | C25: =CONCATENATE("Name of Model - ", $C$2) -> Name of Model - PR24CA35 | D25: Text | E25: Price Review 2024 | F25: =MID(CELL("filename"),SEARCH("[",CELL("filename"))+1,SEARCH("]",CELL("filename"))-SEARCH("[",CELL("filename"))-1) -> 
A26: NES | B26: =CONCATENATE("PR24QA_", $C$2, "_OUT3") -> PR24QA_PR24CA35_OUT3 | C26: =CONCATENATE("F_Inputs time stamp - ", $C$2) -> F_Inputs time stamp - PR24CA35 | D26: Text | E26: Price Review 2024 | F26: ='F_Inputs BP'!$E$2 -> Run on 03 Sep 2024 17:26 | G26: ='F_Inputs BP'!$E$2 -> Run on 03 Sep 2024 17:26 | H26: ='F_Inputs BP'!$E$2 -> Run on 03 Sep 2024 17:26 | I26: ='F_Inputs BP'!$E$2 -> Run on 03 Sep 2024 17:26 | J26: ='F_Inputs BP'!$E$2 -> Run on 03 Sep 2024 17:26 | K26: ='F_Inputs BP'!$E$2 -> Run on 03 Sep 2024 17:26 | L26: ='F_Inputs BP'!$E$2 -> Run on 03 Sep 2024 17:26 | M26: ='F_Inputs BP'!$E$2 -> Run on 03 Sep 2024 17:26
A27: NES | B27: =CONCATENATE("PR24QA_", $C$2, "_OUT4") -> PR24QA_PR24CA35_OUT4 | C27: =CONCATENATE("Model override switch for - ", $C$2) -> Model override switch for - PR24CA35 | D27: nr | E27: Price Review 2024 | F27: =IF(SUM('Consolidated Input Override'!$E$5:$K$125)>0,1,0) -> 1 | G27: =IF(SUM('Consolidated Input Override'!$E$5:$K$125)>0,1,0) -> 1 | H27: =IF(SUM('Consolidated Input Override'!$E$5:$K$125)>0,1,0) -> 1 | I27: =IF(SUM('Consolidated Input Override'!$E$5:$K$125)>0,1,0) -> 1 | J27: =IF(SUM('Consolidated Input Override'!$E$5:$K$125)>0,1,0) -> 1 | K27: =IF(SUM('Consolidated Input Override'!$E$5:$K$125)>0,1,0) -> 1 | L27: =IF(SUM('Consolidated Input Override'!$E$5:$K$125)>0,1,0) -> 1 | M27: =IF(SUM('Consolidated Input Override'!$E$5:$K$125)>0,1,0) -> 1
A28: NES | B28: =CONCATENATE("C_", $C$2, "_ENH_W_ASSESSED") -> C_PR24CA35_ENH_W_ASSESSED | C28: =CONCATENATE("Total amount assessed - ", MID($C$5,31,200)) -> Total amount assessed - Water - WFD - Totex | D28: £m | E28: Price Review 2024 | F28: =SUMIFS(Allowance!$E$10:$E$26, Allowance!$B$10:$B$26, A28) -> 7.653
A29: NWT | B29: =CONCATENATE("C_", $C$2, "_ENH_W_TOT") -> C_PR24CA35_ENH_W_TOT | C29: =$C$5 -> Total enhancement allowance - Water - WFD - Totex | D29: £m | E29: Price Review 2024 | I29: =SUMIFS('Outputs to aggregator'!U$30:U$46, 'Outputs to aggregator'!$O$30:$O$46, $A29) -> 6.6422425 | J29: =SUMIFS('Outputs to aggregator'!V$30:V$46, 'Outputs to aggregator'!$O$30:$O$46, $A29) -> 1.710822173 | K29: =SUMIFS('Outputs to aggregator'!W$30:W$46, 'Outputs to aggregator'!$O$30:$O$46, $A29) -> 8.014635686 | L29: =SUMIFS('Outputs to aggregator'!X$30:X$46, 'Outputs to aggregator'!$O$30:$O$46, $A29) -> 3.1244044 | M29: =SUMIFS('Outputs to aggregator'!Y$30:Y$46, 'Outputs to aggregator'!$O$30:$O$46, $A29) -> 0.9113212558
A30: NWT | B30: =CONCATENATE("C_", $C$2, "_ENH_W_AP") -> C_PR24CA35_ENH_W_AP | C30: =$C$6 -> Total enhancement allowance - Water - WFD - Accelerated programme | D30: £m | E30: Price Review 2024 | G30: =SUMIFS('Outputs to aggregator'!$R$30:$R$46, 'Outputs to aggregator'!$O$30:$O$46, $A30) -> 0 | H30: =SUMIFS('Outputs to aggregator'!$T$30:$T$46, 'Outputs to aggregator'!$O$30:$O$46, $A30) -> 0
A31: NWT | B31: =CONCATENATE("C_", $C$2, "_ENH_W_TE") -> C_PR24CA35_ENH_W_TE | C31: =$C$7 -> Total enhancement allowance - Water - WFD - Transition allowance | D31: £m | E31: Price Review 2024 | G31: =SUMIFS('Outputs to aggregator'!$Q$30:$Q$46, 'Outputs to aggregator'!$O$30:$O$46, $A31) -> 0.000378275606 | H31: =SUMIFS('Outputs to aggregator'!$S$30:$S$46, 'Outputs to aggregator'!$O$30:$O$46, $A31) -> 0.3596989704
A32: NWT | B32: =CONCATENATE("PR24QA_", $C$2, "_OUT1") -> PR24QA_PR24CA35_OUT1 | C32: =CONCATENATE("Date & Time for Model - ", $C$2) -> Date & Time for Model - PR24CA35 | D32: Text | E32: Price Review 2024 | F32: =CONCATENATE("[…]", TEXT(NOW(),"dd/mm/yyy hh:mm:ss")) -> […]16/12/2024 16:16:39 | G32: […]16/12/2024 16:16:39 | H32: […]16/12/2024 16:16:39 | I32: […]16/12/2024 16:16:39 | J32: […]16/12/2024 16:16:39 | K32: […]16/12/2024 16:16:39 | L32: […]16/12/2024 16:16:39 | M32: […]16/12/2024 16:16:39
A33: NWT | B33: =CONCATENATE("PR24QA_", $C$2, "_OUT2") -> PR24QA_PR24CA35_OUT2 | C33: =CONCATENATE("Name of Model - ", $C$2) -> Name of Model - PR24CA35 | D33: Text | E33: Price Review 2024 | F33: =MID(CELL("filename"),SEARCH("[",CELL("filename"))+1,SEARCH("]",CELL("filename"))-SEARCH("[",CELL("filename"))-1) -> 
A34: NWT | B34: =CONCATENATE("PR24QA_", $C$2, "_OUT3") -> PR24QA_PR24CA35_OUT3 | C34: =CONCATENATE("F_Inputs time stamp - ", $C$2) -> F_Inputs time stamp - PR24CA35 | D34: Text | E34: Price Review 2024 | F34: ='F_Inputs BP'!$E$2 -> Run on 03 Sep 2024 17:26 | G34: ='F_Inputs BP'!$E$2 -> Run on 03 Sep 2024 17:26 | H34: ='F_Inputs BP'!$E$2 -> Run on 03 Sep 2024 17:26 | I34: ='F_Inputs BP'!$E$2 -> Run on 03 Sep 2024 17:26 | J34: ='F_Inputs BP'!$E$2 -> Run on 03 Sep 2024 17:26 | K34: ='F_Inputs BP'!$E$2 -> Run on 03 Sep 2024 17:26 | L34: ='F_Inputs BP'!$E$2 -> Run on 03 Sep 2024 17:26 | M34: ='F_Inputs BP'!$E$2 -> Run on 03 Sep 2024 17:26
A35: NWT | B35: =CONCATENATE("PR24QA_", $C$2, "_OUT4") -> PR24QA_PR24CA35_OUT4 | C35: =CONCATENATE("Model override switch for - ", $C$2) -> Model override switch for - PR24CA35 | D35: nr | E35: Price Review 2024 | F35: =IF(SUM('Consolidated Input Override'!$E$5:$K$125)>0,1,0) -> 1 | G35: =IF(SUM('Consolidated Input Override'!$E$5:$K$125)>0,1,0) -> 1 | H35: =IF(SUM('Consolidated Input Override'!$E$5:$K$125)>0,1,0) -> 1 | I35: =IF(SUM('Consolidated Input Override'!$E$5:$K$125)>0,1,0) -> 1 | J35: =IF(SUM('Consolidated Input Override'!$E$5:$K$125)>0,1,0) -> 1 | K35: =IF(SUM('Consolidated Input Override'!$E$5:$K$125)>0,1,0) -> 1 | L35: =IF(SUM('Consolidated Input Override'!$E$5:$K$125)>0,1,0) -> 1 | M35: =IF(SUM('Consolidated Input Override'!$E$5:$K$125)>0,1,0) -> 1
A36: NWT | B36: =CONCATENATE("C_", $C$2, "_ENH_W_ASSESSED") -> C_PR24CA35_ENH_W_ASSESSED | C36: =CONCATENATE("Total amount assessed - ", MID($C$5,31,200)) -> Total amount assessed - Water - WFD - Totex | D36: £m | E36: Price Review 2024 | F36: =SUMIFS(Allowance!$E$10:$E$26, Allowance!$B$10:$B$26, A36) -> 20.76350326
A37: SRN | B37: =CONCATENATE("C_", $C$2, "_ENH_W_TOT") -> C_PR24CA35_ENH_W_TOT | C37: =$C$5 -> Total enhancement allowance - Water - WFD - Totex | D37: £m | E37: Price Review 2024 | I37: =SUMIFS('Outputs to aggregator'!U$30:U$46, 'Outputs to aggregator'!$O$30:$O$46, $A37) -> 1.4805 | J37: =SUMIFS('Outputs to aggregator'!V$30:V$46, 'Outputs to aggregator'!$O$30:$O$46, $A37) -> 1.4805 | K37: =SUMIFS('Outputs to aggregator'!W$30:W$46, 'Outputs to aggregator'!$O$30:$O$46, $A37) -> 1.4805 | L37: =SUMIFS('Outputs to aggregator'!X$30:X$46, 'Outputs to aggregator'!$O$30:$O$46, $A37) -> 1.4805 | M37: =SUMIFS('Outputs to aggregator'!Y$30:Y$46, 'Outputs to aggregator'!$O$30:$O$46, $A37) -> 1.4805
A38: SRN | B38: =CONCATENATE("C_", $C$2, "_ENH_W_AP") -> C_PR24CA35_ENH_W_AP | C38: =$C$6 -> Total enhancement allowance - Water - WFD - Accelerated programme | D38: £m | E38: Price Review 2024 | G38: =SUMIFS('Outputs to aggregator'!$R$30:$R$46, 'Outputs to aggregator'!$O$30:$O$46, $A38) -> 0 | H38: =SUMIFS('Outputs to aggregator'!$T$30:$T$46, 'Outputs to aggregator'!$O$30:$O$46, $A38) -> 0
A39: SRN | B39: =CONCATENATE("C_", $C$2, "_ENH_W_TE") -> C_PR24CA35_ENH_W_TE | C39: =$C$7 -> Total enhancement allowance - Water - WFD - Transition allowance | D39: £m | E39: Price Review 2024 | G39: =SUMIFS('Outputs to aggregator'!$Q$30:$Q$46, 'Outputs to aggregator'!$O$30:$O$46, $A39) -> 0 | H39: =SUMIFS('Outputs to aggregator'!$S$30:$S$46, 'Outputs to aggregator'!$O$30:$O$46, $A39) -> 0
A40: SRN | B40: =CONCATENATE("PR24QA_", $C$2, "_OUT1") -> PR24QA_PR24CA35_OUT1 | C40: =CONCATENATE("Date & Time for Model - ", $C$2) -> Date & Time for Model - PR24CA35 | D40: Text | E40: Price Review 2024 | F40: =CONCATENATE("[…]", TEXT(NOW(),"dd/mm/yyy hh:mm:ss")) -> […]16/12/2024 16:16:39 | G40: […]16/12/2024 16:16:39 | H40: […]16/12/2024 16:16:39 | I40: […]16/12/2024 16:16:39 | J40: […]16/12/2024 16:16:39 | K40: […]16/12/2024 16:16:39 | L40: […]16/12/2024 16:16:39 | M40: […]16/12/2024 16:16:39
A41: SRN | B41: =CONCATENATE("PR24QA_", $C$2, "_OUT2") -> PR24QA_PR24CA35_OUT2 | C41: =CONCATENATE("Name of Model - ", $C$2) -> Name of Model - PR24CA35 | D41: Text | E41: Price Review 2024 | F41: =MID(CELL("filename"),SEARCH("[",CELL("filename"))+1,SEARCH("]",CELL("filename"))-SEARCH("[",CELL("filename"))-1) -> 
A42: SRN | B42: =CONCATENATE("PR24QA_", $C$2, "_OUT3") -> PR24QA_PR24CA35_OUT3 | C42: =CONCATENATE("F_Inputs time stamp - ", $C$2) -> F_Inputs time stamp - PR24CA35 | D42: Text | E42: Price Review 2024 | F42: ='F_Inputs BP'!$E$2 -> Run on 03 Sep 2024 17:26 | G42: ='F_Inputs BP'!$E$2 -> Run on 03 Sep 2024 17:26 | H42: ='F_Inputs BP'!$E$2 -> Run on 03 Sep 2024 17:26 | I42: ='F_Inputs BP'!$E$2 -> Run on 03 Sep 2024 17:26 | J42: ='F_Inputs BP'!$E$2 -> Run on 03 Sep 2024 17:26 | K42: ='F_Inputs BP'!$E$2 -> Run on 03 Sep 2024 17:26 | L42: ='F_Inputs BP'!$E$2 -> Run on 03 Sep 2024 17:26 | M42: ='F_Inputs BP'!$E$2 -> Run on 03 Sep 2024 17:26
A43: SRN | B43: =CONCATENATE("PR24QA_", $C$2, "_OUT4") -> PR24QA_PR24CA35_OUT4 | C43: =CONCATENATE("Model override switch for - ", $C$2) -> Model override switch for - PR24CA35 | D43: nr | E43: Price Review 2024 | F43: =IF(SUM('Consolidated Input Override'!$E$5:$K$125)>0,1,0) -> 1 | G43: =IF(SUM('Consolidated Input Override'!$E$5:$K$125)>0,1,0) -> 1 | H43: =IF(SUM('Consolidated Input Override'!$E$5:$K$125)>0,1,0) -> 1 | I43: =IF(SUM('Consolidated Input Override'!$E$5:$K$125)>0,1,0) -> 1 | J43: =IF(SUM('Consolidated Input Override'!$E$5:$K$125)>0,1,0) -> 1 | K43: =IF(SUM('Consolidated Input Override'!$E$5:$K$125)>0,1,0) -> 1 | L43: =IF(SUM('Consolidated Input Override'!$E$5:$K$125)>0,1,0) -> 1 | M43: =IF(SUM('Consolidated Input Override'!$E$5:$K$125)>0,1,0) -> 1
A44: SRN | B44: =CONCATENATE("C_", $C$2, "_ENH_W_ASSESSED") -> C_PR24CA35_ENH_W_ASSESSED | C44: =CONCATENATE("Total amount assessed - ", MID($C$5,31,200)) -> Total amount assessed - Water - WFD - Totex | D44: £m | E44: Price Review 2024 | F44: =SUMIFS(Allowance!$E$10:$E$26, Allowance!$B$10:$B$26, A44) -> 8.225
A45: SVE | B45: =CONCATENATE("C_", $C$2, "_ENH_W_TOT") -> C_PR24CA35_ENH_W_TOT | C45: =$C$5 -> Total enhancement allowance - Water - WFD - Totex | D45: £m | E45: Price Review 2024 | I45: =SUMIFS('Outputs to aggregator'!U$30:U$46, 'Outputs to aggregator'!$O$30:$O$46, $A45) -> 43.87049006 | J45: =SUMIFS('Outputs to aggregator'!V$30:V$46, 'Outputs to aggregator'!$O$30:$O$46, $A45) -> 56.80037893 | K45: =SUMIFS('Outputs to aggregator'!W$30:W$46, 'Outputs to aggregator'!$O$30:$O$46, $A45) -> 70.01871343 | L45: =SUMIFS('Outputs to aggregator'!X$30:X$46, 'Outputs to aggregator'!$O$30:$O$46, $A45) -> 69.5839548 | M45: =SUMIFS('Outputs to aggregator'!Y$30:Y$46, 'Outputs to aggregator'!$O$30:$O$46, $A45) -> 25.61648012
A46: SVE | B46: =CONCATENATE("C_", $C$2, "_ENH_W_AP") -> C_PR24CA35_ENH_W_AP | C46: =$C$6 -> Total enhancement allowance - Water - WFD - Accelerated programme | D46: £m | E46: Price Review 2024 | G46: =SUMIFS('Outputs to aggregator'!$R$30:$R$46, 'Outputs to aggregator'!$O$30:$O$46, $A46) -> 0 | H46: =SUMIFS('Outputs to aggregator'!$T$30:$T$46, 'Outputs to aggregator'!$O$30:$O$46, $A46) -> 0
A47: SVE | B47: =CONCATENATE("C_", $C$2, "_ENH_W_TE") -> C_PR24CA35_ENH_W_TE | C47: =$C$7 -> Total enhancement allowance - Water - WFD - Transition allowance | D47: £m | E47: Price Review 2024 | G47: =SUMIFS('Outputs to aggregator'!$Q$30:$Q$46, 'Outputs to aggregator'!$O$30:$O$46, $A47) -> 0 | H47: =SUMIFS('Outputs to aggregator'!$S$30:$S$46, 'Outputs to aggregator'!$O$30:$O$46, $A47) -> 9.309844519
A48: SVE | B48: =CONCATENATE("PR24QA_", $C$2, "_OUT1") -> PR24QA_PR24CA35_OUT1 | C48: =CONCATENATE("Date & Time for Model - ", $C$2) -> Date & Time for Model - PR24CA35 | D48: Text | E48: Price Review 2024 | F48: =CONCATENATE("[…]", TEXT(NOW(),"dd/mm/yyy hh:mm:ss")) -> […]16/12/2024 16:16:39 | G48: […]16/12/2024 16:16:39 | H48: […]16/12/2024 16:16:39 | I48: […]16/12/2024 16:16:39 | J48: […]16/12/2024 16:16:39 | K48: […]16/12/2024 16:16:39 | L48: […]16/12/2024 16:16:39 | M48: […]16/12/2024 16:16:39
A49: SVE | B49: =CONCATENATE("PR24QA_", $C$2, "_OUT2") -> PR24QA_PR24CA35_OUT2 | C49: =CONCATENATE("Name of Model - ", $C$2) -> Name of Model - PR24CA35 | D49: Text | E49: Price Review 2024 | F49: =MID(CELL("filename"),SEARCH("[",CELL("filename"))+1,SEARCH("]",CELL("filename"))-SEARCH("[",CELL("filename"))-1) -> 
A50: SVE | B50: =CONCATENATE("PR24QA_", $C$2, "_OUT3") -> PR24QA_PR24CA35_OUT3 | C50: =CONCATENATE("F_Inputs time stamp - ", $C$2) -> F_Inputs time stamp - PR24CA35 | D50: Text | E50: Price Review 2024 | F50: ='F_Inputs BP'!$E$2 -> Run on 03 Sep 2024 17:26 | G50: ='F_Inputs BP'!$E$2 -> Run on 03 Sep 2024 17:26 | H50: ='F_Inputs BP'!$E$2 -> Run on 03 Sep 2024 17:26 | I50: ='F_Inputs BP'!$E$2 -> Run on 03 Sep 2024 17:26 | J50: ='F_Inputs BP'!$E$2 -> Run on 03 Sep 2024 17:26 | K50: ='F_Inputs BP'!$E$2 -> Run on 03 Sep 2024 17:26 | L50: ='F_Inputs BP'!$E$2 -> Run on 03 Sep 2024 17:26 | M50: ='F_Inputs BP'!$E$2 -> Run on 03 Sep 2024 17:26
A51: SVE | B51: =CONCATENATE("PR24QA_", $C$2, "_OUT4") -> PR24QA_PR24CA35_OUT4 | C51: =CONCATENATE("Model override switch for - ", $C$2) -> Model override switch for - PR24CA35 | D51: nr | E51: Price Review 2024 | F51: =IF(SUM('Consolidated Input Override'!$E$5:$K$125)>0,1,0) -> 1 | G51: =IF(SUM('Consolidated Input Override'!$E$5:$K$125)>0,1,0) -> 1 | H51: =IF(SUM('Consolidated Input Override'!$E$5:$K$125)>0,1,0) -> 1 | I51: =IF(SUM('Consolidated Input Override'!$E$5:$K$125)>0,1,0) -> 1 | J51: =IF(SUM('Consolidated Input Override'!$E$5:$K$125)>0,1,0) -> 1 | K51: =IF(SUM('Consolidated Input Override'!$E$5:$K$125)>0,1,0) -> 1 | L51: =IF(SUM('Consolidated Input Override'!$E$5:$K$125)>0,1,0) -> 1 | M51: =IF(SUM('Consolidated Input Override'!$E$5:$K$125)>0,1,0) -> 1
A52: SVE | B52: =CONCATENATE("C_", $C$2, "_ENH_W_ASSESSED") -> C_PR24CA35_ENH_W_ASSESSED | C52: =CONCATENATE("Total amount assessed - ", MID($C$5,31,200)) -> Total amount assessed - Water - WFD - Totex | D52: £m | E52: Price Review 2024 | F52: =SUMIFS(Allowance!$E$10:$E$26, Allowance!$B$10:$B$26, A52) -> 329.1571882
A53: SWB | B53: =CONCATENATE("C_", $C$2, "_ENH_W_TOT") -> C_PR24CA35_ENH_W_TOT | C53: =$C$5 -> Total enhancement allowance - Water - WFD - Totex | D53: £m | E53: Price Review 2024 | I53: =SUMIFS('Outputs to aggregator'!U$30:U$46, 'Outputs to aggregator'!$O$30:$O$46, $A53) -> 1.1251818 | J53: =SUMIFS('Outputs to aggregator'!V$30:V$46, 'Outputs to aggregator'!$O$30:$O$46, $A53) -> 1.1251818 | K53: =SUMIFS('Outputs to aggregator'!W$30:W$46, 'Outputs to aggregator'!$O$30:$O$46, $A53) -> 1.1869866 | L53: =SUMIFS('Outputs to aggregator'!X$30:X$46, 'Outputs to aggregator'!$O$30:$O$46, $A53) -> 1.1869866 | M53: =SUMIFS('Outputs to aggregator'!Y$30:Y$46, 'Outputs to aggregator'!$O$30:$O$46, $A53) -> 1.1869866
A54: SWB | B54: =CONCATENATE("C_", $C$2, "_ENH_W_AP") -> C_PR24CA35_ENH_W_AP | C54: =$C$6 -> Total enhancement allowance - Water - WFD - Accelerated programme | D54: £m | E54: Price Review 2024 | G54: =SUMIFS('Outputs to aggregator'!$R$30:$R$46, 'Outputs to aggregator'!$O$30:$O$46, $A54) -> 0 | H54: =SUMIFS('Outputs to aggregator'!$T$30:$T$46, 'Outputs to aggregator'!$O$30:$O$46, $A54) -> 0
A55: SWB | B55: =CONCATENATE("C_", $C$2, "_ENH_W_TE") -> C_PR24CA35_ENH_W_TE | C55: =$C$7 -> Total enhancement allowance - Water - WFD - Transition allowance | D55: £m | E55: Price Review 2024 | G55: =SUMIFS('Outputs to aggregator'!$Q$30:$Q$46, 'Outputs to aggregator'!$O$30:$O$46, $A55) -> 0 | H55: =SUMIFS('Outputs to aggregator'!$S$30:$S$46, 'Outputs to aggregator'!$O$30:$O$46, $A55) -> 0
A56: SWB | B56: =CONCATENATE("PR24QA_", $C$2, "_OUT1") -> PR24QA_PR24CA35_OUT1 | C56: =CONCATENATE("Date & Time for Model - ", $C$2) -> Date & Time for Model - PR24CA35 | D56: Text | E56: Price Review 2024 | F56: =CONCATENATE("[…]", TEXT(NOW(),"dd/mm/yyy hh:mm:ss")) -> […]16/12/2024 16:16:39 | G56: […]16/12/2024 16:16:39 | H56: […]16/12/2024 16:16:39 | I56: […]16/12/2024 16:16:39 | J56: […]16/12/2024 16:16:39 | K56: […]16/12/2024 16:16:39 | L56: […]16/12/2024 16:16:39 | M56: […]16/12/2024 16:16:39
A57: SWB | B57: =CONCATENATE("PR24QA_", $C$2, "_OUT2") -> PR24QA_PR24CA35_OUT2 | C57: =CONCATENATE("Name of Model - ", $C$2) -> Name of Model - PR24CA35 | D57: Text | E57: Price Review 2024 | F57: =MID(CELL("filename"),SEARCH("[",CELL("filename"))+1,SEARCH("]",CELL("filename"))-SEARCH("[",CELL("filename"))-1) -> 
A58: SWB | B58: =CONCATENATE("PR24QA_", $C$2, "_OUT3") -> PR24QA_PR24CA35_OUT3 | C58: =CONCATENATE("F_Inputs time stamp - ", $C$2) -> F_Inputs time stamp - PR24CA35 | D58: Text | E58: Price Review 2024 | F58: ='F_Inputs BP'!$E$2 -> Run on 03 Sep 2024 17:26 | G58: ='F_Inputs BP'!$E$2 -> Run on 03 Sep 2024 17:26 | H58: ='F_Inputs BP'!$E$2 -> Run on 03 Sep 2024 17:26 | I58: ='F_Inputs BP'!$E$2 -> Run on 03 Sep 2024 17:26 | J58: ='F_Inputs BP'!$E$2 -> Run on 03 Sep 2024 17:26 | K58: ='F_Inputs BP'!$E$2 -> Run on 03 Sep 2024 17:26 | L58: ='F_Inputs BP'!$E$2 -> Run on 03 Sep 2024 17:26 | M58: ='F_Inputs BP'!$E$2 -> Run on 03 Sep 2024 17:26
A59: SWB | B59: =CONCATENATE("PR24QA_", $C$2, "_OUT4") -> PR24QA_PR24CA35_OUT4 | C59: =CONCATENATE("Model override switch for - ", $C$2) -> Model override switch for - PR24CA35 | D59: nr | E59: Price Review 2024 | F59: =IF(SUM('Consolidated Input Override'!$E$5:$K$125)>0,1,0) -> 1 | G59: =IF(SUM('Consolidated Input Override'!$E$5:$K$125)>0,1,0) -> 1 | H59: =IF(SUM('Consolidated Input Override'!$E$5:$K$125)>0,1,0) -> 1 | I59: =IF(SUM('Consolidated Input Override'!$E$5:$K$125)>0,1,0) -> 1 | J59: =IF(SUM('Consolidated Input Override'!$E$5:$K$125)>0,1,0) -> 1 | K59: =IF(SUM('Consolidated Input Override'!$E$5:$K$125)>0,1,0) -> 1 | L59: =IF(SUM('Consolidated Input Override'!$E$5:$K$125)>0,1,0) -> 1 | M59: =IF(SUM('Consolidated Input Override'!$E$5:$K$125)>0,1,0) -> 1
A60: SWB | B60: =CONCATENATE("C_", $C$2, "_ENH_W_ASSESSED") -> C_PR24CA35_ENH_W_ASSESSED | C60: =CONCATENATE("Total amount assessed - ", MID($C$5,31,200)) -> Total amount assessed - Water - WFD - Totex | D60: £m | E60: Price Review 2024 | F60: =SUMIFS(Allowance!$E$10:$E$26, Allowance!$B$10:$B$26, A60) -> 6.457026
A61: TMS | B61: =CONCATENATE("C_", $C$2, "_ENH_W_TOT") -> C_PR24CA35_ENH_W_TOT | C61: =$C$5 -> Total enhancement allowance - Water - WFD - Totex | D61: £m | E61: Price Review 2024 | I61: =SUMIFS('Outputs to aggregator'!U$30:U$46, 'Outputs to aggregator'!$O$30:$O$46, $A61) -> 1.121617584 | J61: =SUMIFS('Outputs to aggregator'!V$30:V$46, 'Outputs to aggregator'!$O$30:$O$46, $A61) -> 2.669489136 | K61: =SUMIFS('Outputs to aggregator'!W$30:W$46, 'Outputs to aggregator'!$O$30:$O$46, $A61) -> 5.228977248 | L61: =SUMIFS('Outputs to aggregator'!X$30:X$46, 'Outputs to aggregator'!$O$30:$O$46, $A61) -> 9.240086016 | M61: =SUMIFS('Outputs to aggregator'!Y$30:Y$46, 'Outputs to aggregator'!$O$30:$O$46, $A61) -> 30.84743002
A62: TMS | B62: =CONCATENATE("C_", $C$2, "_ENH_W_AP") -> C_PR24CA35_ENH_W_AP | C62: =$C$6 -> Total enhancement allowance - Water - WFD - Accelerated programme | D62: £m | E62: Price Review 2024 | G62: =SUMIFS('Outputs to aggregator'!$R$30:$R$46, 'Outputs to aggregator'!$O$30:$O$46, $A62) -> 0 | H62: =SUMIFS('Outputs to aggregator'!$T$30:$T$46, 'Outputs to aggregator'!$O$30:$O$46, $A62) -> 0
A63: TMS | B63: =CONCATENATE("C_", $C$2, "_ENH_W_TE") -> C_PR24CA35_ENH_W_TE | C63: =$C$7 -> Total enhancement allowance - Water - WFD - Transition allowance | D63: £m | E63: Price Review 2024 | G63: =SUMIFS('Outputs to aggregator'!$Q$30:$Q$46, 'Outputs to aggregator'!$O$30:$O$46, $A63) -> 0 | H63: =SUMIFS('Outputs to aggregator'!$S$30:$S$46, 'Outputs to aggregator'!$O$30:$O$46, $A63) -> 0
A64: TMS | B64: =CONCATENATE("PR24QA_", $C$2, "_OUT1") -> PR24QA_PR24CA35_OUT1 | C64: =CONCATENATE("Date & Time for Model - ", $C$2) -> Date & Time for Model - PR24CA35 | D64: Text | E64: Price Review 2024 | F64: =CONCATENATE("[…]", TEXT(NOW(),"dd/mm/yyy hh:mm:ss")) -> […]16/12/2024 16:16:39 | G64: […]16/12/2024 16:16:39 | H64: […]16/12/2024 16:16:39 | I64: […]16/12/2024 16:16:39 | J64: […]16/12/2024 16:16:39 | K64: […]16/12/2024 16:16:39 | L64: […]16/12/2024 16:16:39 | M64: […]16/12/2024 16:16:39
A65: TMS | B65: =CONCATENATE("PR24QA_", $C$2, "_OUT2") -> PR24QA_PR24CA35_OUT2 | C65: =CONCATENATE("Name of Model - ", $C$2) -> Name of Model - PR24CA35 | D65: Text | E65: Price Review 2024 | F65: =MID(CELL("filename"),SEARCH("[",CELL("filename"))+1,SEARCH("]",CELL("filename"))-SEARCH("[",CELL("filename"))-1) -> 
A66: TMS | B66: =CONCATENATE("PR24QA_", $C$2, "_OUT3") -> PR24QA_PR24CA35_OUT3 | C66: =CONCATENATE("F_Inputs time stamp - ", $C$2) -> F_Inputs time stamp - PR24CA35 | D66: Text | E66: Price Review 2024 | F66: ='F_Inputs BP'!$E$2 -> Run on 03 Sep 2024 17:26 | G66: ='F_Inputs BP'!$E$2 -> Run on 03 Sep 2024 17:26 | H66: ='F_Inputs BP'!$E$2 -> Run on 03 Sep 2024 17:26 | I66: ='F_Inputs BP'!$E$2 -> Run on 03 Sep 2024 17:26 | J66: ='F_Inputs BP'!$E$2 -> Run on 03 Sep 2024 17:26 | K66: ='F_Inputs BP'!$E$2 -> Run on 03 Sep 2024 17:26 | L66: ='F_Inputs BP'!$E$2 -> Run on 03 Sep 2024 17:26 | M66: ='F_Inputs BP'!$E$2 -> Run on 03 Sep 2024 17:26
A67: TMS | B67: =CONCATENATE("PR24QA_", $C$2, "_OUT4") -> PR24QA_PR24CA35_OUT4 | C67: =CONCATENATE("Model override switch for - ", $C$2) -> Model override switch for - PR24CA35 | D67: nr | E67: Price Review 2024 | F67: =IF(SUM('Consolidated Input Override'!$E$5:$K$125)>0,1,0) -> 1 | G67: =IF(SUM('Consolidated Input Override'!$E$5:$K$125)>0,1,0) -> 1 | H67: =IF(SUM('Consolidated Input Override'!$E$5:$K$125)>0,1,0) -> 1 | I67: =IF(SUM('Consolidated Input Override'!$E$5:$K$125)>0,1,0) -> 1 | J67: =IF(SUM('Consolidated Input Override'!$E$5:$K$125)>0,1,0) -> 1 | K67: =IF(SUM('Consolidated Input Override'!$E$5:$K$125)>0,1,0) -> 1 | L67: =IF(SUM('Consolidated Input Override'!$E$5:$K$125)>0,1,0) -> 1 | M67: =IF(SUM('Consolidated Input Override'!$E$5:$K$125)>0,1,0) -> 1
A68: TMS | B68: =CONCATENATE("C_", $C$2, "_ENH_W_ASSESSED") -> C_PR24CA35_ENH_W_ASSESSED | C68: =CONCATENATE("Total amount assessed - ", MID($C$5,31,200)) -> Total amount assessed - Water - WFD - Totex | D68: £m | E68: Price Review 2024 | F68: =SUMIFS(Allowance!$E$10:$E$26, Allowance!$B$10:$B$26, A68) -> 54.564
A69: WSH | B69: =CONCATENATE("C_", $C$2, "_ENH_W_TOT") -> C_PR24CA35_ENH_W_TOT | C69: =$C$5 -> Total enhancement allowance - Water - WFD - Totex | D69: £m | E69: Price Review 2024 | I69: =SUMIFS('Outputs to aggregator'!U$30:U$46, 'Outputs to aggregator'!$O$30:$O$46, $A69) -> 0.44946 | J69: =SUMIFS('Outputs to aggregator'!V$30:V$46, 'Outputs to aggregator'!$O$30:$O$46, $A69) -> 0.44154 | K69: =SUMIFS('Outputs to aggregator'!W$30:W$46, 'Outputs to aggregator'!$O$30:$O$46, $A69) -> 0.44253 | L69: =SUMIFS('Outputs to aggregator'!X$30:X$46, 'Outputs to aggregator'!$O$30:$O$46, $A69) -> 0.44352 | M69: =SUMIFS('Outputs to aggregator'!Y$30:Y$46, 'Outputs to aggregator'!$O$30:$O$46, $A69) -> 0.45144
A70: WSH | B70: =CONCATENATE("C_", $C$2, "_ENH_W_AP") -> C_PR24CA35_ENH_W_AP | C70: =$C$6 -> Total enhancement allowance - Water - WFD - Accelerated programme | D70: £m | E70: Price Review 2024 | G70: =SUMIFS('Outputs to aggregator'!$R$30:$R$46, 'Outputs to aggregator'!$O$30:$O$46, $A70) -> 0 | H70: =SUMIFS('Outputs to aggregator'!$T$30:$T$46, 'Outputs to aggregator'!$O$30:$O$46, $A70) -> 0
A71: WSH | B71: =CONCATENATE("C_", $C$2, "_ENH_W_TE") -> C_PR24CA35_ENH_W_TE | C71: =$C$7 -> Total enhancement allowance - Water - WFD - Transition allowance | D71: £m | E71: Price Review 2024 | G71: =SUMIFS('Outputs to aggregator'!$Q$30:$Q$46, 'Outputs to aggregator'!$O$30:$O$46, $A71) -> 0 | H71: =SUMIFS('Outputs to aggregator'!$S$30:$S$46, 'Outputs to aggregator'!$O$30:$O$46, $A71) -> 0
A72: WSH | B72: =CONCATENATE("PR24QA_", $C$2, "_OUT1") -> PR24QA_PR24CA35_OUT1 | C72: =CONCATENATE("Date & Time for Model - ", $C$2) -> Date & Time for Model - PR24CA35 | D72: Text | E72: Price Review 2024 | F72: =CONCATENATE("[…]", TEXT(NOW(),"dd/mm/yyy hh:mm:ss")) -> […]16/12/2024 16:16:39 | G72: […]16/12/2024 16:16:39 | H72: […]16/12/2024 16:16:39 | I72: […]16/12/2024 16:16:39 | J72: […]16/12/2024 16:16:39 | K72: […]16/12/2024 16:16:39 | L72: […]16/12/2024 16:16:39 | M72: […]16/12/2024 16:16:39
A73: WSH | B73: =CONCATENATE("PR24QA_", $C$2, "_OUT2") -> PR24QA_PR24CA35_OUT2 | C73: =CONCATENATE("Name of Model - ", $C$2) -> Name of Model - PR24CA35 | D73: Text | E73: Price Review 2024 | F73: =MID(CELL("filename"),SEARCH("[",CELL("filename"))+1,SEARCH("]",CELL("filename"))-SEARCH("[",CELL("filename"))-1) -> 
A74: WSH | B74: =CONCATENATE("PR24QA_", $C$2, "_OUT3") -> PR24QA_PR24CA35_OUT3 | C74: =CONCATENATE("F_Inputs time stamp - ", $C$2) -> F_Inputs time stamp - PR24CA35 | D74: Text | E74: Price Review 2024 | F74: ='F_Inputs BP'!$E$2 -> Run on 03 Sep 2024 17:26 | G74: ='F_Inputs BP'!$E$2 -> Run on 03 Sep 2024 17:26 | H74: ='F_Inputs BP'!$E$2 -> Run on 03 Sep 2024 17:26 | I74: ='F_Inputs BP'!$E$2 -> Run on 03 Sep 2024 17:26 | J74: ='F_Inputs BP'!$E$2 -> Run on 03 Sep 2024 17:26 | K74: ='F_Inputs BP'!$E$2 -> Run on 03 Sep 2024 17:26 | L74: ='F_Inputs BP'!$E$2 -> Run on 03 Sep 2024 17:26 | M74: ='F_Inputs BP'!$E$2 -> Run on 03 Sep 2024 17:26
A75: WSH | B75: =CONCATENATE("PR24QA_", $C$2, "_OUT4") -> PR24QA_PR24CA35_OUT4 | C75: =CONCATENATE("Model override switch for - ", $C$2) -> Model override switch for - PR24CA35 | D75: nr | E75: Price Review 2024 | F75: =IF(SUM('Consolidated Input Override'!$E$5:$K$125)>0,1,0) -> 1 | G75: =IF(SUM('Consolidated Input Override'!$E$5:$K$125)>0,1,0) -> 1 | H75: =IF(SUM('Consolidated Input Override'!$E$5:$K$125)>0,1,0) -> 1 | I75: =IF(SUM('Consolidated Input Override'!$E$5:$K$125)>0,1,0) -> 1 | J75: =IF(SUM('Consolidated Input Override'!$E$5:$K$125)>0,1,0) -> 1 | K75: =IF(SUM('Consolidated Input Override'!$E$5:$K$125)>0,1,0) -> 1 | L75: =IF(SUM('Consolidated Input Override'!$E$5:$K$125)>0,1,0) -> 1 | M75: =IF(SUM('Consolidated Input Override'!$E$5:$K$125)>0,1,0) -> 1
A76: WSH | B76: =CONCATENATE("C_", $C$2, "_ENH_W_ASSESSED") -> C_PR24CA35_ENH_W_ASSESSED | C76: =CONCATENATE("Total amount assessed - ", MID($C$5,31,200)) -> Total amount assessed - Water - WFD - Totex | D76: £m | E76: Price Review 2024 | F76: =SUMIFS(Allowance!$E$10:$E$26, Allowance!$B$10:$B$26, A76) -> 2.251
A77: WSX | B77: =CONCATENATE("C_", $C$2, "_ENH_W_TOT") -> C_PR24CA35_ENH_W_TOT | C77: =$C$5 -> Total enhancement allowance - Water - WFD - Totex | D77: £m | E77: Price Review 2024 | I77: =SUMIFS('Outputs to aggregator'!U$30:U$46, 'Outputs to aggregator'!$O$30:$O$46, $A77) -> 0.63419211 | J77: =SUMIFS('Outputs to aggregator'!V$30:V$46, 'Outputs to aggregator'!$O$30:$O$46, $A77) -> 0.12266607 | K77: =SUMIFS('Outputs to aggregator'!W$30:W$46, 'Outputs to aggregator'!$O$30:$O$46, $A77) -> 0.22998342 | L77: =SUMIFS('Outputs to aggregator'!X$30:X$46, 'Outputs to aggregator'!$O$30:$O$46, $A77) -> 0.6971187 | M77: =SUMIFS('Outputs to aggregator'!Y$30:Y$46, 'Outputs to aggregator'!$O$30:$O$46, $A77) -> 1.62905124
A78: WSX | B78: =CONCATENATE("C_", $C$2, "_ENH_W_AP") -> C_PR24CA35_ENH_W_AP | C78: =$C$6 -> Total enhancement allowance - Water - WFD - Accelerated programme | D78: £m | E78: Price Review 2024 | G78: =SUMIFS('Outputs to aggregator'!$R$30:$R$46, 'Outputs to aggregator'!$O$30:$O$46, $A78) -> 0 | H78: =SUMIFS('Outputs to aggregator'!$T$30:$T$46, 'Outputs to aggregator'!$O$30:$O$46, $A78) -> 0
A79: WSX | B79: =CONCATENATE("C_", $C$2, "_ENH_W_TE") -> C_PR24CA35_ENH_W_TE | C79: =$C$7 -> Total enhancement allowance - Water - WFD - Transition allowance | D79: £m | E79: Price Review 2024 | G79: =SUMIFS('Outputs to aggregator'!$Q$30:$Q$46, 'Outputs to aggregator'!$O$30:$O$46, $A79) -> 0 | H79: =SUMIFS('Outputs to aggregator'!$S$30:$S$46, 'Outputs to aggregator'!$O$30:$O$46, $A79) -> 0
A80: WSX | B80: =CONCATENATE("PR24QA_", $C$2, "_OUT1") -> PR24QA_PR24CA35_OUT1 | C80: =CONCATENATE("Date & Time for Model - ", $C$2) -> Date & Time for Model - PR24CA35 | D80: Text | E80: Price Review 2024 | F80: =CONCATENATE("[…]", TEXT(NOW(),"dd/mm/yyy hh:mm:ss")) -> […]16/12/2024 16:16:39 | G80: […]16/12/2024 16:16:39 | H80: […]16/12/2024 16:16:39 | I80: […]16/12/2024 16:16:39 | J80: […]16/12/2024 16:16:39 | K80: […]16/12/2024 16:16:39 | L80: […]16/12/2024 16:16:39 | M80: […]16/12/2024 16:16:39
A81: WSX | B81: =CONCATENATE("PR24QA_", $C$2, "_OUT2") -> PR24QA_PR24CA35_OUT2 | C81: =CONCATENATE("Name of Model - ", $C$2) -> Name of Model - PR24CA35 | D81: Text | E81: Price Review 2024 | F81: =MID(CELL("filename"),SEARCH("[",CELL("filename"))+1,SEARCH("]",CELL("filename"))-SEARCH("[",CELL("filename"))-1) -> 
A82: WSX | B82: =CONCATENATE("PR24QA_", $C$2, "_OUT3") -> PR24QA_PR24CA35_OUT3 | C82: =CONCATENATE("F_Inputs time stamp - ", $C$2) -> F_Inputs time stamp - PR24CA35 | D82: Text | E82: Price Review 2024 | F82: ='F_Inputs BP'!$E$2 -> Run on 03 Sep 2024 17:26 | G82: ='F_Inputs BP'!$E$2 -> Run on 03 Sep 2024 17:26 | H82: ='F_Inputs BP'!$E$2 -> Run on 03 Sep 2024 17:26 | I82: ='F_Inputs BP'!$E$2 -> Run on 03 Sep 2024 17:26 | J82: ='F_Inputs BP'!$E$2 -> Run on 03 Sep 2024 17:26 | K82: ='F_Inputs BP'!$E$2 -> Run on 03 Sep 2024 17:26 | L82: ='F_Inputs BP'!$E$2 -> Run on 03 Sep 2024 17:26 | M82: ='F_Inputs BP'!$E$2 -> Run on 03 Sep 2024 17:26
A83: WSX | B83: =CONCATENATE("PR24QA_", $C$2, "_OUT4") -> PR24QA_PR24CA35_OUT4 | C83: =CONCATENATE("Model override switch for - ", $C$2) -> Model override switch for - PR24CA35 | D83: nr | E83: Price Review 2024 | F83: =IF(SUM('Consolidated Input Override'!$E$5:$K$125)>0,1,0) -> 1 | G83: =IF(SUM('Consolidated Input Override'!$E$5:$K$125)>0,1,0) -> 1 | H83: =IF(SUM('Consolidated Input Override'!$E$5:$K$125)>0,1,0) -> 1 | I83: =IF(SUM('Consolidated Input Override'!$E$5:$K$125)>0,1,0) -> 1 | J83: =IF(SUM('Consolidated Input Override'!$E$5:$K$125)>0,1,0) -> 1 | K83: =IF(SUM('Consolidated Input Override'!$E$5:$K$125)>0,1,0) -> 1 | L83: =IF(SUM('Consolidated Input Override'!$E$5:$K$125)>0,1,0) -> 1 | M83: =IF(SUM('Consolidated Input Override'!$E$5:$K$125)>0,1,0) -> 1
A84: WSX | B84: =CONCATENATE("C_", $C$2, "_ENH_W_ASSESSED") -> C_PR24CA35_ENH_W_ASSESSED | C84: =CONCATENATE("Total amount assessed - ", MID($C$5,31,200)) -> Total amount assessed - Water - WFD - Totex | D84: £m | E84: Price Review 2024 | F84: =SUMIFS(Allowance!$E$10:$E$26, Allowance!$B$10:$B$26, A84) -> 3.562378
A85: YKY | B85: =CONCATENATE("C_", $C$2, "_ENH_W_TOT") -> C_PR24CA35_ENH_W_TOT | C85: =$C$5 -> Total enhancement allowance - Water - WFD - Totex | D85: £m | E85: Price Review 2024 | I85: =SUMIFS('Outputs to aggregator'!U$30:U$46, 'Outputs to aggregator'!$O$30:$O$46, $A85) -> 1.007088852 | J85: =SUMIFS('Outputs to aggregator'!V$30:V$46, 'Outputs to aggregator'!$O$30:$O$46, $A85) -> 1.084856331 | K85: =SUMIFS('Outputs to aggregator'!W$30:W$46, 'Outputs to aggregator'!$O$30:$O$46, $A85) -> 2.117219613 | L85: =SUMIFS('Outputs to aggregator'!X$30:X$46, 'Outputs to aggregator'!$O$30:$O$46, $A85) -> 2.382762892 | M85: =SUMIFS('Outputs to aggregator'!Y$30:Y$46, 'Outputs to aggregator'!$O$30:$O$46, $A85) -> 1.733381112
A86: YKY | B86: =CONCATENATE("C_", $C$2, "_ENH_W_AP") -> C_PR24CA35_ENH_W_AP | C86: =$C$6 -> Total enhancement allowance - Water - WFD - Accelerated programme | D86: £m | E86: Price Review 2024 | G86: =SUMIFS('Outputs to aggregator'!$R$30:$R$46, 'Outputs to aggregator'!$O$30:$O$46, $A86) -> 0 | H86: =SUMIFS('Outputs to aggregator'!$T$30:$T$46, 'Outputs to aggregator'!$O$30:$O$46, $A86) -> 0
A87: YKY | B87: =CONCATENATE("C_", $C$2, "_ENH_W_TE") -> C_PR24CA35_ENH_W_TE | C87: =$C$7 -> Total enhancement allowance - Water - WFD - Transition allowance | D87: £m | E87: Price Review 2024 | G87: =SUMIFS('Outputs to aggregator'!$Q$30:$Q$46, 'Outputs to aggregator'!$O$30:$O$46, $A87) -> 0 | H87: =SUMIFS('Outputs to aggregator'!$S$30:$S$46, 'Outputs to aggregator'!$O$30:$O$46, $A87) -> 0
A88: YKY | B88: =CONCATENATE("PR24QA_", $C$2, "_OUT1") -> PR24QA_PR24CA35_OUT1 | C88: =CONCATENATE("Date & Time for Model - ", $C$2) -> Date & Time for Model - PR24CA35 | D88: Text | E88: Price Review 2024 | F88: =CONCATENATE("[…]", TEXT(NOW(),"dd/mm/yyy hh:mm:ss")) -> […]16/12/2024 16:16:39 | G88: […]16/12/2024 16:16:39 | H88: […]16/12/2024 16:16:39 | I88: […]16/12/2024 16:16:39 | J88: […]16/12/2024 16:16:39 | K88: […]16/12/2024 16:16:39 | L88: […]16/12/2024 16:16:39 | M88: […]16/12/2024 16:16:39
A89: YKY | B89: =CONCATENATE("PR24QA_", $C$2, "_OUT2") -> PR24QA_PR24CA35_OUT2 | C89: =CONCATENATE("Name of Model - ", $C$2) -> Name of Model - PR24CA35 | D89: Text | E89: Price Review 2024 | F89: =MID(CELL("filename"),SEARCH("[",CELL("filename"))+1,SEARCH("]",CELL("filename"))-SEARCH("[",CELL("filename"))-1) -> 
A90: YKY | B90: =CONCATENATE("PR24QA_", $C$2, "_OUT3") -> PR24QA_PR24CA35_OUT3 | C90: =CONCATENATE("F_Inputs time stamp - ", $C$2) -> F_Inputs time stamp - PR24CA35 | D90: Text | E90: Price Review 2024 | F90: ='F_Inputs BP'!$E$2 -> Run on 03 Sep 2024 17:26 | G90: ='F_Inputs BP'!$E$2 -> Run on 03 Sep 2024 17:26 | H90: ='F_Inputs BP'!$E$2 -> Run on 03 Sep 2024 17:26 | I90: ='F_Inputs BP'!$E$2 -> Run on 03 Sep 2024 17:26 | J90: ='F_Inputs BP'!$E$2 -> Run on 03 Sep 2024 17:26 | K90: ='F_Inputs BP'!$E$2 -> Run on 03 Sep 2024 17:26 | L90: ='F_Inputs BP'!$E$2 -> Run on 03 Sep 2024 17:26 | M90: ='F_Inputs BP'!$E$2 -> Run on 03 Sep 2024 17:26
A91: YKY | B91: =CONCATENATE("PR24QA_", $C$2, "_OUT4") -> PR24QA_PR24CA35_OUT4 | C91: =CONCATENATE("Model override switch for - ", $C$2) -> Model override switch for - PR24CA35 | D91: nr | E91: Price Review 2024 | F91: =IF(SUM('Consolidated Input Override'!$E$5:$K$125)>0,1,0) -> 1 | G91: =IF(SUM('Consolidated Input Override'!$E$5:$K$125)>0,1,0) -> 1 | H91: =IF(SUM('Consolidated Input Override'!$E$5:$K$125)>0,1,0) -> 1 | I91: =IF(SUM('Consolidated Input Override'!$E$5:$K$125)>0,1,0) -> 1 | J91: =IF(SUM('Consolidated Input Override'!$E$5:$K$125)>0,1,0) -> 1 | K91: =IF(SUM('Consolidated Input Override'!$E$5:$K$125)>0,1,0) -> 1 | L91: =IF(SUM('Consolidated Input Override'!$E$5:$K$125)>0,1,0) -> 1 | M91: =IF(SUM('Consolidated Input Override'!$E$5:$K$125)>0,1,0) -> 1
A92: YKY | B92: =CONCATENATE("C_", $C$2, "_ENH_W_ASSESSED") -> C_PR24CA35_ENH_W_ASSESSED | C92: =CONCATENATE("Total amount assessed - ", MID($C$5,31,200)) -> Total amount assessed - Water - WFD - Totex | D92: £m | E92: Price Review 2024 | F92: =SUMIFS(Allowance!$E$10:$E$26, Allowance!$B$10:$B$26, A92) -> 8.3253088
A93: AFW | B93: =CONCATENATE("C_", $C$2, "_ENH_W_TOT") -> C_PR24CA35_ENH_W_TOT | C93: =$C$5 -> Total enhancement allowance - Water - WFD - Totex | D93: £m | E93: Price Review 2024 | I93: =SUMIFS('Outputs to aggregator'!U$30:U$46, 'Outputs to aggregator'!$O$30:$O$46, $A93) -> 18.27937499 | J93: =SUMIFS('Outputs to aggregator'!V$30:V$46, 'Outputs to aggregator'!$O$30:$O$46, $A93) -> 26.83723198 | K93: =SUMIFS('Outputs to aggregator'!W$30:W$46, 'Outputs to aggregator'!$O$30:$O$46, $A93) -> 33.81823704 | L93: =SUMIFS('Outputs to aggregator'!X$30:X$46, 'Outputs to aggregator'!$O$30:$O$46, $A93) -> 27.78949296 | M93: =SUMIFS('Outputs to aggregator'!Y$30:Y$46, 'Outputs to aggregator'!$O$30:$O$46, $A93) -> 27.53293021
A94: AFW | B94: =CONCATENATE("C_", $C$2, "_ENH_W_AP") -> C_PR24CA35_ENH_W_AP | C94: =$C$6 -> Total enhancement allowance - Water - WFD - Accelerated programme | D94: £m | E94: Price Review 2024 | G94: =SUMIFS('Outputs to aggregator'!$R$30:$R$46, 'Outputs to aggregator'!$O$30:$O$46, $A94) -> 0 | H94: =SUMIFS('Outputs to aggregator'!$T$30:$T$46, 'Outputs to aggregator'!$O$30:$O$46, $A94) -> 0
A95: AFW | B95: =CONCATENATE("C_", $C$2, "_ENH_W_TE") -> C_PR24CA35_ENH_W_TE | C95: =$C$7 -> Total enhancement allowance - Water - WFD - Transition allowance | D95: £m | E95: Price Review 2024 | G95: =SUMIFS('Outputs to aggregator'!$Q$30:$Q$46, 'Outputs to aggregator'!$O$30:$O$46, $A95) -> 0.2152436523 | H95: =SUMIFS('Outputs to aggregator'!$S$30:$S$46, 'Outputs to aggregator'!$O$30:$O$46, $A95) -> 1.003189165
A96: AFW | B96: =CONCATENATE("PR24QA_", $C$2, "_OUT1") -> PR24QA_PR24CA35_OUT1 | C96: =CONCATENATE("Date & Time for Model - ", $C$2) -> Date & Time for Model - PR24CA35 | D96: Text | E96: Price Review 2024 | F96: =CONCATENATE("[…]", TEXT(NOW(),"dd/mm/yyy hh:mm:ss")) -> […]16/12/2024 16:16:39 | G96: […]16/12/2024 16:16:39 | H96: […]16/12/2024 16:16:39 | I96: […]16/12/2024 16:16:39 | J96: […]16/12/2024 16:16:39 | K96: […]16/12/2024 16:16:39 | L96: […]16/12/2024 16:16:39 | M96: […]16/12/2024 16:16:39
A97: AFW | B97: =CONCATENATE("PR24QA_", $C$2, "_OUT2") -> PR24QA_PR24CA35_OUT2 | C97: =CONCATENATE("Name of Model - ", $C$2) -> Name of Model - PR24CA35 | D97: Text | E97: Price Review 2024 | F97: =MID(CELL("filename"),SEARCH("[",CELL("filename"))+1,SEARCH("]",CELL("filename"))-SEARCH("[",CELL("filename"))-1) -> 
A98: AFW | B98: =CONCATENATE("PR24QA_", $C$2, "_OUT3") -> PR24QA_PR24CA35_OUT3 | C98: =CONCATENATE("F_Inputs time stamp - ", $C$2) -> F_Inputs time stamp - PR24CA35 | D98: Text | E98: Price Review 2024 | F98: ='F_Inputs BP'!$E$2 -> Run on 03 Sep 2024 17:26 | G98: ='F_Inputs BP'!$E$2 -> Run on 03 Sep 2024 17:26 | H98: ='F_Inputs BP'!$E$2 -> Run on 03 Sep 2024 17:26 | I98: ='F_Inputs BP'!$E$2 -> Run on 03 Sep 2024 17:26 | J98: ='F_Inputs BP'!$E$2 -> Run on 03 Sep 2024 17:26 | K98: ='F_Inputs BP'!$E$2 -> Run on 03 Sep 2024 17:26 | L98: ='F_Inputs BP'!$E$2 -> Run on 03 Sep 2024 17:26 | M98: ='F_Inputs BP'!$E$2 -> Run on 03 Sep 2024 17:26
A99: AFW | B99: =CONCATENATE("PR24QA_", $C$2, "_OUT4") -> PR24QA_PR24CA35_OUT4 | C99: =CONCATENATE("Model override switch for - ", $C$2) -> Model override switch for - PR24CA35 | D99: nr | E99: Price Review 2024 | F99: =IF(SUM('Consolidated Input Override'!$E$5:$K$125)>0,1,0) -> 1 | G99: =IF(SUM('Consolidated Input Override'!$E$5:$K$125)>0,1,0) -> 1 | H99: =IF(SUM('Consolidated Input Override'!$E$5:$K$125)>0,1,0) -> 1 | I99: =IF(SUM('Consolidated Input Override'!$E$5:$K$125)>0,1,0) -> 1 | J99: =IF(SUM('Consolidated Input Override'!$E$5:$K$125)>0,1,0) -> 1 | K99: =IF(SUM('Consolidated Input Override'!$E$5:$K$125)>0,1,0) -> 1 | L99: =IF(SUM('Consolidated Input Override'!$E$5:$K$125)>0,1,0) -> 1 | M99: =IF(SUM('Consolidated Input Override'!$E$5:$K$125)>0,1,0) -> 1
A100: AFW | B100: =CONCATENATE("C_", $C$2, "_ENH_W_ASSESSED") -> C_PR24CA35_ENH_W_ASSESSED | C100: =CONCATENATE("Total amount assessed - ", MID($C$5,31,200)) -> Total amount assessed - Water - WFD - Totex | D100: £m | E100: Price Review 2024 | F100: =SUMIFS(Allowance!$E$10:$E$26, Allowance!$B$10:$B$26, A100) -> 140.987
A101: BRL | B101: =CONCATENATE("C_", $C$2, "_ENH_W_TOT") -> C_PR24CA35_ENH_W_TOT | C101: =$C$5 -> Total enhancement allowance - Water - WFD - Totex | D101: £m | E101: Price Review 2024 | I101: =SUMIFS('Outputs to aggregator'!U$30:U$46, 'Outputs to aggregator'!$O$30:$O$46, $A101) -> 0.4954362268 | J101: =SUMIFS('Outputs to aggregator'!V$30:V$46, 'Outputs to aggregator'!$O$30:$O$46, $A101) -> 0.4954362268 | K101: =SUMIFS('Outputs to aggregator'!W$30:W$46, 'Outputs to aggregator'!$O$30:$O$46, $A101) -> 0.49543452 | L101: =SUMIFS('Outputs to aggregator'!X$30:X$46, 'Outputs to aggregator'!$O$30:$O$46, $A101) -> 0.49543452 | M101: =SUMIFS('Outputs to aggregator'!Y$30:Y$46, 'Outputs to aggregator'!$O$30:$O$46, $A101) -> 0.49543452
A102: BRL | B102: =CONCATENATE("C_", $C$2, "_ENH_W_AP") -> C_PR24CA35_ENH_W_AP | C102: =$C$6 -> Total enhancement allowance - Water - WFD - Accelerated programme | D102: £m | E102: Price Review 2024 | G102: =SUMIFS('Outputs to aggregator'!$R$30:$R$46, 'Outputs to aggregator'!$O$30:$O$46, $A102) -> 0 | H102: =SUMIFS('Outputs to aggregator'!$T$30:$T$46, 'Outputs to aggregator'!$O$30:$O$46, $A102) -> 0
A103: BRL | B103: =CONCATENATE("C_", $C$2, "_ENH_W_TE") -> C_PR24CA35_ENH_W_TE | C103: =$C$7 -> Total enhancement allowance - Water - WFD - Transition allowance | D103: £m | E103: Price Review 2024 | G103: =SUMIFS('Outputs to aggregator'!$Q$30:$Q$46, 'Outputs to aggregator'!$O$30:$O$46, $A103) -> 0 | H103: =SUMIFS('Outputs to aggregator'!$S$30:$S$46, 'Outputs to aggregator'!$O$30:$O$46, $A103) -> 0
A104: BRL | B104: =CONCATENATE("PR24QA_", $C$2, "_OUT1") -> PR24QA_PR24CA35_OUT1 | C104: =CONCATENATE("Date & Time for Model - ", $C$2) -> Date & Time for Model - PR24CA35 | D104: Text | E104: Price Review 2024 | F104: =CONCATENATE("[…]", TEXT(NOW(),"dd/mm/yyy hh:mm:ss")) -> […]16/12/2024 16:16:39 | G104: […]16/12/2024 16:16:39 | H104: […]16/12/2024 16:16:39 | I104: […]16/12/2024 16:16:39 | J104: […]16/12/2024 16:16:39 | K104: […]16/12/2024 16:16:39 | L104: […]16/12/2024 16:16:39 | M104: […]16/12/2024 16:16:39
A105: BRL | B105: =CONCATENATE("PR24QA_", $C$2, "_OUT2") -> PR24QA_PR24CA35_OUT2 | C105: =CONCATENATE("Name of Model - ", $C$2) -> Name of Model - PR24CA35 | D105: Text | E105: Price Review 2024 | F105: =MID(CELL("filename"),SEARCH("[",CELL("filename"))+1,SEARCH("]",CELL("filename"))-SEARCH("[",CELL("filename"))-1) -> 
A106: BRL | B106: =CONCATENATE("PR24QA_", $C$2, "_OUT3") -> PR24QA_PR24CA35_OUT3 | C106: =CONCATENATE("F_Inputs time stamp - ", $C$2) -> F_Inputs time stamp - PR24CA35 | D106: Text | E106: Price Review 2024 | F106: ='F_Inputs BP'!$E$2 -> Run on 03 Sep 2024 17:26 | G106: ='F_Inputs BP'!$E$2 -> Run on 03 Sep 2024 17:26 | H106: ='F_Inputs BP'!$E$2 -> Run on 03 Sep 2024 17:26 | I106: ='F_Inputs BP'!$E$2 -> Run on 03 Sep 2024 17:26 | J106: ='F_Inputs BP'!$E$2 -> Run on 03 Sep 2024 17:26 | K106: ='F_Inputs BP'!$E$2 -> Run on 03 Sep 2024 17:26 | L106: ='F_Inputs BP'!$E$2 -> Run on 03 Sep 2024 17:26 | M106: ='F_Inputs BP'!$E$2 -> Run on 03 Sep 2024 17:26
A107: BRL | B107: =CONCATENATE("PR24QA_", $C$2, "_OUT4") -> PR24QA_PR24CA35_OUT4 | C107: =CONCATENATE("Model override switch for - ", $C$2) -> Model override switch for - PR24CA35 | D107: nr | E107: Price Review 2024 | F107: =IF(SUM('Consolidated Input Override'!$E$5:$K$125)>0,1,0) -> 1 | G107: =IF(SUM('Consolidated Input Override'!$E$5:$K$125)>0,1,0) -> 1 | H107: =IF(SUM('Consolidated Input Override'!$E$5:$K$125)>0,1,0) -> 1 | I107: =IF(SUM('Consolidated Input Override'!$E$5:$K$125)>0,1,0) -> 1 | J107: =IF(SUM('Consolidated Input Override'!$E$5:$K$125)>0,1,0) -> 1 | K107: =IF(SUM('Consolidated Input Override'!$E$5:$K$125)>0,1,0) -> 1 | L107: =IF(SUM('Consolidated Input Override'!$E$5:$K$125)>0,1,0) -> 1 | M107: =IF(SUM('Consolidated Input Override'!$E$5:$K$125)>0,1,0) -> 1
A108: BRL | B108: =CONCATENATE("C_", $C$2, "_ENH_W_ASSESSED") -> C_PR24CA35_ENH_W_ASSESSED | C108: =CONCATENATE("Total amount assessed - ", MID($C$5,31,200)) -> Total amount assessed - Water - WFD - Totex | D108: £m | E108: Price Review 2024 | F108: =SUMIFS(Allowance!$E$10:$E$26, Allowance!$B$10:$B$26, A108) -> 2.635293632
A109: PRT | B109: =CONCATENATE("C_", $C$2, "_ENH_W_TOT") -> C_PR24CA35_ENH_W_TOT | C109: =$C$5 -> Total enhancement allowance - Water - WFD - Totex | D109: £m | E109: Price Review 2024 | I109: =SUMIFS('Outputs to aggregator'!U$30:U$46, 'Outputs to aggregator'!$O$30:$O$46, $A109) -> 0 | J109: =SUMIFS('Outputs to aggregator'!V$30:V$46, 'Outputs to aggregator'!$O$30:$O$46, $A109) -> 0 | K109: =SUMIFS('Outputs to aggregator'!W$30:W$46, 'Outputs to aggregator'!$O$30:$O$46, $A109) -> 0 | L109: =SUMIFS('Outputs to aggregator'!X$30:X$46, 'Outputs to aggregator'!$O$30:$O$46, $A109) -> 0 | M109: =SUMIFS('Outputs to aggregator'!Y$30:Y$46, 'Outputs to aggregator'!$O$30:$O$46, $A109) -> 0.0422685
A110: PRT | B110: =CONCATENATE("C_", $C$2, "_ENH_W_AP") -> C_PR24CA35_ENH_W_AP | C110: =$C$6 -> Total enhancement allowance - Water - WFD - Accelerated programme | D110: £m | E110: Price Review 2024 | G110: =SUMIFS('Outputs to aggregator'!$R$30:$R$46, 'Outputs to aggregator'!$O$30:$O$46, $A110) -> 0 | H110: =SUMIFS('Outputs to aggregator'!$T$30:$T$46, 'Outputs to aggregator'!$O$30:$O$46, $A110) -> 0
A111: PRT | B111: =CONCATENATE("C_", $C$2, "_ENH_W_TE") -> C_PR24CA35_ENH_W_TE | C111: =$C$7 -> Total enhancement allowance - Water - WFD - Transition allowance | D111: £m | E111: Price Review 2024 | G111: =SUMIFS('Outputs to aggregator'!$Q$30:$Q$46, 'Outputs to aggregator'!$O$30:$O$46, $A111) -> 0 | H111: =SUMIFS('Outputs to aggregator'!$S$30:$S$46, 'Outputs to aggregator'!$O$30:$O$46, $A111) -> 0
A112: PRT | B112: =CONCATENATE("PR24QA_", $C$2, "_OUT1") -> PR24QA_PR24CA35_OUT1 | C112: =CONCATENATE("Date & Time for Model - ", $C$2) -> Date & Time for Model - PR24CA35 | D112: Text | E112: Price Review 2024 | F112: =CONCATENATE("[…]", TEXT(NOW(),"dd/mm/yyy hh:mm:ss")) -> […]16/12/2024 16:16:39 | G112: […]16/12/2024 16:16:39 | H112: […]16/12/2024 16:16:39 | I112: […]16/12/2024 16:16:39 | J112: […]16/12/2024 16:16:39 | K112: […]16/12/2024 16:16:39 | L112: […]16/12/2024 16:16:39 | M112: […]16/12/2024 16:16:39
A113: PRT | B113: =CONCATENATE("PR24QA_", $C$2, "_OUT2") -> PR24QA_PR24CA35_OUT2 | C113: =CONCATENATE("Name of Model - ", $C$2) -> Name of Model - PR24CA35 | D113: Text | E113: Price Review 2024 | F113: =MID(CELL("filename"),SEARCH("[",CELL("filename"))+1,SEARCH("]",CELL("filename"))-SEARCH("[",CELL("filename"))-1) -> 
A114: PRT | B114: =CONCATENATE("PR24QA_", $C$2, "_OUT3") -> PR24QA_PR24CA35_OUT3 | C114: =CONCATENATE("F_Inputs time stamp - ", $C$2) -> F_Inputs time stamp - PR24CA35 | D114: Text | E114: Price Review 2024 | F114: ='F_Inputs BP'!$E$2 -> Run on 03 Sep 2024 17:26 | G114: ='F_Inputs BP'!$E$2 -> Run on 03 Sep 2024 17:26 | H114: ='F_Inputs BP'!$E$2 -> Run on 03 Sep 2024 17:26 | I114: ='F_Inputs BP'!$E$2 -> Run on 03 Sep 2024 17:26 | J114: ='F_Inputs BP'!$E$2 -> Run on 03 Sep 2024 17:26 | K114: ='F_Inputs BP'!$E$2 -> Run on 03 Sep 2024 17:26 | L114: ='F_Inputs BP'!$E$2 -> Run on 03 Sep 2024 17:26 | M114: ='F_Inputs BP'!$E$2 -> Run on 03 Sep 2024 17:26
A115: PRT | B115: =CONCATENATE("PR24QA_", $C$2, "_OUT4") -> PR24QA_PR24CA35_OUT4 | C115: =CONCATENATE("Model override switch for - ", $C$2) -> Model override switch for - PR24CA35 | D115: nr | E115: Price Review 2024 | F115: =IF(SUM('Consolidated Input Override'!$E$5:$K$125)>0,1,0) -> 1 | G115: =IF(SUM('Consolidated Input Override'!$E$5:$K$125)>0,1,0) -> 1 | H115: =IF(SUM('Consolidated Input Override'!$E$5:$K$125)>0,1,0) -> 1 | I115: =IF(SUM('Consolidated Input Override'!$E$5:$K$125)>0,1,0) -> 1 | J115: =IF(SUM('Consolidated Input Override'!$E$5:$K$125)>0,1,0) -> 1 | K115: =IF(SUM('Consolidated Input Override'!$E$5:$K$125)>0,1,0) -> 1 | L115: =IF(SUM('Consolidated Input Override'!$E$5:$K$125)>0,1,0) -> 1 | M115: =IF(SUM('Consolidated Input Override'!$E$5:$K$125)>0,1,0) -> 1
A116: PRT | B116: =CONCATENATE("C_", $C$2, "_ENH_W_ASSESSED") -> C_PR24CA35_ENH_W_ASSESSED | C116: =CONCATENATE("Total amount assessed - ", MID($C$5,31,200)) -> Total amount assessed - Water - WFD - Totex | D116: £m | E116: Price Review 2024 | F116: =SUMIFS(Allowance!$E$10:$E$26, Allowance!$B$10:$B$26, A116) -> 0.04545
A117: SEW | B117: =CONCATENATE("C_", $C$2, "_ENH_W_TOT") -> C_PR24CA35_ENH_W_TOT | C117: =$C$5 -> Total enhancement allowance - Water - WFD - Totex | D117: £m | E117: Price Review 2024 | I117: =SUMIFS('Outputs to aggregator'!U$30:U$46, 'Outputs to aggregator'!$O$30:$O$46, $A117) -> 1.107921585 | J117: =SUMIFS('Outputs to aggregator'!V$30:V$46, 'Outputs to aggregator'!$O$30:$O$46, $A117) -> 1.518628111 | K117: =SUMIFS('Outputs to aggregator'!W$30:W$46, 'Outputs to aggregator'!$O$30:$O$46, $A117) -> 2.583155496 | L117: =SUMIFS('Outputs to aggregator'!X$30:X$46, 'Outputs to aggregator'!$O$30:$O$46, $A117) -> 1.33240464 | M117: =SUMIFS('Outputs to aggregator'!Y$30:Y$46, 'Outputs to aggregator'!$O$30:$O$46, $A117) -> 0.8366054045
A118: SEW | B118: =CONCATENATE("C_", $C$2, "_ENH_W_AP") -> C_PR24CA35_ENH_W_AP | C118: =$C$6 -> Total enhancement allowance - Water - WFD - Accelerated programme | D118: £m | E118: Price Review 2024 | G118: =SUMIFS('Outputs to aggregator'!$R$30:$R$46, 'Outputs to aggregator'!$O$30:$O$46, $A118) -> 0 | H118: =SUMIFS('Outputs to aggregator'!$T$30:$T$46, 'Outputs to aggregator'!$O$30:$O$46, $A118) -> 0
A119: SEW | B119: =CONCATENATE("C_", $C$2, "_ENH_W_TE") -> C_PR24CA35_ENH_W_TE | C119: =$C$7 -> Total enhancement allowance - Water - WFD - Transition allowance | D119: £m | E119: Price Review 2024 | G119: =SUMIFS('Outputs to aggregator'!$Q$30:$Q$46, 'Outputs to aggregator'!$O$30:$O$46, $A119) -> 0 | H119: =SUMIFS('Outputs to aggregator'!$S$30:$S$46, 'Outputs to aggregator'!$O$30:$O$46, $A119) -> 0
A120: SEW | B120: =CONCATENATE("PR24QA_", $C$2, "_OUT1") -> PR24QA_PR24CA35_OUT1 | C120: =CONCATENATE("Date & Time for Model - ", $C$2) -> Date & Time for Model - PR24CA35 | D120: Text | E120: Price Review 2024 | F120: =CONCATENATE("[…]", TEXT(NOW(),"dd/mm/yyy hh:mm:ss")) -> […]16/12/2024 16:16:39 | G120: […]16/12/2024 16:16:39 | H120: […]16/12/2024 16:16:39 | I120: […]16/12/2024 16:16:39 | J120: […]16/12/2024 16:16:39 | K120: […]16/12/2024 16:16:39 | L120: […]16/12/2024 16:16:39 | M120: […]16/12/2024 16:16:39
A121: SEW | B121: =CONCATENATE("PR24QA_", $C$2, "_OUT2") -> PR24QA_PR24CA35_OUT2 | C121: =CONCATENATE("Name of Model - ", $C$2) -> Name of Model - PR24CA35 | D121: Text | E121: Price Review 2024 | F121: =MID(CELL("filename"),SEARCH("[",CELL("filename"))+1,SEARCH("]",CELL("filename"))-SEARCH("[",CELL("filename"))-1) -> 
A122: SEW | B122: =CONCATENATE("PR24QA_", $C$2, "_OUT3") -> PR24QA_PR24CA35_OUT3 | C122: =CONCATENATE("F_Inputs time stamp - ", $C$2) -> F_Inputs time stamp - PR24CA35 | D122: Text | E122: Price Review 2024 | F122: ='F_Inputs BP'!$E$2 -> Run on 03 Sep 2024 17:26 | G122: ='F_Inputs BP'!$E$2 -> Run on 03 Sep 2024 17:26 | H122: ='F_Inputs BP'!$E$2 -> Run on 03 Sep 2024 17:26 | I122: ='F_Inputs BP'!$E$2 -> Run on 03 Sep 2024 17:26 | J122: ='F_Inputs BP'!$E$2 -> Run on 03 Sep 2024 17:26 | K122: ='F_Inputs BP'!$E$2 -> Run on 03 Sep 2024 17:26 | L122: ='F_Inputs BP'!$E$2 -> Run on 03 Sep 2024 17:26 | M122: ='F_Inputs BP'!$E$2 -> Run on 03 Sep 2024 17:26
A123: SEW | B123: =CONCATENATE("PR24QA_", $C$2, "_OUT4") -> PR24QA_PR24CA35_OUT4 | C123: =CONCATENATE("Model override switch for - ", $C$2) -> Model override switch for - PR24CA35 | D123: nr | E123: Price Review 2024 | F123: =IF(SUM('Consolidated Input Override'!$E$5:$K$125)>0,1,0) -> 1 | G123: =IF(SUM('Consolidated Input Override'!$E$5:$K$125)>0,1,0) -> 1 | H123: =IF(SUM('Consolidated Input Override'!$E$5:$K$125)>0,1,0) -> 1 | I123: =IF(SUM('Consolidated Input Override'!$E$5:$K$125)>0,1,0) -> 1 | J123: =IF(SUM('Consolidated Input Override'!$E$5:$K$125)>0,1,0) -> 1 | K123: =IF(SUM('Consolidated Input Override'!$E$5:$K$125)>0,1,0) -> 1 | L123: =IF(SUM('Consolidated Input Override'!$E$5:$K$125)>0,1,0) -> 1 | M123: =IF(SUM('Consolidated Input Override'!$E$5:$K$125)>0,1,0) -> 1
A124: SEW | B124: =CONCATENATE("C_", $C$2, "_ENH_W_ASSESSED") -> C_PR24CA35_ENH_W_ASSESSED | C124: =CONCATENATE("Total amount assessed - ", MID($C$5,31,200)) -> Total amount assessed - Water - WFD - Totex | D124: £m | E124: Price Review 2024 | F124: =SUMIFS(Allowance!$E$10:$E$26, Allowance!$B$10:$B$26, A124) -> 8.101715236
A125: SSC | B125: =CONCATENATE("C_", $C$2, "_ENH_W_TOT") -> C_PR24CA35_ENH_W_TOT | C125: =$C$5 -> Total enhancement allowance - Water - WFD - Totex | D125: £m | E125: Price Review 2024 | I125: =SUMIFS('Outputs to aggregator'!U$30:U$46, 'Outputs to aggregator'!$O$30:$O$46, $A125) -> 0.0375152384 | J125: =SUMIFS('Outputs to aggregator'!V$30:V$46, 'Outputs to aggregator'!$O$30:$O$46, $A125) -> 0.19192771 | K125: =SUMIFS('Outputs to aggregator'!W$30:W$46, 'Outputs to aggregator'!$O$30:$O$46, $A125) -> 0.6294580174 | L125: =SUMIFS('Outputs to aggregator'!X$30:X$46, 'Outputs to aggregator'!$O$30:$O$46, $A125) -> 0 | M125: =SUMIFS('Outputs to aggregator'!Y$30:Y$46, 'Outputs to aggregator'!$O$30:$O$46, $A125) -> 0
A126: SSC | B126: =CONCATENATE("C_", $C$2, "_ENH_W_AP") -> C_PR24CA35_ENH_W_AP | C126: =$C$6 -> Total enhancement allowance - Water - WFD - Accelerated programme | D126: £m | E126: Price Review 2024 | G126: =SUMIFS('Outputs to aggregator'!$R$30:$R$46, 'Outputs to aggregator'!$O$30:$O$46, $A126) -> 0 | H126: =SUMIFS('Outputs to aggregator'!$T$30:$T$46, 'Outputs to aggregator'!$O$30:$O$46, $A126) -> 0
A127: SSC | B127: =CONCATENATE("C_", $C$2, "_ENH_W_TE") -> C_PR24CA35_ENH_W_TE | C127: =$C$7 -> Total enhancement allowance - Water - WFD - Transition allowance | D127: £m | E127: Price Review 2024 | G127: =SUMIFS('Outputs to aggregator'!$Q$30:$Q$46, 'Outputs to aggregator'!$O$30:$O$46, $A127) -> 0 | H127: =SUMIFS('Outputs to aggregator'!$S$30:$S$46, 'Outputs to aggregator'!$O$30:$O$46, $A127) -> 0
A128: SSC | B128: =CONCATENATE("PR24QA_", $C$2, "_OUT1") -> PR24QA_PR24CA35_OUT1 | C128: =CONCATENATE("Date & Time for Model - ", $C$2) -> Date & Time for Model - PR24CA35 | D128: Text | E128: Price Review 2024 | F128: =CONCATENATE("[…]", TEXT(NOW(),"dd/mm/yyy hh:mm:ss")) -> […]16/12/2024 16:16:39 | G128: […]16/12/2024 16:16:39 | H128: […]16/12/2024 16:16:39 | I128: […]16/12/2024 16:16:39 | J128: […]16/12/2024 16:16:39 | K128: […]16/12/2024 16:16:39 | L128: […]16/12/2024 16:16:39 | M128: […]16/12/2024 16:16:39
A129: SSC | B129: =CONCATENATE("PR24QA_", $C$2, "_OUT2") -> PR24QA_PR24CA35_OUT2 | C129: =CONCATENATE("Name of Model - ", $C$2) -> Name of Model - PR24CA35 | D129: Text | E129: Price Review 2024 | F129: =MID(CELL("filename"),SEARCH("[",CELL("filename"))+1,SEARCH("]",CELL("filename"))-SEARCH("[",CELL("filename"))-1) -> 
A130: SSC | B130: =CONCATENATE("PR24QA_", $C$2, "_OUT3") -> PR24QA_PR24CA35_OUT3 | C130: =CONCATENATE("F_Inputs time stamp - ", $C$2) -> F_Inputs time stamp - PR24CA35 | D130: Text | E130: Price Review 2024 | F130: ='F_Inputs BP'!$E$2 -> Run on 03 Sep 2024 17:26 | G130: ='F_Inputs BP'!$E$2 -> Run on 03 Sep 2024 17:26 | H130: ='F_Inputs BP'!$E$2 -> Run on 03 Sep 2024 17:26 | I130: ='F_Inputs BP'!$E$2 -> Run on 03 Sep 2024 17:26 | J130: ='F_Inputs BP'!$E$2 -> Run on 03 Sep 2024 17:26 | K130: ='F_Inputs BP'!$E$2 -> Run on 03 Sep 2024 17:26 | L130: ='F_Inputs BP'!$E$2 -> Run on 03 Sep 2024 17:26 | M130: ='F_Inputs BP'!$E$2 -> Run on 03 Sep 2024 17:26
A131: SSC | B131: =CONCATENATE("PR24QA_", $C$2, "_OUT4") -> PR24QA_PR24CA35_OUT4 | C131: =CONCATENATE("Model override switch for - ", $C$2) -> Model override switch for - PR24CA35 | D131: nr | E131: Price Review 2024 | F131: =IF(SUM('Consolidated Input Override'!$E$5:$K$125)>0,1,0) -> 1 | G131: =IF(SUM('Consolidated Input Override'!$E$5:$K$125)>0,1,0) -> 1 | H131: =IF(SUM('Consolidated Input Override'!$E$5:$K$125)>0,1,0) -> 1 | I131: =IF(SUM('Consolidated Input Override'!$E$5:$K$125)>0,1,0) -> 1 | J131: =IF(SUM('Consolidated Input Override'!$E$5:$K$125)>0,1,0) -> 1 | K131: =IF(SUM('Consolidated Input Override'!$E$5:$K$125)>0,1,0) -> 1 | L131: =IF(SUM('Consolidated Input Override'!$E$5:$K$125)>0,1,0) -> 1 | M131: =IF(SUM('Consolidated Input Override'!$E$5:$K$125)>0,1,0) -> 1
A132: SSC | B132: =CONCATENATE("C_", $C$2, "_ENH_W_ASSESSED") -> C_PR24CA35_ENH_W_ASSESSED | C132: =CONCATENATE("Total amount assessed - ", MID($C$5,31,200)) -> Total amount assessed - Water - WFD - Totex | D132: £m | E132: Price Review 2024 | F132: =SUMIFS(Allowance!$E$10:$E$26, Allowance!$B$10:$B$26, A132) -> 0.8589009658
A133: SES | B133: =CONCATENATE("C_", $C$2, "_ENH_W_TOT") -> C_PR24CA35_ENH_W_TOT | C133: =$C$5 -> Total enhancement allowance - Water - WFD - Totex | D133: £m | E133: Price Review 2024 | I133: =SUMIFS('Outputs to aggregator'!U$30:U$46, 'Outputs to aggregator'!$O$30:$O$46, $A133) -> 0 | J133: =SUMIFS('Outputs to aggregator'!V$30:V$46, 'Outputs to aggregator'!$O$30:$O$46, $A133) -> 0 | K133: =SUMIFS('Outputs to aggregator'!W$30:W$46, 'Outputs to aggregator'!$O$30:$O$46, $A133) -> 0.0333 | L133: =SUMIFS('Outputs to aggregator'!X$30:X$46, 'Outputs to aggregator'!$O$30:$O$46, $A133) -> 0.072 | M133: =SUMIFS('Outputs to aggregator'!Y$30:Y$46, 'Outputs to aggregator'!$O$30:$O$46, $A133) -> 0.09
A134: SES | B134: =CONCATENATE("C_", $C$2, "_ENH_W_AP") -> C_PR24CA35_ENH_W_AP | C134: =$C$6 -> Total enhancement allowance - Water - WFD - Accelerated programme | D134: £m | E134: Price Review 2024 | G134: =SUMIFS('Outputs to aggregator'!$R$30:$R$46, 'Outputs to aggregator'!$O$30:$O$46, $A134) -> 0 | H134: =SUMIFS('Outputs to aggregator'!$T$30:$T$46, 'Outputs to aggregator'!$O$30:$O$46, $A134) -> 0
A135: SES | B135: =CONCATENATE("C_", $C$2, "_ENH_W_TE") -> C_PR24CA35_ENH_W_TE | C135: =$C$7 -> Total enhancement allowance - Water - WFD - Transition allowance | D135: £m | E135: Price Review 2024 | G135: =SUMIFS('Outputs to aggregator'!$Q$30:$Q$46, 'Outputs to aggregator'!$O$30:$O$46, $A135) -> 0 | H135: =SUMIFS('Outputs to aggregator'!$S$30:$S$46, 'Outputs to aggregator'!$O$30:$O$46, $A135) -> 0
A136: SES | B136: =CONCATENATE("PR24QA_", $C$2, "_OUT1") -> PR24QA_PR24CA35_OUT1 | C136: =CONCATENATE("Date & Time for Model - ", $C$2) -> Date & Time for Model - PR24CA35 | D136: Text | E136: Price Review 2024 | F136: =CONCATENATE("[…]", TEXT(NOW(),"dd/mm/yyy hh:mm:ss")) -> […]16/12/2024 16:16:39 | G136: […]16/12/2024 16:16:39 | H136: […]16/12/2024 16:16:39 | I136: […]16/12/2024 16:16:39 | J136: […]16/12/2024 16:16:39 | K136: […]16/12/2024 16:16:39 | L136: […]16/12/2024 16:16:39 | M136: […]16/12/2024 16:16:39
A137: SES | B137: =CONCATENATE("PR24QA_", $C$2, "_OUT2") -> PR24QA_PR24CA35_OUT2 | C137: =CONCATENATE("Name of Model - ", $C$2) -> Name of Model - PR24CA35 | D137: Text | E137: Price Review 2024 | F137: =MID(CELL("filename"),SEARCH("[",CELL("filename"))+1,SEARCH("]",CELL("filename"))-SEARCH("[",CELL("filename"))-1) -> 
A138: SES | B138: =CONCATENATE("PR24QA_", $C$2, "_OUT3") -> PR24QA_PR24CA35_OUT3 | C138: =CONCATENATE("F_Inputs time stamp - ", $C$2) -> F_Inputs time stamp - PR24CA35 | D138: Text | E138: Price Review 2024 | F138: ='F_Inputs BP'!$E$2 -> Run on 03 Sep 2024 17:26 | G138: ='F_Inputs BP'!$E$2 -> Run on 03 Sep 2024 17:26 | H138: ='F_Inputs BP'!$E$2 -> Run on 03 Sep 2024 17:26 | I138: ='F_Inputs BP'!$E$2 -> Run on 03 Sep 2024 17:26 | J138: ='F_Inputs BP'!$E$2 -> Run on 03 Sep 2024 17:26 | K138: ='F_Inputs BP'!$E$2 -> Run on 03 Sep 2024 17:26 | L138: ='F_Inputs BP'!$E$2 -> Run on 03 Sep 2024 17:26 | M138: ='F_Inputs BP'!$E$2 -> Run on 03 Sep 2024 17:26
A139: SES | B139: =CONCATENATE("PR24QA_", $C$2, "_OUT4") -> PR24QA_PR24CA35_OUT4 | C139: =CONCATENATE("Model override switch for - ", $C$2) -> Model override switch for - PR24CA35 | D139: nr | E139: Price Review 2024 | F139: =IF(SUM('Consolidated Input Override'!$E$5:$K$125)>0,1,0) -> 1 | G139: =IF(SUM('Consolidated Input Override'!$E$5:$K$125)>0,1,0) -> 1 | H139: =IF(SUM('Consolidated Input Override'!$E$5:$K$125)>0,1,0) -> 1 | I139: =IF(SUM('Consolidated Input Override'!$E$5:$K$125)>0,1,0) -> 1 | J139: =IF(SUM('Consolidated Input Override'!$E$5:$K$125)>0,1,0) -> 1 | K139: =IF(SUM('Consolidated Input Override'!$E$5:$K$125)>0,1,0) -> 1 | L139: =IF(SUM('Consolidated Input Override'!$E$5:$K$125)>0,1,0) -> 1 | M139: =IF(SUM('Consolidated Input Override'!$E$5:$K$125)>0,1,0) -> 1
A140: SES | B140: =CONCATENATE("C_", $C$2, "_ENH_W_ASSESSED") -> C_PR24CA35_ENH_W_ASSESSED | C140: =CONCATENATE("Total amount assessed - ", MID($C$5,31,200)) -> Total amount assessed - Water - WFD - Totex | D140: £m | E140: Price Review 2024 | F140: =SUMIFS(Allowance!$E$10:$E$26, Allowance!$B$10:$B$26, A140) -> 0.217

Sheet Post Adj & FS Allowances
A1: =RIGHT(CELL("filename", $A$1), LEN(CELL("filename", $A$1)) - SEARCH("]", CELL("filename", $A$1))) -> 
C2: PR24CA14 W post FS excl DM and Cont | E2: Run on 20 Nov 2024 13:33
A4: Company Acronym | B4: Item Code | C4: Item Description | D4: Item Unit | E4: Item Table Suite | F4: 2023-24 | G4: 2024-25 | H4: 2025-26 | I4: 2026-27 | J4: 2027-28 | K4: 2028-29 | L4: 2029-30 | M4: Total
A5: ANH | B5: PR24CA14_W_TOTAL_ENHANCEMENT_ALLOW_TOT | C5: PR24 final water enhancement totex allowance- total enhancement expenditure | D5: £m | E5: Price Review 2024 | F5: 3.001484091 | G5: 25.67351035 | H5: 301.2255215 | I5: 374.1648394 | J5: 474.5219644 | K5: 486.7580892 | L5: 447.6720324 | M5: =SUM(F5:L5) -> 2113.017441
A6: ANH | B6: PR24CA14_W_BIODIVERSITY_ALLOW_TOT | C6: PR24 final water enhancement totex allowance- WINEP/NEP - biodiversity and conservation expenditure | D6: £m | E6: Price Review 2024 | F6: 0 | G6: 1.20881586 | H6: 0.7292165433 | I6: 0.3962734781 | J6: 0.4645914043 | K6: 0.1074203492 | L6: 0.1066950033 | M6: =SUM(F6:L6) -> 3.013012638
A7: ANH | B7: PR24CA14_W_EELS_SCREENS_ALLOW_TOT | C7: PR24 final water enhancement totex allowance- WINEP/NEP - eels and fish screens expenditure | D7: £m | E7: Price Review 2024 | F7: 0 | G7: 0 | H7: 0 | I7: 0 | J7: 0 | K7: 0 | L7: 0 | M7: 0
A8: ANH | B8: PR24CA14_W_EELS_PASSES_ALLOW_TOT | C8: PR24 final water enhancement totex allowance- WINEP/NEP - eels and fish passes expenditure | D8: £m | E8: Price Review 2024 | F8: 0 | G8: 0 | H8: 0.09018236506 | I8: 0.2381497545 | J8: 0.2873761264 | K8: 0.1758651734 | L8: 0.08781093189 | M8: 0.8793843512
A9: ANH | B9: PR24CA14_W_INNS_ALLOW_TOT | C9: PR24 final water enhancement totex allowance- WINEP/NEP - invasive non-native species expenditure | D9: £m | E9: Price Review 2024 | F9: 0 | G9: 0 | H9: 0.04557603395 | I9: 0.1504103712 | J9: 0.4262745875 | K9: 0.1654083253 | L9: 0.04909858557 | M9: 0.8367679035
A10: ANH | B10: PR24CA14_W_DWPA_ALLOW_TOT | C10: PR24 final water enhancement totex allowance- WINEP/NEP - drinking water protected areas expenditure | D10: £m | E10: Price Review 2024 | F10: 0 | G10: 0 | H10: 2.272983481 | I10: 2.260012245 | J10: 2.245365468 | K10: 2.228259278 | L10: 2.40488649 | M10: 11.41150696
A11: ANH | B11: PR24CA14_W_WFD_ALLOW_TOT | C11: PR24 final water enhancement totex allowance- WINEP/NEP - water framework directive expenditure | D11: £m | E11: Price Review 2024 | F11: 0 | G11: 0.5881935634 | H11: 3.033190935 | I11: 4.935561672 | J11: 5.814088223 | K11: 5.125504632 | L11: 3.667941823 | M11: 23.16448085
A12: ANH | B12: PR24CA14_W_DISCHARGE_MONITOR_ALLOW_TOT | C12: PR24 final water enhancement totex allowance- WINEP/NEP - trade effluent discharge flow monitoring expenditure | D12: £m | E12: Price Review 2024 | F12: 0 | G12: 0 | H12: 0 | I12: 0 | J12: 0 | K12: 0 | L12: 0 | M12: 0
A13: ANH | B13: PR24CA14_W_25YR_EP_ALLOW_TOT | C13: PR24 final water enhancement totex allowance- WINEP/NEP - 25 year environment plan expenditure | D13: £m | E13: Price Review 2024 | F13: 0 | G13: 0 | H13: 0 | I13: 0 | J13: 0 | K13: 0 | L13: 0 | M13: 0
A14: ANH | B14: PR24CA14_W_INVESTIGATIONS_ALLOW_TOT | C14: PR24 final water enhancement totex allowance- WINEP/NEP - investigations expenditure | D14: £m | E14: Price Review 2024 | F14: 0.194 | G14: 0.9688830217 | H14: 7.123357977 | I14: 1.817163499 | J14: 0.729192484 | K14: 0.7236371724 | L14: 0.7187508799 | M14: 12.27498503
A15: ANH | B15: PR24CA14_W_WETLAND_ALLOW_TOT | C15: PR24 final water enhancement totex allowance- WINEP/NEP - wetland creation expenditure | D15: £m | E15: Price Review 2024 | F15: 0 | G15: 0 | H15: 0 | I15: 0 | J15: 0 | K15: 0 | L15: 0 | M15: 0
A16: ANH | B16: PR24CA14_W_SUPPLY_ALLOW_TOT | C16: PR24 final water enhancement totex allowance- Supply-demand balance - supply expenditure | D16: £m | E16: Price Review 2024 | F16: 1.055690615 | G16: 9.6095149 | H16: 17.26257872 | I16: 27.52083118 | J16: 38.42251236 | K16: 70.02840177 | L16: 59.6766948 | M16: 223.5762243
A17: ANH | B17: PR24CA14_W_SUPPLY_INTER_ALLOW_TOT | C17: PR24 final water enhancement totex allowance- Supply-demand balance - supply interconnectors expenditure | D17: £m | E17: Price Review 2024 | F17: 1.751793476 | G17: 7.193569414 | H17: 26.38643284 | I17: 57.4456357 | J17: 97.87381773 | K17: 147.0526361 | L17: 261.2476794 | M17: 598.9515646
A18: ANH | B18: PR24CA14_W_LEAKAGE_ALLOW_TOT | C18: PR24 final water enhancement totex allowance- Supply-demand balance - leakage expenditure | D18: £m | E18: Price Review 2024 | F18: 0 | G18: 0 | H18: 6.199542748 | I18: 7.018553607 | J18: 8.412692188 | K18: 9.683794031 | L18: 9.09034527 | M18: 40.40492784
A19: ANH | B19: PR24CA14_W_DEMAND_ALLOW_TOT | C19: PR24 final water enhancement totex allowance- Supply-demand balance - demand expenditure | D19: £m | E19: Price Review 2024 | F19: 0 | G19: 0 | H19: 6.188968388 | I19: 5.712561117 | J19: 3.285193157 | K19: 3.428444765 | L19: 3.604658294 | M19: 22.21982572
A20: ANH | B20: PR24CA14_W_SRO_ALLOW_TOT | C20: PR24 final water enhancement totex allowance- Supply-demand balance - strategic resource options expenditure | D20: £m | E20: Price Review 2024 | F20: 0 | G20: 0 | H20: 181.9646062 | I20: 182.6508708 | J20: 216.1758572 | K20: 159.802624 | L20: 53.04604048 | M20: 793.6399988
A21: ANH | B21: PR24CA14_W_METERING_ALLOW_TOT | C21: PR24 final water enhancement totex allowance- Metering - metering expenditure | D21: £m | E21: Price Review 2024 | F21: 0 | G21: 6.104533591 | H21: 22.79789893 | I21: 21.12654535 | J21: 20.7554805 | K21: 19.11070843 | L21: 15.39455654 | M21: 105.2897233
A22: ANH | B22: PR24CA14_W_TOC_ALLOW_TOT | C22: PR24 final water enhancement totex allowance- water quality improvements - taste, odour and colour expenditure | D22: £m | E22: Price Review 2024 | F22: 0 | G22: 0 | H22: 0.8960054335 | I22: 2.168416185 | J22: 0.3898736115 | K22: 0.1958282471 | L22: 0.05193119628 | M22: 3.702054674
A23: ANH | B23: PR24CA14_W_RWD_ALLOW_TOT | C23: PR24 final water enhancement totex allowance- water quality improvements - raw water deterioration expenditure | D23: £m | E23: Price Review 2024 | F23: 0 | G23: 0 | H23: 18.61674117 | I23: 43.18216146 | J23: 58.5664323 | K23: 54.96902776 | L23: 32.94194659 | M23: 208.2763093
A24: ANH | B24: PR24CA14_W_LEAD_ALLOW_TOT | C24: PR24 final water enhancement totex allowance- water quality improvements - lead expenditure | D24: £m | E24: Price Review 2024 | F24: 0 | G24: 0 | H24: 3.094582454 | I24: 3.082087099 | J24: 3.067243617 | K24: 3.050665249 | L24: 3.035123473 | M24: 15.32970189
A25: ANH | B25: PR24CA14_W_RESILIENCE_INTER_ALLOW_TOT | C25: PR24 final water enhancement totex allowance- resilience interconnectors expenditure | D25: £m | E25: Price Review 2024 | F25: 0 | G25: 0 | H25: 0.692659427 | I25: 1.859861984 | J25: 2.748406289 | K25: 1.354569564 | L25: 0.000866896237 | M25: 6.656364161
A26: ANH | B26: PR24CA14_W_RESILIENCE_ALLOW_TOT | C26: PR24 final water enhancement totex allowance- resilience expenditure | D26: £m | E26: Price Review 2024 | F26: 0 | G26: 0 | H26: 0.007914675184 | I26: 5.026648557 | J26: 3.992325382 | K26: 2.878567714 | L26: 0.3178952324 | M26: 12.22335156
A27: ANH | B27: PR24CA14_W_SEMD_ALLOW_TOT | C27: PR24 final water enhancement totex allowance- security SEMD expenditure | D27: £m | E27: Price Review 2024 | F27: 0 | G27: 0 | H27: 0.4620930928 | I27: 0.459456066 | J27: 0.4564784049 | K27: 0.45300075 | L27: 1.172546677 | M27: 3.00357499
A28: ANH | B28: PR24CA14_W_CYBER_ALLOW_TOT | C28: PR24 final water enhancement totex allowance- security cyber expenditure | D28: £m | E28: Price Review 2024 | F28: 0 | G28: 0 | H28: 3.360990078 | I28: 7.113639224 | J28: 10.4087633 | K28: 6.223725893 | L28: 1.056563793 | M28: 28.16368229
A29: ANH | B29: PR24CA14_W_RESERVOIR_SAFETY_ALLOW_TOT | C29: PR24 final water enhancement totex allowance- reservoir safety expenditure | D29: £m | E29: Price Review 2024 | F29: 0 | G29: 0 | H29: 0 | I29: 0 | J29: 0 | K29: 0 | L29: 0 | M29: 0
A30: ANH | B30: PR24CA14_W_NET_ZERO_ALLOW_TOT | C30: PR24 final water enhancement totex allowance- Greenhouse gas reduction (net zero) expenditure | D30: £m | E30: Price Review 2024 | F30: 0 | G30: 0 | H30: 0 | I30: 0 | J30: 0 | K30: 0 | L30: 0 | M30: 0
A31: ANH | B31: PR24CA14_W_FREEFORM_ALLOW_TOT | C31: PR24 final water enhancement totex allowance- freeform line expenditure | D31: £m | E31: Price Review 2024 | F31: 0 | G31: 0 | H31: 0 | I31: 0 | J31: 0 | K31: 0 | L31: 0 | M31: 0
A32: ANH | B32: PR24CA103_W_WINEPCARRYOVER_ALLOW_TOT | C32: PR24 final water enhancement totex allowance- WINEP carryover expenditure | D32: £m | E32: Price Review 2024 | F32: 0 | G32: 0 | H32: 0 | I32: 0 | J32: 0 | K32: 0 | L32: 0 | M32: 0
A33: WSH | B33: PR24CA14_W_TOTAL_ENHANCEMENT_ALLOW_TOT | C33: PR24 final water enhancement totex allowance- total enhancement expenditure | D33: £m | E33: Price Review 2024 | F33: 0 | G33: 0 | H33: 119.2351072 | I33: 125.3270007 | J33: 124.8583347 | K33: 112.8890956 | L33: 103.5696363 | M33: 585.8791745
A34: WSH | B34: PR24CA14_W_BIODIVERSITY_ALLOW_TOT | C34: PR24 final water enhancement totex allowance- WINEP/NEP - biodiversity and conservation expenditure | D34: £m | E34: Price Review 2024 | F34: 0 | G34: 0 | H34: 0.2448994443 | I34: 0.238631839 | J34: 0.235149914 | K34: 0.2362394061 | L34: 0.2413210896 | M34: 1.196241693
A35: WSH | B35: PR24CA14_W_EELS_SCREENS_ALLOW_TOT | C35: PR24 final water enhancement totex allowance- WINEP/NEP - eels and fish screens expenditure | D35: £m | E35: Price Review 2024 | F35: 0 | G35: 0 | H35: 1.669234612 | I35: 1.63243658 | J35: 0.7354482908 | K35: 0.7346469337 | L35: 0.7392246817 | M35: 5.510991099
A36: WSH | B36: PR24CA14_W_EELS_PASSES_ALLOW_TOT | C36: PR24 final water enhancement totex allowance- WINEP/NEP - eels and fish passes expenditure | D36: £m | E36: Price Review 2024 | F36: 0 | G36: 0 | H36: 0.1165721355 | I36: 0.1129848707 | J36: 0.113220329 | K36: 0.1133180891 | L36: 0.1144605959 | M36: 0.5705560202
A37: WSH | B37: PR24CA14_W_INNS_ALLOW_TOT | C37: PR24 final water enhancement totex allowance- WINEP/NEP - invasive non-native species expenditure | D37: £m | E37: Price Review 2024 | F37: 0 | G37: 0 | H37: 0 | I37: 0 | J37: 0 | K37: 0 | L37: 0 | M37: 0
A38: WSH | B38: PR24CA14_W_DWPA_ALLOW_TOT | C38: PR24 final water enhancement totex allowance- WINEP/NEP - drinking water protected areas expenditure | D38: £m | E38: Price Review 2024 | F38: 0 | G38: 0 | H38: 3.786145409 | I38: 3.703176538 | J38: 3.68595071 | K38: 3.685718865 | L38: 3.704707953 | M38: 18.56569947
A39: WSH | B39: PR24CA14_W_WFD_ALLOW_TOT | C39: PR24 final water enhancement totex allowance- WINEP/NEP - water framework directive expenditure | D39: £m | E39: Price Review 2024 | F39: 0 | G39: 0 | H39: 0.4447373908 | I39: 0.4344073477 | J39: 0.4325597184 | K39: 0.4302246095 | L39: 0.4349502643 | M39: 2.176879331
A40: WSH | B40: PR24CA14_W_DISCHARGE_MONITOR_ALLOW_TOT | C40: PR24 final water enhancement totex allowance- WINEP/NEP - trade effluent discharge flow monitoring expenditure | D40: £m | E40: Price Review 2024 | F40: 0 | G40: 0 | H40: 0 | I40: 0 | J40: 0 | K40: 0 | L40: 0 | M40: 0
A41: WSH | B41: PR24CA14_W_25YR_EP_ALLOW_TOT | C41: PR24 final water enhancement totex allowance- WINEP/NEP - 25 year environment plan expenditure | D41: £m | E41: Price Review 2024 | F41: 0 | G41: 0 | H41: 0 | I41: 0 | J41: 0 | K41: 0 | L41: 0 | M41: 0
A42: WSH | B42: PR24CA14_W_INVESTIGATIONS_ALLOW_TOT | C42: PR24 final water enhancement totex allowance- WINEP/NEP - investigations expenditure | D42: £m | E42: Price Review 2024 | F42: 0 | G42: 0 | H42: 1.388258264 | I42: 1.358691279 | J42: 1.268755823 | K42: 1.267820086 | L42: 1.275638291 | M42: 6.559163743
A43: WSH | B43: PR24CA14_W_WETLAND_ALLOW_TOT | C43: PR24 final water enhancement totex allowance- WINEP/NEP - wetland creation expenditure | D43: £m | E43: Price Review 2024 | F43: 0 | G43: 0 | H43: 0 | I43: 0 | J43: 0 | K43: 0 | L43: 0 | M43: 0
A44: WSH | B44: PR24CA14_W_SUPPLY_ALLOW_TOT | C44: PR24 final water enhancement totex allowance- Supply-demand balance - supply expenditure | D44: £m | E44: Price Review 2024 | F44: 0 | G44: 0 | H44: 0.218084192 | I44: 0.2168396508 | J44: 0.2154343478 | K44: 0.2137930735 | L44: 0.2123494557 | M44: 1.07650072
A45: WSH | B45: PR24CA14_W_SUPPLY_INTER_ALLOW_TOT | C45: PR24 final water enhancement totex allowance- Supply-demand balance - supply interconnectors expenditure | D45: £m | E45: Price Review 2024 | F45: 0 | G45: 0 | H45: 6.969722016 | I45: 15.68832928 | J45: 17.23197349 | K45: 2.74972217 | L45: 2.740124827 | M45: 45.37987178
A46: WSH | B46: PR24CA14_W_LEAKAGE_ALLOW_TOT | C46: PR24 final water enhancement totex allowance- Supply-demand balance - leakage expenditure | D46: £m | E46: Price Review 2024 | F46: 0 | G46: 0 | H46: 0.5393495853 | I46: 0.5362716788 | J46: 0.532796188 | K46: 0.5287371105 | L46: 0.5251668624 | M46: 2.662321425
A47: WSH | B47: PR24CA14_W_DEMAND_ALLOW_TOT | C47: PR24 final water enhancement totex allowance- Supply-demand balance - demand expenditure | D47: £m | E47: Price Review 2024 | F47: 0 | G47: 0 | H47: 2.304701669 | I47: 2.252923635 | J47: 2.240536767 | K47: 2.23591761 | L47: 2.250644092 | M47: 11.28472377
A48: WSH | B48: PR24CA14_W_SRO_ALLOW_TOT | C48: PR24 final water enhancement totex allowance- Supply-demand balance - strategic resource options expenditure | D48: £m | E48: Price Review 2024 | F48: 0 | G48: 0 | H48: 0 | I48: 0 | J48: 0 | K48: 0 | L48: 0 | M48: 0
A49: WSH | B49: PR24CA14_W_METERING_ALLOW_TOT | C49: PR24 final water enhancement totex allowance- Metering - metering expenditure | D49: £m | E49: Price Review 2024 | F49: 0 | G49: 0 | H49: 27.56341387 | I49: 24.00302211 | J49: 21.97464329 | K49: 20.92664538 | L49: 22.57534261 | M49: 117.0430673
A50: WSH | B50: PR24CA14_W_TOC_ALLOW_TOT | C50: PR24 final water enhancement totex allowance- water quality improvements - taste, odour and colour expenditure | D50: £m | E50: Price Review 2024 | F50: 0 | G50: 0 | H50: 15.33991247 | I50: 15.21431159 | J50: 19.63940773 | K50: 25.42213393 | L50: 21.35550092 | M50: 96.97126664
